Workbook

Sheet MENU
L4: =+TABLAS!A81 -> 1-2-3-Total--------
L5: =+TABLAS!A118 -> 1-2-3-Total--------
L6: =+TABLAS!A135 -> t_0
L7: =+GETPIVOTDATA(" rn",TABLAS!$A$155) -> 1673
H27: CONTROL DE MESES
H29: =+TABLAS!A81 -> 1-2-3-Total--------
C30: =+INFORME!I14 -> __ENE_MAR_2025

Sheet TABLAS (hidden)
C8: Valores | I8: Tabla | J8: =IF(I9="(Todas)","CUSCO ","") -> 
C9: RED | D9: 03 - LA CONVENCION | I9: =IF(MID(D9,1,2)="99","(All)",MID(D9,1,2)) -> 03 | J9: =IF(I9="(All)"," ",I9) -> 03 | M9: =LEN(MID(D9,5,90)) -> 14 | O9: =IF(MID(D9,6,5)="(All)","",D9) -> 03 - LA CONVENCION
C10: Micro RED | D10: 0399 - (All) | I10: =IF(MID(D10,3,2)="99","(All)",MID(D10,1,4)) -> (All) | M10: =LEN(MID(D10,7,90)) -> 6 | O10: =IF(MID(D10,8,5)="(All)","",D10) -> 
C11: Establecimiento | D11: 999999999 - (All) | I11: =IF(OR(MID(D11,1,9)="999999999",MID(D11,1,9)="000000000"),"(All)",MID(D11,1,9)) -> (All) | M11: =LEN(MID(D11,12,90)) -> 6 | O11: =IF(MID(D11,13,5)="(All)","",D11) -> 
C12: Provincia | D12: 00 - (All) | I12: =IF(MID(D12,1,2)="00","(All)",MID(D12,1,2)) -> (All) | M12: =LEN(MID(D12,6,90)) -> 5 | O12: =IF(MID(D12,6,5)="(All)","",D12) -> 
C13: Distrito | D13: 0000 - (All) | I13: =IF(OR(MID(D13,1,4)="0000",MID(D13,3,2)="00"),"(All)",MID(D13,1,4)) -> (All) | M13: =LEN(MID(D13,8,90)) -> 5 | O13: =IF(MID(D13,8,5)="(All)","",D13) -> 
C14: Ejecutira | D14: 99 - (ALL) | I14: =IF(MID(D14,1,2)="99","(All)",MID(D14,1,2)) -> (All) | M14: =LEN(MID(D14,5,90)) -> 6 | O14: =IF(MID(D14,6,5)="(All)","",D14) -> 
C15: Sector | D15: 99 - (ALL) | I15: =IF(MID(D15,1,2)="99","(All)",MID(D15,1,1)) -> (All) | J15: =IF(I15="(All)"," ",I15) ->  | M15: =LEN(MID(D15,5,90)) -> 6 | O15: =IF(MID(D15,6,5)="(All)","",D15) -> 
C17: Año | D17: 2025 | I17: =+D17 -> 2025 | J17: =IF(I17="(Todas)"," ",I17) -> 2025
B20: 1 | C20: 1 | D20: 1 | E20: 0 | F20: 0 | G20: 0 | H20: 0 | I20: 0 | J20: 0 | K20: 0 | L20: 0 | M20: 0 | N20: =SUM(B20:M20) -> 3
B21: =IF(B20=1,"ENERO","") -> ENERO | C21: =IF(C20=1,"FEBRERO","") -> FEBRERO | D21: =IF(D20=1,"MARZO","") -> MARZO | E21: =IF(E20=1,"ABRIL","") ->  | F21: =IF(F20=1,"MAYO","") ->  | G21: =IF(G20=1,"JUNIO","") ->  | H21: =IF(H20=1,"JULIO","") ->  | I21: =IF(I20=1,"AGOSTO","") ->  | J21: =IF(J20=1,"SETIEMBRE","") ->  | K21: =IF(K20=1,"OCTUBRE","") ->  | L21: =IF(L20=1,"NOVIEMBRE","") ->  | M21: =IF(M20=1,"DICIEMBRE","") ->  | N21: =IF(B20=1,B21,IF(C20=1,C21,IF(D20=1,D21,IF(E20=1,E21,IF(F20=1,F21,IF(G20=1,G21,IF(H20=1,H21,IF(I20=1,I21,IF(J20=1,J21,IF(K20=1,K21,IF(L20=1,L21,IF(M20=1,M21,"")))))))))))) -> ENERO
N22: =IF(N20=1,N21,"") -> 
B23: 2 | C23: 4 | D23: 6 | N23: =MIN(B23:M23) -> 2 | O23: =MAX(B23:M23) -> 6 | P23: =MAX(C23:N23) -> 6
B24: =IF(B23=2,"ENE","") -> ENE | C24: =IF(C23=4,"FEB","") -> FEB | D24: =IF(D23=6,"MAR","") -> MAR | E24: =IF(E23=8,"ABR","") ->  | F24: =IF(F23=10,"MAY","") ->  | G24: =IF(G23=12,"JUN","") ->  | H24: =IF(H23=14,"JUL","") ->  | I24: =IF(I23=16,"AGO","") ->  | J24: =IF(J23=18,"SET","") ->  | K24: =IF(K23=20,"OCT","") ->  | L24: =IF(L23=22,"NOV","") ->  | M24: =IF(M23=24,"DIC","") ->  | N24: =IF(N23=B23,B24,IF(N23=C23,C24,IF(N23=D23,D24,IF(N23=E23,E24,IF(N23=F23,F24,IF(N23=G23,G24,IF(N23=H23,#REF!,IF(N23=I23,I24,IF(N23=J23,J24,IF(N23=K23,K24,IF(N23=L23,L24,IF(N23=M23,M24,"")))))))))))) -> ENE | O24: =IF(O23=C23,C24,IF(O23=D23,D24,IF(O23=E23,E24,IF(O23=F23,F24,IF(O23=G23,G24,IF(O23=H23,H24,IF(O23=I23,I24,IF(O23=J23,J24,IF(O23=K23,K24,IF(O23=L23,L24,IF(O23=M23,M24,""))))))))))) -> MAR | P24: =IF(P23=D23,D24,IF(P23=E23,E24,IF(P23=F23,F24,IF(P23=G23,G24,IF(P23=H23,H24,IF(P23=I23,I24,IF(P23=J23,J24,IF(P23=K23,K24,IF(P23=L23,L24,IF(P23=M23,M24,IF(P23=N23,N24,""))))))))))) -> MAR
N25: =CONCATENATE(N24," - ",O24) -> ENE - MAR
N26: =IF(N23=O23,N22,N25) -> ENE - MAR
A49: ADULTO_01
A50: ANNO | B50: 2025
A51: cod_red | B51: 03
A52: codmic | B52: (Todas)
A53: cod_prov | B53: (Todas)
A54: coddist | B54: (Todas)
A55: cod_estab | B55: (Todas)
A56: cod_eje | B56: (Todas)
A57: sector | B57: (Todas)
B59: Valores
A60: Etiquetas de fila | B60: BAS001 | C60: BAS002 | D60: BAS003 | E60: BAS004 | F60: BAS005 | G60: BAS006 | H60: BAS007 | I60: BAS008 | J60: BAS009 | K60: BAS010 | L60: BAS011 | M60: BAS012 | N60: BAS013 | O60: BAS014 | P60: BAS015 | Q60: BAS016 | R60: BAS017 | S60: BAS018 | T60: BAS019 | U60: BAS020 | V60: BAS021 | W60: BAS022 | X60: BAS023 | Y60: BAS024 | Z60: BAS025 | AA60: BAS026 | AB60: BAS027 | AC60: BAS028 | AD60: BAS029 | AE60: BAS030 | AF60: BAS031 | AG60: BAS032 | AH60: BAS033 | AI60: BAS034 | AJ60: BAS035 | AK60: BAS036 | AL60: BAS037 | AM60: BAS038 | AN60: BAS039 | AO60: BAS040 | AP60: BAS041 | AQ60: BAS042 | AR60: BAS043 | AS60: BAS044 | AT60: BAS045 | AU60: BAS046 | AV60: BAS047 | AW60: BAS048 | AX60: BAS049 | AY60: BAS050 | AZ60: BAS051 | BA60: BAS052 | BB60: BAS053 | BC60: BAS054 | BD60: BAS055 | BE60: BAS056 | BF60: BAS057 | BG60: BAS058 | BH60: BAS059 | BI60: BAS060 | BJ60: BAS061 | BK60: BAS062 | BL60: BAS063 | BM60: BAS064 | BN60: BAS065 | BO60: BAS066 | BP60: BAS067 | BQ60: BAS068 | BR60: BAS069 | BS60: BAS070 | BT60: BAS071 | BU60: BAS072 | BV60: BAS073 | BW60: BAS074 | BX60: BAS075 | BY60: BAS076 | BZ60: BAS077 | CA60: BAS078 | CB60: BAS079 | CC60: BAS080 | CD60: BAS081 | CE60: BAS082 | CF60: BAS083 | CG60: BAS084 | CH60: BAS085 | CI60: BAS086 | CJ60: BAS087 | CK60: BAS088 | CL60: BAS089 | CM60: BAS090 | CN60: BAS091 | CO60: BAS092 | CP60: BAS093 | CQ60: BAS094 | CR60: BAS095 | CS60: BAS096 | CT60: BAS097 | CU60: BAS098 | CV60: BAS099 | CW60: BAS100 | CX60: BAS101 | CY60: BAS102 | CZ60: BAS103 | DA60: BAS104 | DB60: BAS105 | DC60: BAS106 | DD60: BAS107 | DE60: BAS108 | DF60: BAS109 | DG60: BAS110 | DH60: BAS111 | DI60: BAS112 | DJ60: BAS113 | DK60: BAS114 | DL60: BAS115 | DM60: BAS116 | DN60: BAS117 | DO60: BAS118 | DP60: BAS119 | DQ60: BAS120 | DR60: BAS121 | DS60: BAS122 | DT60: BAS123 | DU60: BAS124 | DV60: BAS125 | DW60: BAS126 | DX60: BAS127 | DY60: BAS128 | DZ60: BAS129 | EA60: BAS130 | EB60: BAS131 | EC60: BAS132 | ED60: BAS133 | EE60: BAS134 | EF60: BAS135 | EG60: BAS136 | EH60: BAS137 | EI60: BAS138 | EJ60: BAS139 | EK60: BAS140 | EL60: BAS141 | EM60: BAS142 | EN60: BAS143 | EO60: BAS144 | EP60: BAS145 | EQ60: BAS146 | ER60: BAS147 | ES60: BAS148 | ET60: BAS149 | EU60: BAS150 | EV60: BAS151 | EW60: BAS152 | EX60: BAS153 | EY60: BAS154 | EZ60: BAS155 | FA60: BAS156 | FB60: BAS157 | FC60: BAS158 | FD60: BAS159 | FE60: BAS160 | FF60: BAS161 | FG60: BAS162 | FH60: BAS163 | FI60: BAS164 | FJ60: BAS165 | FK60: BAS166 | FL60: BAS167 | FM60: BAS168 | FN60: BAS169 | FO60: BAS170 | FP60: BAS171 | FQ60: BAS172 | FR60: BAS173 | FS60: BAS174 | FT60: BAS175 | FU60: BAS176 | FV60: BAS177 | FW60: BAS178 | FX60: BAS179 | FY60: BAS180 | FZ60: BAS181 | GA60: BAS182 | GB60: BAS183 | GC60: BAS184 | GD60: BAS185 | GE60: BAS186 | GF60: BAS187 | GG60: BAS188 | GH60: BAS189 | GI60: BAS190 | GJ60: BAS191 | GK60: BAS192 | GL60: BAS193 | GM60: BAS194 | GN60: BAS195 | GO60: BAS196 | GP60: BAS197 | GQ60: BAS198 | GR60: BAS199 | GS60: BAS200 | GT60: BAS201 | GU60: BAS202 | GV60: BAS203 | GW60: BAS204 | GX60: BAS205 | GY60: BAS206 | GZ60: BAS207 | HA60: BAS208 | HB60: BAS209 | HC60: BAS210 | HD60: BAS211 | HE60: BAS212 | HF60: BAS213 | HG60: BAS214 | HH60: BAS215 | HI60: BAS216 | HJ60: BAS217 | HK60: BAS218 | HL60: BAS219 | HM60: BAS220 | HN60: BAS221 | HO60: BAS222 | HP60: BAS223 | HQ60: BAS224 | HR60: BAS225 | HS60: BAS226 | HT60: BAS227 | HU60: BAS228 | HV60: BAS229 | HW60: BAS230
A61: 1 | B61: 113 | C61: 5 | D61: 0 | E61: 113 | F61: 113 | G61: 121 | H61: 140 | I61: 0 | J61: 0 | K61: 0 | L61: 120 | M61: 139 | N61: 107 | O61: 0 | P61: 0 | Q61: 0 | R61: 0 | S61: 4 | T61: 0 | U61: 121 | V61: 140 | W61: 121 | X61: 139 | Y61: 9 | Z61: 13 | AA61: 1 | AB61: 4 | AC61: 107 | AD61: 0 | AE61: 0 | AF61: 0 | AG61: 0 | AH61: 0 | AI61: 0 | AJ61: 0 | AK61: 0 | AL61: 1 | AM61: 138 | AN61: 137 | AO61: 157 | AP61: 149 | AQ61: 152 | AR61: 144 | AS61: 0 | AT61: 4 | AU61: 2 | AV61: 0 | AW61: 0 | AX61: 1 | AY61: 1 | AZ61: 0 | BA61: 0 | BB61: 0 | BC61: 0 | BD61: 0 | BE61: 0 | BF61: 138 | BG61: 6 | BH61: 0 | BI61: 2 | BJ61: 152 | BK61: 0 | BL61: 0 | BM61: 0 | BN61: 0 | BO61: 0 | BP61: 0 | BQ61: 2 | BR61: 0 | BS61: 5 | BT61: 1 | BU61: 0 | BV61: 0 | BW61: 0 | BX61: 1 | BY61: 2 | BZ61: 0 | CA61: 0 | CB61: 2 | CC61: 9 | CD61: 1 | CE61: 0 | CF61: 6 | CG61: 2 | CH61: 0 | CI61: 1 | CJ61: 0 | CK61: 0 | CL61: 0 | CM61: 0 | CN61: 0 | CO61: 3 | CP61: 2 | CQ61: 4 | CR61: 0 | CS61: 0 | CT61: 0 | CU61: 0 | CV61: 0 | CW61: 4 | CX61: 0 | CY61: 0 | CZ61: 0 | DA61: 0 | DB61: 0 | DC61: 0 | DD61: 0 | DE61: 2 | DF61: 1 | DG61: 1 | DH61: 2 | DI61: 0 | DJ61: 0 | DK61: 0 | DL61: 0 | DM61: 0 | DN61: 0 | DO61: 0 | DP61: 0 | DQ61: 3 | DR61: 0 | DS61: 1 | DT61: 0 | DU61: 0 | DV61: 0 | DW61: 0 | DX61: 0 | DY61: 0 | DZ61: 0 | EA61: 0 | EB61: 0 | EC61: 0 | ED61: 0 | EE61: 0 | EF61: 2 | EG61: 0 | EH61: 148 | EI61: 128 | EJ61: 0 | EK61: 24 | EL61: 148 | EM61: 6 | EN61: 0 | EO61: 0 | EP61: 0 | EQ61: 0 | ER61: 0 | ES61: 0 | ET61: 1 | EU61: 0 | EV61: 1 | EW61: 5 | EX61: 8 | EY61: 0 | EZ61: 0 | FA61: 1 | FB61: 0 | FC61: 0 | FD61: 7 | FE61: 2 | FF61: 1 | FG61: 25 | FH61: 20 | FI61: 11 | FJ61: 23 | FK61: 12 | FL61: 7 | FM61: 0 | FN61: 0 | FO61: 0 | FP61: 0 | FQ61: 0 | FR61: 0 | FS61: 3 | FT61: 5 | FU61: 1 | FV61: 2 | FW61: 3 | FX61: 1 | FY61: 3 | FZ61: 2 | GA61: 0 | GB61: 10 | GC61: 0 | GD61: 1 | GE61: 81 | GF61: 34 | GG61: 13 | GH61: 78 | GI61: 46 | GJ61: 33 | GK61: 7 | GL61: 1 | GM61: 2 | GN61: 1 | GO61: 0 | GP61: 0 | GQ61: 3 | GR61: 4 | GS61: 2 | GT61: 0 | GU61: 0 | GV61: 0 | GW61: 0 | GX61: 0 | GY61: 0 | GZ61: 0 | HA61: 0 | HB61: 0 | HC61: 0 | HD61: 0 | HE61: 0 | HF61: 0 | HG61: 0 | HH61: 0 | HI61: 0 | HJ61: 0 | HK61: 0 | HL61: 0 | HM61: 0 | HN61: 0 | HO61: 0 | HP61: 0 | HQ61: 0 | HR61: 0 | HS61: 0 | HT61: 0 | HU61: 0 | HV61: 0 | HW61: 0
A62: 2 | B62: 107 | C62: 3 | D62: 3 | E62: 108 | F62: 108 | G62: 130 | H62: 131 | I62: 0 | J62: 0 | K62: 0 | L62: 132 | M62: 129 | N62: 101 | O62: 0 | P62: 1 | Q62: 0 | R62: 0 | S62: 0 | T62: 0 | U62: 128 | V62: 130 | W62: 132 | X62: 130 | Y62: 1 | Z62: 0 | AA62: 0 | AB62: 1 | AC62: 100 | AD62: 0 | AE62: 0 | AF62: 0 | AG62: 0 | AH62: 0 | AI62: 0 | AJ62: 0 | AK62: 1 | AL62: 3 | AM62: 110 | AN62: 114 | AO62: 134 | AP62: 135 | AQ62: 127 | AR62: 122 | AS62: 0 | AT62: 2 | AU62: 1 | AV62: 0 | AW62: 0 | AX62: 1 | AY62: 2 | AZ62: 0 | BA62: 0 | BB62: 0 | BC62: 0 | BD62: 0 | BE62: 0 | BF62: 110 | BG62: 0 | BH62: 0 | BI62: 5 | BJ62: 129 | BK62: 0 | BL62: 0 | BM62: 0 | BN62: 0 | BO62: 0 | BP62: 0 | BQ62: 2 | BR62: 0 | BS62: 3 | BT62: 1 | BU62: 1 | BV62: 0 | BW62: 0 | BX62: 0 | BY62: 0 | BZ62: 0 | CA62: 0 | CB62: 1 | CC62: 2 | CD62: 2 | CE62: 0 | CF62: 3 | CG62: 3 | CH62: 0 | CI62: 0 | CJ62: 0 | CK62: 0 | CL62: 0 | CM62: 0 | CN62: 0 | CO62: 2 | CP62: 2 | CQ62: 0 | CR62: 1 | CS62: 0 | CT62: 0 | CU62: 0 | CV62: 0 | CW62: 1 | CX62: 0 | CY62: 0 | CZ62: 0 | DA62: 0 | DB62: 0 | DC62: 0 | DD62: 2 | DE62: 4 | DF62: 2 | DG62: 1 | DH62: 4 | DI62: 2 | DJ62: 0 | DK62: 0 | DL62: 0 | DM62: 0 | DN62: 0 | DO62: 0 | DP62: 0 | DQ62: 1 | DR62: 0 | DS62: 2 | DT62: 0 | DU62: 0 | DV62: 0 | DW62: 0 | DX62: 0 | DY62: 0 | DZ62: 0 | EA62: 0 | EB62: 0 | EC62: 0 | ED62: 0 | EE62: 0 | EF62: 1 | EG62: 2 | EH62: 128 | EI62: 111 | EJ62: 1 | EK62: 16 | EL62: 128 | EM62: 4 | EN62: 0 | EO62: 0 | EP62: 0 | EQ62: 0 | ER62: 0 | ES62: 0 | ET62: 0 | EU62: 0 | EV62: 0 | EW62: 288 | EX62: 404 | EY62: 0 | EZ62: 0 | FA62: 1 | FB62: 0 | FC62: 0 | FD62: 15 | FE62: 8 | FF62: 5 | FG62: 23 | FH62: 20 | FI62: 10 | FJ62: 33 | FK62: 26 | FL62: 16 | FM62: 0 | FN62: 0 | FO62: 0 | FP62: 1 | FQ62: 0 | FR62: 0 | FS62: 4 | FT62: 1 | FU62: 4 | FV62: 3 | FW62: 0 | FX62: 0 | FY62: 4 | FZ62: 4 | GA62: 0 | GB62: 14 | GC62: 1 | GD62: 2 | GE62: 112 | GF62: 124 | GG62: 51 | GH62: 67 | GI62: 39 | GJ62: 31 | GK62: 8 | GL62: 0 | GM62: 2 | GN62: 0 | GO62: 0 | GP62: 0 | GQ62: 8 | GR62: 5 | GS62: 4 | GT62: 0 | GU62: 0 | GV62: 0 | GW62: 0 | GX62: 0 | GY62: 0 | GZ62: 0 | HA62: 0 | HB62: 0 | HC62: 0 | HD62: 0 | HE62: 0 | HF62: 0 | HG62: 0 | HH62: 0 | HI62: 0 | HJ62: 0 | HK62: 0 | HL62: 0 | HM62: 0 | HN62: 0 | HO62: 0 | HP62: 0 | HQ62: 0 | HR62: 0 | HS62: 0 | HT62: 0 | HU62: 0 | HV62: 0 | HW62: 0
A63: 3 | B63: 108 | C63: 9 | D63: 3 | E63: 109 | F63: 109 | G63: 136 | H63: 119 | I63: 0 | J63: 0 | K63: 0 | L63: 135 | M63: 119 | N63: 137 | O63: 0 | P63: 1 | Q63: 0 | R63: 0 | S63: 0 | T63: 0 | U63: 134 | V63: 116 | W63: 134 | X63: 119 | Y63: 2 | Z63: 1 | AA63: 0 | AB63: 4 | AC63: 141 | AD63: 0 | AE63: 0 | AF63: 0 | AG63: 0 | AH63: 0 | AI63: 0 | AJ63: 0 | AK63: 1 | AL63: 2 | AM63: 128 | AN63: 128 | AO63: 139 | AP63: 131 | AQ63: 128 | AR63: 123 | AS63: 0 | AT63: 2 | AU63: 6 | AV63: 0 | AW63: 0 | AX63: 1 | AY63: 3 | AZ63: 0 | BA63: 0 | BB63: 1 | BC63: 0 | BD63: 0 | BE63: 0 | BF63: 107 | BG63: 1 | BH63: 0 | BI63: 2 | BJ63: 131 | BK63: 0 | BL63: 0 | BM63: 0 | BN63: 0 | BO63: 0 | BP63: 0 | BQ63: 1 | BR63: 0 | BS63: 3 | BT63: 1 | BU63: 2 | BV63: 0 | BW63: 1 | BX63: 0 | BY63: 2 | BZ63: 0 | CA63: 0 | CB63: 3 | CC63: 9 | CD63: 3 | CE63: 2 | CF63: 8 | CG63: 8 | CH63: 0 | CI63: 0 | CJ63: 0 | CK63: 0 | CL63: 0 | CM63: 0 | CN63: 0 | CO63: 1 | CP63: 0 | CQ63: 2 | CR63: 0 | CS63: 0 | CT63: 0 | CU63: 0 | CV63: 0 | CW63: 0 | CX63: 0 | CY63: 0 | CZ63: 0 | DA63: 0 | DB63: 0 | DC63: 0 | DD63: 0 | DE63: 2 | DF63: 2 | DG63: 2 | DH63: 4 | DI63: 2 | DJ63: 0 | DK63: 0 | DL63: 0 | DM63: 0 | DN63: 0 | DO63: 0 | DP63: 0 | DQ63: 1 | DR63: 1 | DS63: 2 | DT63: 2 | DU63: 0 | DV63: 0 | DW63: 0 | DX63: 0 | DY63: 0 | DZ63: 0 | EA63: 0 | EB63: 0 | EC63: 0 | ED63: 0 | EE63: 0 | EF63: 1 | EG63: 2 | EH63: 133 | EI63: 117 | EJ63: 1 | EK63: 1 | EL63: 133 | EM63: 6 | EN63: 1 | EO63: 0 | EP63: 0 | EQ63: 0 | ER63: 0 | ES63: 0 | ET63: 0 | EU63: 0 | EV63: 0 | EW63: 113 | EX63: 57 | EY63: 0 | EZ63: 0 | FA63: 0 | FB63: 0 | FC63: 1 | FD63: 10 | FE63: 2 | FF63: 0 | FG63: 28 | FH63: 15 | FI63: 9 | FJ63: 46 | FK63: 24 | FL63: 13 | FM63: 0 | FN63: 0 | FO63: 0 | FP63: 2 | FQ63: 0 | FR63: 0 | FS63: 3 | FT63: 0 | FU63: 0 | FV63: 1 | FW63: 1 | FX63: 0 | FY63: 0 | FZ63: 0 | GA63: 0 | GB63: 11 | GC63: 3 | GD63: 1 | GE63: 107 | GF63: 36 | GG63: 13 | GH63: 53 | GI63: 47 | GJ63: 26 | GK63: 13 | GL63: 10 | GM63: 2 | GN63: 0 | GO63: 1 | GP63: 0 | GQ63: 5 | GR63: 3 | GS63: 0 | GT63: 1 | GU63: 0 | GV63: 0 | GW63: 0 | GX63: 0 | GY63: 0 | GZ63: 0 | HA63: 0 | HB63: 0 | HC63: 0 | HD63: 0 | HE63: 0 | HF63: 0 | HG63: 0 | HH63: 0 | HI63: 0 | HJ63: 0 | HK63: 0 | HL63: 0 | HM63: 0 | HN63: 0 | HO63: 0 | HP63: 0 | HQ63: 0 | HR63: 0 | HS63: 0 | HT63: 0 | HU63: 0 | HV63: 0 | HW63: 0
A64: Total | B64: 328 | C64: 17 | D64: 6 | E64: 330 | F64: 330 | G64: 387 | H64: 390 | I64: 0 | J64: 0 | K64: 0 | L64: 387 | M64: 387 | N64: 345 | O64: 0 | P64: 2 | Q64: 0 | R64: 0 | S64: 4 | T64: 0 | U64: 383 | V64: 386 | W64: 387 | X64: 388 | Y64: 12 | Z64: 14 | AA64: 1 | AB64: 9 | AC64: 348 | AD64: 0 | AE64: 0 | AF64: 0 | AG64: 0 | AH64: 0 | AI64: 0 | AJ64: 0 | AK64: 2 | AL64: 6 | AM64: 376 | AN64: 379 | AO64: 430 | AP64: 415 | AQ64: 407 | AR64: 389 | AS64: 0 | AT64: 8 | AU64: 9 | AV64: 0 | AW64: 0 | AX64: 3 | AY64: 6 | AZ64: 0 | BA64: 0 | BB64: 1 | BC64: 0 | BD64: 0 | BE64: 0 | BF64: 355 | BG64: 7 | BH64: 0 | BI64: 9 | BJ64: 412 | BK64: 0 | BL64: 0 | BM64: 0 | BN64: 0 | BO64: 0 | BP64: 0 | BQ64: 5 | BR64: 0 | BS64: 11 | BT64: 3 | BU64: 3 | BV64: 0 | BW64: 1 | BX64: 1 | BY64: 4 | BZ64: 0 | CA64: 0 | CB64: 6 | CC64: 20 | CD64: 6 | CE64: 2 | CF64: 17 | CG64: 13 | CH64: 0 | CI64: 1 | CJ64: 0 | CK64: 0 | CL64: 0 | CM64: 0 | CN64: 0 | CO64: 6 | CP64: 4 | CQ64: 6 | CR64: 1 | CS64: 0 | CT64: 0 | CU64: 0 | CV64: 0 | CW64: 5 | CX64: 0 | CY64: 0 | CZ64: 0 | DA64: 0 | DB64: 0 | DC64: 0 | DD64: 2 | DE64: 8 | DF64: 5 | DG64: 4 | DH64: 10 | DI64: 4 | DJ64: 0 | DK64: 0 | DL64: 0 | DM64: 0 | DN64: 0 | DO64: 0 | DP64: 0 | DQ64: 5 | DR64: 1 | DS64: 5 | DT64: 2 | DU64: 0 | DV64: 0 | DW64: 0 | DX64: 0 | DY64: 0 | DZ64: 0 | EA64: 0 | EB64: 0 | EC64: 0 | ED64: 0 | EE64: 0 | EF64: 4 | EG64: 4 | EH64: 409 | EI64: 356 | EJ64: 2 | EK64: 41 | EL64: 409 | EM64: 16 | EN64: 1 | EO64: 0 | EP64: 0 | EQ64: 0 | ER64: 0 | ES64: 0 | ET64: 1 | EU64: 0 | EV64: 1 | EW64: 406 | EX64: 469 | EY64: 0 | EZ64: 0 | FA64: 2 | FB64: 0 | FC64: 1 | FD64: 32 | FE64: 12 | FF64: 6 | FG64: 76 | FH64: 55 | FI64: 30 | FJ64: 102 | FK64: 62 | FL64: 36 | FM64: 0 | FN64: 0 | FO64: 0 | FP64: 3 | FQ64: 0 | FR64: 0 | FS64: 10 | FT64: 6 | FU64: 5 | FV64: 6 | FW64: 4 | FX64: 1 | FY64: 7 | FZ64: 6 | GA64: 0 | GB64: 35 | GC64: 4 | GD64: 4 | GE64: 300 | GF64: 194 | GG64: 77 | GH64: 198 | GI64: 132 | GJ64: 90 | GK64: 28 | GL64: 11 | GM64: 6 | GN64: 1 | GO64: 1 | GP64: 0 | GQ64: 16 | GR64: 12 | GS64: 6 | GT64: 1 | GU64: 0 | GV64: 0 | GW64: 0 | GX64: 0 | GY64: 0 | GZ64: 0 | HA64: 0 | HB64: 0 | HC64: 0 | HD64: 0 | HE64: 0 | HF64: 0 | HG64: 0 | HH64: 0 | HI64: 0 | HJ64: 0 | HK64: 0 | HL64: 0 | HM64: 0 | HN64: 0 | HO64: 0 | HP64: 0 | HQ64: 0 | HR64: 0 | HS64: 0 | HT64: 0 | HU64: 0 | HV64: 0 | HW64: 0
A79: TOTAL
A80: =COUNT(A61:A77) -> 3 | B80: =SUM(B61:B77) -> 656 | C80: =SUM(C61:C77) -> 34 | D80: 12 | E80: 660 | F80: 660 | G80: 774 | H80: 780 | I80: 0 | J80: 0 | K80: 0 | L80: 774 | M80: 774 | N80: 690 | O80: 0 | P80: 4 | Q80: 0 | R80: 0 | S80: 8 | T80: 0 | U80: 766 | V80: 772 | W80: 774 | X80: 776 | Y80: 24 | Z80: 28 | AA80: 2 | AB80: 18 | AC80: 696 | AD80: 0 | AE80: 0 | AF80: 0 | AG80: 0 | AH80: 0 | AI80: 0 | AJ80: 0 | AK80: 4 | AL80: 12 | AM80: 752 | AN80: 758 | AO80: 860 | AP80: 830 | AQ80: 814 | AR80: 778 | AS80: 0 | AT80: 16 | AU80: 18 | AV80: 0 | AW80: 0 | AX80: 6 | AY80: 12 | AZ80: 0 | BA80: 0 | BB80: 2 | BC80: 0 | BD80: 0 | BE80: 0 | BF80: 710 | BG80: 14 | BH80: 0 | BI80: 18 | BJ80: 824 | BK80: 0 | BL80: 0 | BM80: 0 | BN80: 0 | BO80: =SUM(BO61:BO77) -> 0 | BP80: 0 | BQ80: 10 | BR80: 0 | BS80: 22 | BT80: 6 | BU80: 6 | BV80: 0 | BW80: 2 | BX80: 2 | BY80: 8 | BZ80: 0 | CA80: 0 | CB80: 12 | CC80: 40 | CD80: 12 | CE80: 4 | CF80: 34 | CG80: 26 | CH80: 0 | CI80: 2 | CJ80: 0 | CK80: 0 | CL80: 0 | CM80: 0 | CN80: 0 | CO80: 12 | CP80: 8 | CQ80: 12 | CR80: 2 | CS80: 0 | CT80: 0 | CU80: 0 | CV80: 0 | CW80: 10 | CX80: 0 | CY80: 0 | CZ80: 0 | DA80: 0 | DB80: 0 | DC80: 0 | DD80: 4 | DE80: 16 | DF80: 10 | DG80: 8 | DH80: 20 | DI80: 8 | DJ80: 0 | DK80: 0 | DL80: 0 | DM80: 0 | DN80: 0 | DO80: 0 | DP80: 0 | DQ80: 10 | DR80: 2 | DS80: 10 | DT80: 4 | DU80: 0 | DV80: 0 | DW80: 0 | DX80: 0 | DY80: 0 | DZ80: 0 | EA80: =SUM(EA61:EA77) -> 0 | EB80: 0 | EC80: 0 | ED80: 0 | EE80: 0 | EF80: 8 | EG80: 8 | EH80: 818 | EI80: 712 | EJ80: 4 | EK80: 82 | EL80: 818 | EM80: 32 | EN80: 2 | EO80: 0 | EP80: 0 | EQ80: 0 | ER80: 0 | ES80: 0 | ET80: 2 | EU80: 0 | EV80: 2 | EW80: 812 | EX80: 938 | EY80: 0 | EZ80: 0 | FA80: 4 | FB80: 0 | FC80: 2 | FD80: 64 | FE80: 24 | FF80: 12 | FG80: 152 | FH80: 110 | FI80: 60 | FJ80: 204 | FK80: 124 | FL80: 72 | FM80: 0 | FN80: 0 | FO80: 0 | FP80: 6 | FQ80: 0 | FR80: 0 | FS80: 20 | FT80: 12 | FU80: 10 | FV80: 12 | FW80: 8 | FX80: 2 | FY80: 14 | FZ80: 12 | GA80: 0 | GB80: 70 | GC80: 8 | GD80: 8 | GE80: 600 | GF80: 388 | GG80: 154 | GH80: 396 | GI80: 264 | GJ80: 180 | GK80: 56 | GL80: 22 | GM80: =SUM(GM61:GM77) -> 12 | GN80: 2 | GO80: 2 | GP80: 0 | GQ80: 32 | GR80: 24 | GS80: 12 | GT80: 2 | GU80: 0 | GV80: 0 | GW80: 0 | GX80: 0 | GY80: 0 | GZ80: 0 | HA80: 0 | HB80: 0 | HC80: 0 | HD80: 0 | HE80: 0 | HF80: 0 | HG80: 0 | HH80: 0 | HI80: 0 | HJ80: 0 | HK80: 0 | HL80: 0 | HM80: 0 | HN80: 0 | HO80: 0 | HP80: 0 | HQ80: 0 | HR80: 0 | HS80: 0 | HT80: 0 | HU80: 0 | HV80: 0 | HW80: 0 | HX80: 0
A81: =CONCATENATE(A61,"-",A62,"-",A63,"-",A64,"-",A65,"-",A66,"-",A67,"-",A68,"-",A69,"-",A70,"-",A71,"-",A72) -> 1-2-3-Total--------
B82: BAS001 | C82: BAS002 | D82: BAS003 | E82: BAS004 | F82: BAS005 | G82: BAS006 | H82: BAS007 | I82: BAS008 | J82: BAS009 | K82: BAS010 | L82: BAS011 | M82: BAS012 | N82: BAS013 | O82: BAS014 | P82: BAS015 | Q82: BAS016 | R82: BAS017 | S82: BAS018 | T82: BAS019 | U82: BAS020 | V82: BAS021 | W82: BAS022 | X82: BAS023 | Y82: BAS024 | Z82: BAS025 | AA82: BAS026 | AB82: BAS027 | AC82: BAS028 | AD82: BAS029 | AE82: BAS030 | AF82: BAS031 | AG82: BAS032 | AH82: BAS033 | AI82: BAS034 | AJ82: BAS035 | AK82: BAS036 | AL82: BAS037 | AM82: BAS038 | AN82: BAS039 | AO82: BAS040 | AP82: BAS041 | AQ82: BAS042 | AR82: BAS043 | AS82: BAS044 | AT82: BAS045 | AU82: BAS046 | AV82: BAS047 | AW82: BAS048 | AX82: BAS049 | AY82: BAS050 | AZ82: BAS051 | BA82: BAS052 | BB82: BAS053 | BC82: BAS054 | BD82: BAS055 | BE82: BAS056 | BF82: BAS057 | BG82: BAS058 | BH82: BAS059 | BI82: BAS060 | BJ82: BAS061 | BK82: BAS062 | BL82: BAS063 | BM82: BAS064 | BN82: BAS065 | BO82: BAS066 | BP82: BAS067 | BQ82: BAS068 | BR82: BAS069 | BS82: BAS070 | BT82: BAS071 | BU82: BAS072 | BV82: BAS073 | BW82: BAS074 | BX82: BAS075 | BY82: BAS076 | BZ82: BAS077 | CA82: BAS078 | CB82: BAS079 | CC82: BAS080 | CD82: BAS081 | CE82: BAS082 | CF82: BAS083 | CG82: BAS084 | CH82: BAS085 | CI82: BAS086 | CJ82: BAS087 | CK82: BAS088 | CL82: BAS089 | CM82: BAS090 | CN82: BAS091 | CO82: BAS092 | CP82: BAS093 | CQ82: BAS094 | CR82: BAS095 | CS82: BAS096 | CT82: BAS097 | CU82: BAS098 | CV82: BAS099 | CW82: BAS100 | CX82: BAS101 | CY82: BAS102 | CZ82: BAS103 | DA82: BAS104 | DB82: BAS105 | DC82: BAS106 | DD82: BAS107 | DE82: BAS108 | DF82: BAS109 | DG82: BAS110 | DH82: BAS111 | DI82: BAS112 | DJ82: BAS113 | DK82: BAS114 | DL82: BAS115 | DM82: BAS116 | DN82: BAS117 | DO82: BAS118 | DP82: BAS119 | DQ82: BAS120 | DR82: BAS121 | DS82: BAS122 | DT82: BAS123 | DU82: BAS124 | DV82: BAS125 | DW82: BAS126 | DX82: BAS127 | DY82: BAS128 | DZ82: BAS129 | EA82: BAS130 | EB82: BAS131 | EC82: BAS132 | ED82: BAS133 | EE82: BAS134 | EF82: BAS135 | EG82: BAS136 | EH82: BAS137 | EI82: BAS138 | EJ82: BAS139 | EK82: BAS140 | EL82: BAS141 | EM82: BAS142 | EN82: BAS143 | EO82: BAS144 | EP82: BAS145 | EQ82: BAS146 | ER82: BAS147 | ES82: BAS148 | ET82: BAS149 | EU82: BAS150 | EV82: BAS151 | EW82: BAS152 | EX82: BAS153 | EY82: BAS154 | EZ82: BAS155 | FA82: BAS156 | FB82: BAS157 | FC82: BAS158 | FD82: BAS159 | FE82: BAS160 | FF82: BAS161 | FG82: BAS162 | FH82: BAS163 | FI82: BAS164 | FJ82: BAS165 | FK82: BAS166 | FL82: BAS167 | FM82: BAS168 | FN82: BAS169 | FO82: BAS170 | FP82: BAS171 | FQ82: BAS172 | FR82: BAS173 | FS82: BAS174 | FT82: BAS175 | FU82: BAS176 | FV82: BAS177 | FW82: BAS178 | FX82: BAS179 | FY82: BAS180 | FZ82: BAS181 | GA82: BAS182 | GB82: BAS183 | GC82: BAS184 | GD82: BAS185 | GE82: BAS186 | GF82: BAS187 | GG82: BAS188 | GH82: BAS189 | GI82: BAS190 | GJ82: BAS191 | GK82: BAS192 | GL82: BAS193 | GM82: BAS194 | GN82: BAS195 | GO82: BAS196 | GP82: BAS197 | GQ82: BAS198 | GR82: BAS199 | GS82: BAS200 | GT82: BAS201 | GU82: BAS202 | GV82: BAS203 | GW82: BAS204 | GX82: BAS205 | GY82: BAS206 | GZ82: BAS207 | HA82: BAS208 | HB82: BAS209 | HC82: BAS210 | HD82: BAS211 | HE82: BAS212 | HF82: BAS213 | HG82: BAS214 | HH82: BAS215 | HI82: BAS216 | HJ82: BAS217 | HK82: BAS218 | HL82: BAS219 | HM82: BAS220 | HN82: BAS221 | HO82: BAS222 | HP82: BAS223 | HQ82: BAS224 | HR82: BAS225 | HS82: BAS226 | HT82: BAS227 | HU82: BAS228 | HV82: BAS229 | HW82: BAS230
B83: =IF(B82=B60,"SI","NO") -> SI | C83: =IF(C82=C60,"SI","NO") -> SI | D83: SI | E83: SI | F83: SI | G83: SI | H83: SI | I83: SI | J83: SI | K83: SI | L83: SI | M83: SI | N83: SI | O83: SI | P83: SI | Q83: SI | R83: SI | S83: SI | T83: SI | U83: SI | V83: SI | W83: SI | X83: SI | Y83: SI | Z83: SI | AA83: SI | AB83: SI | AC83: SI | AD83: SI | AE83: SI | AF83: SI | AG83: SI | AH83: SI | AI83: SI | AJ83: SI | AK83: SI | AL83: SI | AM83: SI | AN83: SI | AO83: SI | AP83: SI | AQ83: SI | AR83: SI | AS83: SI | AT83: SI | AU83: SI | AV83: SI | AW83: SI | AX83: SI | AY83: SI | AZ83: SI | BA83: SI | BB83: SI | BC83: SI | BD83: SI | BE83: SI | BF83: SI | BG83: SI | BH83: SI | BI83: SI | BJ83: SI | BK83: SI | BL83: SI | BM83: SI | BN83: SI | BO83: =IF(BO82=BO60,"SI","NO") -> SI | BP83: SI | BQ83: SI | BR83: SI | BS83: SI | BT83: SI | BU83: SI | BV83: SI | BW83: SI | BX83: SI | BY83: SI | BZ83: SI | CA83: SI | CB83: SI | CC83: SI | CD83: SI | CE83: SI | CF83: SI | CG83: SI | CH83: SI | CI83: SI | CJ83: SI | CK83: SI | CL83: SI | CM83: SI | CN83: SI | CO83: SI | CP83: SI | CQ83: SI | CR83: SI | CS83: SI | CT83: SI | CU83: SI | CV83: SI | CW83: SI | CX83: SI | CY83: SI | CZ83: SI | DA83: SI | DB83: SI | DC83: SI | DD83: SI | DE83: SI | DF83: SI | DG83: SI | DH83: SI | DI83: SI | DJ83: SI | DK83: SI | DL83: SI | DM83: SI | DN83: SI | DO83: SI | DP83: SI | DQ83: SI | DR83: SI | DS83: SI | DT83: SI | DU83: SI | DV83: SI | DW83: SI | DX83: SI | DY83: SI | DZ83: SI | EA83: =IF(EA82=EA60,"SI","NO") -> SI | EB83: SI | EC83: SI | ED83: SI | EE83: SI | EF83: SI | EG83: SI | EH83: SI | EI83: SI | EJ83: SI | EK83: SI | EL83: SI | EM83: SI | EN83: SI | EO83: SI | EP83: SI | EQ83: SI | ER83: SI | ES83: SI | ET83: SI | EU83: SI | EV83: SI | EW83: SI | EX83: SI | EY83: SI | EZ83: SI | FA83: SI | FB83: SI | FC83: SI | FD83: SI | FE83: SI | FF83: SI | FG83: SI | FH83: SI | FI83: SI | FJ83: SI | FK83: SI | FL83: SI | FM83: SI | FN83: SI | FO83: SI | FP83: SI | FQ83: SI | FR83: SI | FS83: SI | FT83: SI | FU83: SI | FV83: SI | FW83: SI | FX83: SI | FY83: SI | FZ83: SI | GA83: SI | GB83: SI | GC83: SI | GD83: SI | GE83: SI | GF83: SI | GG83: SI | GH83: SI | GI83: SI | GJ83: SI | GK83: SI | GL83: SI | GM83: =IF(GM82=GM60,"SI","NO") -> SI | GN83: SI | GO83: SI | GP83: SI | GQ83: SI | GR83: SI | GS83: SI | GT83: SI | GU83: SI | GV83: SI | GW83: SI | GX83: SI | GY83: SI | GZ83: SI | HA83: SI | HB83: SI | HC83: SI | HD83: SI | HE83: SI | HF83: SI | HG83: SI | HH83: SI | HI83: SI | HJ83: SI | HK83: SI | HL83: SI | HM83: SI | HN83: SI | HO83: SI | HP83: SI | HQ83: SI | HR83: SI | HS83: SI | HT83: SI | HU83: SI | HV83: SI | HW83: SI
A87: ADULTO_02
A88: ANNO | B88: 2025
A89: cod_red | B89: 03
A90: codmic | B90: (Todas)
A91: cod_prov | B91: (Todas)
A92: coddist | B92: (Todas)
A93: cod_estab | B93: (Todas)
A94: cod_eje | B94: (Todas)
A95: sector | B95: (Todas)
B97: Valores
A98: Etiquetas de fila | B98: BAS001 | C98: BAS002 | D98: BAS003 | E98: BAS004 | F98: BAS005 | G98: BAS006 | H98: BAS007 | I98: BAS008 | J98: BAS009 | K98: BAS010 | L98: BAS011 | M98: BAS012 | N98: BAS013 | O98: BAS014 | P98: BAS015 | Q98: BAS016 | R98: BAS017 | S98: BAS018 | T98: BAS019 | U98: BAS020 | V98: BAS021 | W98: BAS022 | X98: BAS023 | Y98: BAS024 | Z98: BAS025 | AA98: BAS026 | AB98: BAS027 | AC98: BAS028 | AD98: BAS029 | AE98: BAS030 | AF98: BAS031 | AG98: BAS032 | AH98: BAS033 | AI98: BAS034 | AJ98: BAS035 | AK98: BAS036 | AL98: BAS037 | AM98: BAS038 | AN98: BAS039 | AO98: BAS040 | AP98: BAS041 | AQ98: BAS042 | AR98: BAS043 | AS98: BAS044 | AT98: BAS045 | AU98: BAS046 | AV98: BAS047 | AW98: BAS048 | AX98: BAS049 | AY98: BAS050 | AZ98: BAS051 | BA98: BAS052 | BB98: BAS053 | BC98: BAS054 | BD98: BAS055 | BE98: BAS056 | BF98: BAS057 | BG98: BAS058 | BH98: BAS059 | BI98: BAS060 | BJ98: BAS061 | BK98: BAS062 | BL98: BAS063 | BM98: BAS064 | BN98: BAS065 | BO98: BAS066 | BP98: BAS067 | BQ98: BAS068 | BR98: BAS069 | BS98: BAS070 | BT98: BAS071 | BU98: BAS072 | BV98: BAS073 | BW98: BAS074 | BX98: BAS075 | BY98: BAS076 | BZ98: BAS077 | CA98: BAS078 | CB98: BAS079 | CC98: BAS080 | CD98: BAS081 | CE98: BAS082 | CF98: BAS083 | CG98: BAS084 | CH98: BAS085 | CI98: BAS086 | CJ98: BAS087 | CK98: BAS088 | CL98: BAS089 | CM98: BAS090 | CN98: BAS091 | CO98: BAS092 | CP98: BAS093 | CQ98: BAS094 | CR98: BAS095 | CS98: BAS096 | CT98: BAS097 | CU98: BAS098 | CV98: BAS099 | CW98: BAS100 | CX98: BAS101 | CY98: BAS102 | CZ98: BAS103 | DA98: BAS104 | DB98: BAS105 | DC98: BAS106 | DD98: BAS107 | DE98: BAS108 | DF98: BAS109 | DG98: BAS110 | DH98: BAS111 | DI98: BAS112 | DJ98: BAS113 | DK98: BAS114 | DL98: BAS115 | DM98: BAS116 | DN98: BAS117 | DO98: BAS118 | DP98: BAS119 | DQ98: BAS120 | DR98: BAS121 | DS98: BAS122 | DT98: BAS123 | DU98: BAS124 | DV98: BAS125 | DW98: BAS126 | DX98: BAS127 | DY98: BAS128 | DZ98: BAS129 | EA98: BAS130 | EB98: BAS131 | EC98: BAS132 | ED98: BAS133 | EE98: BAS134 | EF98: BAS135 | EG98: BAS136 | EH98: BAS137 | EI98: BAS138 | EJ98: BAS139 | EK98: BAS140 | EL98: BAS141 | EM98: BAS142 | EN98: BAS143 | EO98: BAS144 | EP98: BAS145 | EQ98: BAS146 | ER98: BAS147 | ES98: BAS148 | ET98: BAS149 | EU98: BAS150 | EV98: BAS151 | EW98: BAS152 | EX98: BAS153 | EY98: BAS154 | EZ98: BAS155 | FA98: BAS156 | FB98: BAS157 | FC98: BAS158 | FD98: BAS159 | FE98: BAS160 | FF98: BAS161 | FG98: BAS162 | FH98: BAS163 | FI98: BAS164 | FJ98: BAS165 | FK98: BAS166 | FL98: BAS167 | FM98: BAS168 | FN98: BAS169 | FO98: BAS170 | FP98: BAS171 | FQ98: BAS172 | FR98: BAS173 | FS98: BAS174 | FT98: BAS175 | FU98: BAS176 | FV98: BAS177 | FW98: BAS178 | FX98: BAS179 | FY98: BAS180 | FZ98: BAS181 | GA98: BAS182 | GB98: BAS183 | GC98: BAS184 | GD98: BAS185 | GE98: BAS186 | GF98: BAS187 | GG98: BAS188 | GH98: BAS189 | GI98: BAS190 | GJ98: BAS191 | GK98: BAS192 | GL98: BAS193 | GM98: BAS194 | GN98: BAS195 | GO98: BAS196 | GP98: BAS197 | GQ98: BAS198 | GR98: BAS199 | GS98: BAS200 | GT98: BAS201 | GU98: BAS202 | GV98: BAS203 | GW98: BAS204 | GX98: BAS205 | GY98: BAS206 | GZ98: BAS207 | HA98: BAS208 | HB98: BAS209 | HC98: BAS210 | HD98: BAS211 | HE98: BAS212 | HF98: BAS213 | HG98: BAS214 | HH98: BAS215 | HI98: BAS216 | HJ98: BAS217 | HK98: BAS218 | HL98: BAS219 | HM98: BAS220 | HN98: BAS221 | HO98: BAS222 | HP98: BAS223 | HQ98: BAS224 | HR98: BAS225 | HS98: BAS226 | HT98: BAS227 | HU98: BAS228 | HV98: BAS229 | HW98: BAS230
A99: 1 | B99: 2 | C99: 2 | D99: 2 | E99: 0 | F99: 0 | G99: 0 | H99: 0 | I99: 0 | J99: 0 | K99: 0 | L99: 0 | M99: 0 | N99: 0 | O99: 0 | P99: 0 | Q99: 0 | R99: 8 | S99: 3 | T99: 0 | U99: 8 | V99: 0 | W99: 1 | X99: 0 | Y99: 0 | Z99: 0 | AA99: 0 | AB99: 0 | AC99: 6 | AD99: 1 | AE99: 0 | AF99: 141 | AG99: 59 | AH99: 38 | AI99: 88 | AJ99: 55 | AK99: 48 | AL99: 0 | AM99: 0 | AN99: 1 | AO99: 0 | AP99: 0 | AQ99: 0 | AR99: 0 | AS99: 0 | AT99: 0 | AU99: 0 | AV99: 0 | AW99: 0 | AX99: 0 | AY99: 0 | AZ99: 0 | BA99: 5 | BB99: 14 | BC99: 32 | BD99: 0 | BE99: 0 | BF99: 0 | BG99: 0 | BH99: 0 | BI99: 10 | BJ99: 3 | BK99: 2 | BL99: 137 | BM99: 87 | BN99: 6 | BO99: 0 | BP99: 0 | BQ99: 0 | BR99: 0 | BS99: 0 | BT99: 0 | BU99: 74 | BV99: 54 | BW99: 31 | BX99: 0 | BY99: 8 | BZ99: 56 | CA99: 48 | CB99: 0 | CC99: 0 | CD99: 0 | CE99: 0 | CF99: 0 | CG99: 0 | CH99: 0 | CI99: 0 | CJ99: 0 | CK99: 0 | CL99: 0 | CM99: 0 | CN99: 0 | CO99: 0 | CP99: 0 | CQ99: 0 | CR99: 0 | CS99: 0 | CT99: 0 | CU99: 0 | CV99: 0 | CW99: 0 | CX99: 0 | CY99: 0 | CZ99: 0 | DA99: 0 | DB99: 0 | DC99: 0 | DD99: 0 | DE99: 0 | DF99: 0 | DG99: 0 | DH99: 0 | DI99: 0 | DJ99: 0 | DK99: 0 | DL99: 0 | DM99: 0 | DN99: 0 | DO99: 0 | DP99: 0 | DQ99: 0 | DR99: 0 | DS99: 0 | DT99: 0 | DU99: 0 | DV99: 0 | DW99: 0 | DX99: 0 | DY99: 0 | DZ99: 0 | EA99: 0 | EB99: 0 | EC99: 0 | ED99: 0 | EE99: 5 | EF99: 8 | EG99: 0 | EH99: 0 | EI99: 0 | EJ99: 0 | EK99: 1 | EL99: 0 | EM99: 0 | EN99: 0 | EO99: 0 | EP99: 0 | EQ99: 0 | ER99: 0 | ES99: 0 | ET99: 0 | EU99: 0 | EV99: 0 | EW99: 0 | EX99: 0 | EY99: 0 | EZ99: 0 | FA99: 0 | FB99: 0 | FC99: 0 | FD99: 0 | FE99: 0 | FF99: 0 | FG99: 0 | FH99: 0 | FI99: 0 | FJ99: 0 | FK99: 0 | FL99: 0 | FM99: 0 | FN99: 0 | FO99: 0 | FP99: 0 | FQ99: 0 | FR99: 0 | FS99: 0 | FT99: 0 | FU99: 0 | FV99: 0 | FW99: 0 | FX99: 0 | FY99: 0 | FZ99: 0 | GA99: 0 | GB99: 0 | GC99: 0 | GD99: 0 | GE99: 0 | GF99: 0 | GG99: 0 | GH99: 0 | GI99: 0 | GJ99: 0 | GK99: 0 | GL99: 0 | GM99: 0 | GN99: 0 | GO99: 0 | GP99: 0 | GQ99: 0 | GR99: 0 | GS99: 0 | GT99: 0 | GU99: 0 | GV99: 0 | GW99: 0 | GX99: 0 | GY99: 0 | GZ99: 0 | HA99: 0 | HB99: 0 | HC99: 0 | HD99: 0 | HE99: 0 | HF99: 0 | HG99: 0 | HH99: 0 | HI99: 0 | HJ99: 0 | HK99: 0 | HL99: 0 | HM99: 0 | HN99: 0 | HO99: 0 | HP99: 0 | HQ99: 0 | HR99: 0 | HS99: 0 | HT99: 0 | HU99: 0 | HV99: 0 | HW99: 0
A100: 2 | B100: 1 | C100: 3 | D100: 2 | E100: 0 | F100: 0 | G100: 0 | H100: 0 | I100: 0 | J100: 0 | K100: 0 | L100: 0 | M100: 0 | N100: 0 | O100: 0 | P100: 0 | Q100: 0 | R100: 0 | S100: 0 | T100: 0 | U100: 0 | V100: 0 | W100: 0 | X100: 0 | Y100: 0 | Z100: 0 | AA100: 0 | AB100: 0 | AC100: 31 | AD100: 9 | AE100: 4 | AF100: 166 | AG100: 131 | AH100: 95 | AI100: 119 | AJ100: 76 | AK100: 55 | AL100: 0 | AM100: 0 | AN100: 0 | AO100: 0 | AP100: 0 | AQ100: 0 | AR100: 0 | AS100: 0 | AT100: 0 | AU100: 0 | AV100: 0 | AW100: 0 | AX100: 0 | AY100: 0 | AZ100: 0 | BA100: 1 | BB100: 6 | BC100: 55 | BD100: 0 | BE100: 0 | BF100: 0 | BG100: 0 | BH100: 0 | BI100: 5 | BJ100: 3 | BK100: 11 | BL100: 134 | BM100: 104 | BN100: 4 | BO100: 0 | BP100: 0 | BQ100: 0 | BR100: 0 | BS100: 0 | BT100: 0 | BU100: 125 | BV100: 71 | BW100: 42 | BX100: 0 | BY100: 6 | BZ100: 61 | CA100: 34 | CB100: 0 | CC100: 0 | CD100: 0 | CE100: 0 | CF100: 0 | CG100: 0 | CH100: 0 | CI100: 0 | CJ100: 0 | CK100: 0 | CL100: 0 | CM100: 0 | CN100: 0 | CO100: 0 | CP100: 0 | CQ100: 0 | CR100: 0 | CS100: 0 | CT100: 0 | CU100: 0 | CV100: 0 | CW100: 0 | CX100: 0 | CY100: 0 | CZ100: 0 | DA100: 0 | DB100: 0 | DC100: 0 | DD100: 0 | DE100: 0 | DF100: 0 | DG100: 0 | DH100: 0 | DI100: 0 | DJ100: 0 | DK100: 0 | DL100: 0 | DM100: 0 | DN100: 0 | DO100: 0 | DP100: 0 | DQ100: 0 | DR100: 0 | DS100: 0 | DT100: 0 | DU100: 0 | DV100: 0 | DW100: 0 | DX100: 0 | DY100: 0 | DZ100: 0 | EA100: 0 | EB100: 0 | EC100: 0 | ED100: 0 | EE100: 288 | EF100: 404 | EG100: 0 | EH100: 0 | EI100: 0 | EJ100: 0 | EK100: 0 | EL100: 0 | EM100: 0 | EN100: 0 | EO100: 0 | EP100: 0 | EQ100: 0 | ER100: 0 | ES100: 0 | ET100: 0 | EU100: 0 | EV100: 0 | EW100: 0 | EX100: 0 | EY100: 0 | EZ100: 0 | FA100: 0 | FB100: 0 | FC100: 0 | FD100: 0 | FE100: 0 | FF100: 0 | FG100: 0 | FH100: 0 | FI100: 0 | FJ100: 0 | FK100: 0 | FL100: 0 | FM100: 0 | FN100: 0 | FO100: 0 | FP100: 0 | FQ100: 0 | FR100: 0 | FS100: 0 | FT100: 0 | FU100: 0 | FV100: 0 | FW100: 0 | FX100: 0 | FY100: 0 | FZ100: 0 | GA100: 0 | GB100: 0 | GC100: 0 | GD100: 0 | GE100: 0 | GF100: 0 | GG100: 0 | GH100: 0 | GI100: 0 | GJ100: 0 | GK100: 0 | GL100: 0 | GM100: 0 | GN100: 0 | GO100: 0 | GP100: 0 | GQ100: 0 | GR100: 0 | GS100: 0 | GT100: 0 | GU100: 0 | GV100: 0 | GW100: 0 | GX100: 0 | GY100: 0 | GZ100: 0 | HA100: 0 | HB100: 0 | HC100: 0 | HD100: 0 | HE100: 0 | HF100: 0 | HG100: 0 | HH100: 0 | HI100: 0 | HJ100: 0 | HK100: 0 | HL100: 0 | HM100: 0 | HN100: 0 | HO100: 0 | HP100: 0 | HQ100: 0 | HR100: 0 | HS100: 0 | HT100: 0 | HU100: 0 | HV100: 0 | HW100: 0
A101: 3 | B101: 1 | C101: 0 | D101: 1 | E101: 0 | F101: 0 | G101: 0 | H101: 0 | I101: 0 | J101: 0 | K101: 0 | L101: 0 | M101: 0 | N101: 0 | O101: 0 | P101: 0 | Q101: 0 | R101: 0 | S101: 0 | T101: 0 | U101: 0 | V101: 0 | W101: 0 | X101: 0 | Y101: 0 | Z101: 0 | AA101: 0 | AB101: 0 | AC101: 22 | AD101: 6 | AE101: 2 | AF101: 136 | AG101: 123 | AH101: 34 | AI101: 101 | AJ101: 74 | AK101: 34 | AL101: 0 | AM101: 0 | AN101: 0 | AO101: 0 | AP101: 0 | AQ101: 0 | AR101: 0 | AS101: 0 | AT101: 0 | AU101: 0 | AV101: 0 | AW101: 0 | AX101: 0 | AY101: 0 | AZ101: 0 | BA101: 5 | BB101: 8 | BC101: 25 | BD101: 0 | BE101: 0 | BF101: 0 | BG101: 0 | BH101: 0 | BI101: 7 | BJ101: 5 | BK101: 39 | BL101: 149 | BM101: 130 | BN101: 16 | BO101: 0 | BP101: 0 | BQ101: 0 | BR101: 0 | BS101: 0 | BT101: 0 | BU101: 97 | BV101: 73 | BW101: 30 | BX101: 0 | BY101: 12 | BZ101: 59 | CA101: 42 | CB101: 0 | CC101: 0 | CD101: 0 | CE101: 0 | CF101: 0 | CG101: 0 | CH101: 0 | CI101: 0 | CJ101: 0 | CK101: 0 | CL101: 0 | CM101: 0 | CN101: 0 | CO101: 0 | CP101: 0 | CQ101: 0 | CR101: 0 | CS101: 0 | CT101: 0 | CU101: 0 | CV101: 0 | CW101: 0 | CX101: 0 | CY101: 0 | CZ101: 0 | DA101: 0 | DB101: 0 | DC101: 0 | DD101: 0 | DE101: 0 | DF101: 0 | DG101: 0 | DH101: 0 | DI101: 0 | DJ101: 0 | DK101: 0 | DL101: 0 | DM101: 0 | DN101: 0 | DO101: 0 | DP101: 0 | DQ101: 0 | DR101: 0 | DS101: 0 | DT101: 0 | DU101: 0 | DV101: 0 | DW101: 0 | DX101: 0 | DY101: 0 | DZ101: 0 | EA101: 0 | EB101: 0 | EC101: 0 | ED101: 0 | EE101: 113 | EF101: 57 | EG101: 0 | EH101: 0 | EI101: 0 | EJ101: 0 | EK101: 0 | EL101: 0 | EM101: 0 | EN101: 0 | EO101: 0 | EP101: 0 | EQ101: 0 | ER101: 0 | ES101: 0 | ET101: 0 | EU101: 0 | EV101: 0 | EW101: 0 | EX101: 0 | EY101: 0 | EZ101: 0 | FA101: 0 | FB101: 0 | FC101: 0 | FD101: 0 | FE101: 0 | FF101: 0 | FG101: 0 | FH101: 0 | FI101: 0 | FJ101: 0 | FK101: 0 | FL101: 0 | FM101: 0 | FN101: 0 | FO101: 0 | FP101: 0 | FQ101: 0 | FR101: 0 | FS101: 0 | FT101: 0 | FU101: 0 | FV101: 0 | FW101: 0 | FX101: 0 | FY101: 0 | FZ101: 0 | GA101: 0 | GB101: 0 | GC101: 0 | GD101: 0 | GE101: 0 | GF101: 0 | GG101: 0 | GH101: 0 | GI101: 0 | GJ101: 0 | GK101: 0 | GL101: 0 | GM101: 0 | GN101: 0 | GO101: 0 | GP101: 0 | GQ101: 0 | GR101: 0 | GS101: 0 | GT101: 0 | GU101: 0 | GV101: 0 | GW101: 0 | GX101: 0 | GY101: 0 | GZ101: 0 | HA101: 0 | HB101: 0 | HC101: 0 | HD101: 0 | HE101: 0 | HF101: 0 | HG101: 0 | HH101: 0 | HI101: 0 | HJ101: 0 | HK101: 0 | HL101: 0 | HM101: 0 | HN101: 0 | HO101: 0 | HP101: 0 | HQ101: 0 | HR101: 0 | HS101: 0 | HT101: 0 | HU101: 0 | HV101: 0 | HW101: 0
A102: Total | B102: 4 | C102: 5 | D102: 5 | E102: 0 | F102: 0 | G102: 0 | H102: 0 | I102: 0 | J102: 0 | K102: 0 | L102: 0 | M102: 0 | N102: 0 | O102: 0 | P102: 0 | Q102: 0 | R102: 8 | S102: 3 | T102: 0 | U102: 8 | V102: 0 | W102: 1 | X102: 0 | Y102: 0 | Z102: 0 | AA102: 0 | AB102: 0 | AC102: 59 | AD102: 16 | AE102: 6 | AF102: 443 | AG102: 313 | AH102: 167 | AI102: 308 | AJ102: 205 | AK102: 137 | AL102: 0 | AM102: 0 | AN102: 1 | AO102: 0 | AP102: 0 | AQ102: 0 | AR102: 0 | AS102: 0 | AT102: 0 | AU102: 0 | AV102: 0 | AW102: 0 | AX102: 0 | AY102: 0 | AZ102: 0 | BA102: 11 | BB102: 28 | BC102: 112 | BD102: 0 | BE102: 0 | BF102: 0 | BG102: 0 | BH102: 0 | BI102: 22 | BJ102: 11 | BK102: 52 | BL102: 420 | BM102: 321 | BN102: 26 | BO102: 0 | BP102: 0 | BQ102: 0 | BR102: 0 | BS102: 0 | BT102: 0 | BU102: 296 | BV102: 198 | BW102: 103 | BX102: 0 | BY102: 26 | BZ102: 176 | CA102: 124 | CB102: 0 | CC102: 0 | CD102: 0 | CE102: 0 | CF102: 0 | CG102: 0 | CH102: 0 | CI102: 0 | CJ102: 0 | CK102: 0 | CL102: 0 | CM102: 0 | CN102: 0 | CO102: 0 | CP102: 0 | CQ102: 0 | CR102: 0 | CS102: 0 | CT102: 0 | CU102: 0 | CV102: 0 | CW102: 0 | CX102: 0 | CY102: 0 | CZ102: 0 | DA102: 0 | DB102: 0 | DC102: 0 | DD102: 0 | DE102: 0 | DF102: 0 | DG102: 0 | DH102: 0 | DI102: 0 | DJ102: 0 | DK102: 0 | DL102: 0 | DM102: 0 | DN102: 0 | DO102: 0 | DP102: 0 | DQ102: 0 | DR102: 0 | DS102: 0 | DT102: 0 | DU102: 0 | DV102: 0 | DW102: 0 | DX102: 0 | DY102: 0 | DZ102: 0 | EA102: 0 | EB102: 0 | EC102: 0 | ED102: 0 | EE102: 406 | EF102: 469 | EG102: 0 | EH102: 0 | EI102: 0 | EJ102: 0 | EK102: 1 | EL102: 0 | EM102: 0 | EN102: 0 | EO102: 0 | EP102: 0 | EQ102: 0 | ER102: 0 | ES102: 0 | ET102: 0 | EU102: 0 | EV102: 0 | EW102: 0 | EX102: 0 | EY102: 0 | EZ102: 0 | FA102: 0 | FB102: 0 | FC102: 0 | FD102: 0 | FE102: 0 | FF102: 0 | FG102: 0 | FH102: 0 | FI102: 0 | FJ102: 0 | FK102: 0 | FL102: 0 | FM102: 0 | FN102: 0 | FO102: 0 | FP102: 0 | FQ102: 0 | FR102: 0 | FS102: 0 | FT102: 0 | FU102: 0 | FV102: 0 | FW102: 0 | FX102: 0 | FY102: 0 | FZ102: 0 | GA102: 0 | GB102: 0 | GC102: 0 | GD102: 0 | GE102: 0 | GF102: 0 | GG102: 0 | GH102: 0 | GI102: 0 | GJ102: 0 | GK102: 0 | GL102: 0 | GM102: 0 | GN102: 0 | GO102: 0 | GP102: 0 | GQ102: 0 | GR102: 0 | GS102: 0 | GT102: 0 | GU102: 0 | GV102: 0 | GW102: 0 | GX102: 0 | GY102: 0 | GZ102: 0 | HA102: 0 | HB102: 0 | HC102: 0 | HD102: 0 | HE102: 0 | HF102: 0 | HG102: 0 | HH102: 0 | HI102: 0 | HJ102: 0 | HK102: 0 | HL102: 0 | HM102: 0 | HN102: 0 | HO102: 0 | HP102: 0 | HQ102: 0 | HR102: 0 | HS102: 0 | HT102: 0 | HU102: 0 | HV102: 0 | HW102: 0
A116: TOTAL
A117: =COUNT(A96:A114) -> 3 | B117: =SUM(B96:B114) -> 8 | C117: =SUM(C96:C114) -> 10 | D117: 10 | E117: 0 | F117: 0 | G117: 0 | H117: 0 | I117: 0 | J117: 0 | K117: 0 | L117: 0 | M117: 0 | N117: 0 | O117: 0 | P117: 0 | Q117: 0 | R117: 16 | S117: 6 | T117: 0 | U117: 16 | V117: 0 | W117: 2 | X117: 0 | Y117: 0 | Z117: 0 | AA117: 0 | AB117: 0 | AC117: 118 | AD117: 32 | AE117: 12 | AF117: 886 | AG117: 626 | AH117: 334 | AI117: 616 | AJ117: 410 | AK117: 274 | AL117: 0 | AM117: 0 | AN117: 2 | AO117: 0 | AP117: 0 | AQ117: 0 | AR117: 0 | AS117: 0 | AT117: 0 | AU117: 0 | AV117: 0 | AW117: 0 | AX117: 0 | AY117: 0 | AZ117: 0 | BA117: 22 | BB117: 56 | BC117: 224 | BD117: 0 | BE117: 0 | BF117: 0 | BG117: 0 | BH117: 0 | BI117: 44 | BJ117: 22 | BK117: 104 | BL117: 840 | BM117: 642 | BN117: 52 | BO117: =SUM(BO96:BO114) -> 0 | BP117: 0 | BQ117: 0 | BR117: 0 | BS117: 0 | BT117: 0 | BU117: 592 | BV117: 396 | BW117: 206 | BX117: 0 | BY117: 52 | BZ117: 352 | CA117: 248 | CB117: 0 | CC117: 0 | CD117: 0 | CE117: 0 | CF117: 0 | CG117: 0 | CH117: 0 | CI117: 0 | CJ117: 0 | CK117: 0 | CL117: 0 | CM117: 0 | CN117: 0 | CO117: 0 | CP117: 0 | CQ117: 0 | CR117: 0 | CS117: 0 | CT117: 0 | CU117: 0 | CV117: 0 | CW117: 0 | CX117: 0 | CY117: 0 | CZ117: 0 | DA117: 0 | DB117: 0 | DC117: 0 | DD117: 0 | DE117: 0 | DF117: 0 | DG117: 0 | DH117: 0 | DI117: 0 | DJ117: 0 | DK117: 0 | DL117: 0 | DM117: 0 | DN117: 0 | DO117: 0 | DP117: 0 | DQ117: 0 | DR117: 0 | DS117: 0 | DT117: 0 | DU117: 0 | DV117: 0 | DW117: 0 | DX117: 0 | DY117: 0 | DZ117: 0 | EA117: =SUM(EA96:EA114) -> 0 | EB117: 0 | EC117: 0 | ED117: 0 | EE117: 812 | EF117: 938 | EG117: 0 | EH117: 0 | EI117: 0 | EJ117: 0 | EK117: 2 | EL117: 0 | EM117: 0 | EN117: 0 | EO117: 0 | EP117: 0 | EQ117: 0 | ER117: 0 | ES117: 0 | ET117: 0 | EU117: 0 | EV117: 0 | EW117: 0 | EX117: 0 | EY117: 0 | EZ117: 0 | FA117: 0 | FB117: 0 | FC117: 0 | FD117: 0 | FE117: 0 | FF117: 0 | FG117: 0 | FH117: 0 | FI117: 0 | FJ117: 0 | FK117: 0 | FL117: 0 | FM117: 0 | FN117: 0 | FO117: 0 | FP117: 0 | FQ117: 0 | FR117: 0 | FS117: 0 | FT117: 0 | FU117: 0 | FV117: 0 | FW117: 0 | FX117: 0 | FY117: 0 | FZ117: 0 | GA117: 0 | GB117: 0 | GC117: 0 | GD117: 0 | GE117: 0 | GF117: 0 | GG117: 0 | GH117: 0 | GI117: 0 | GJ117: 0 | GK117: 0 | GL117: 0 | GM117: =SUM(GM96:GM114) -> 0 | GN117: 0 | GO117: 0 | GP117: 0 | GQ117: 0 | GR117: 0 | GS117: 0 | GT117: 0 | GU117: 0 | GV117: 0 | GW117: 0 | GX117: 0 | GY117: 0 | GZ117: 0 | HA117: 0 | HB117: 0 | HC117: 0 | HD117: 0 | HE117: 0 | HF117: 0 | HG117: 0 | HH117: 0 | HI117: 0 | HJ117: 0 | HK117: 0 | HL117: 0 | HM117: 0 | HN117: 0 | HO117: 0 | HP117: 0 | HQ117: 0 | HR117: 0 | HS117: 0 | HT117: 0 | HU117: 0 | HV117: 0 | HW117: 0 | HX117: 0
A118: =CONCATENATE(A99,"-",A100,"-",A101,"-",A102,"-",A103,"-",A104,"-",A105,"-",A106,"-",A107,"-",A108,"-",A109,"-",A110) -> 1-2-3-Total--------
B119: BAS001 | C119: BAS002 | D119: BAS003 | E119: BAS004 | F119: BAS005 | G119: BAS006 | H119: BAS007 | I119: BAS008 | J119: BAS009 | K119: BAS010 | L119: BAS011 | M119: BAS012 | N119: BAS013 | O119: BAS014 | P119: BAS015 | Q119: BAS016 | R119: BAS017 | S119: BAS018 | T119: BAS019 | U119: BAS020 | V119: BAS021 | W119: BAS022 | X119: BAS023 | Y119: BAS024 | Z119: BAS025 | AA119: BAS026 | AB119: BAS027 | AC119: BAS028 | AD119: BAS029 | AE119: BAS030 | AF119: BAS031 | AG119: BAS032 | AH119: BAS033 | AI119: BAS034 | AJ119: BAS035 | AK119: BAS036 | AL119: BAS037 | AM119: BAS038 | AN119: BAS039 | AO119: BAS040 | AP119: BAS041 | AQ119: BAS042 | AR119: BAS043 | AS119: BAS044 | AT119: BAS045 | AU119: BAS046 | AV119: BAS047 | AW119: BAS048 | AX119: BAS049 | AY119: BAS050 | AZ119: BAS051 | BA119: BAS052 | BB119: BAS053 | BC119: BAS054 | BD119: BAS055 | BE119: BAS056 | BF119: BAS057 | BG119: BAS058 | BH119: BAS059 | BI119: BAS060 | BJ119: BAS061 | BK119: BAS062 | BL119: BAS063 | BM119: BAS064 | BN119: BAS065 | BO119: BAS066 | BP119: BAS067 | BQ119: BAS068 | BR119: BAS069 | BS119: BAS070 | BT119: BAS071 | BU119: BAS072 | BV119: BAS073 | BW119: BAS074 | BX119: BAS075 | BY119: BAS076 | BZ119: BAS077 | CA119: BAS078 | CB119: BAS079 | CC119: BAS080 | CD119: BAS081 | CE119: BAS082 | CF119: BAS083 | CG119: BAS084 | CH119: BAS085 | CI119: BAS086 | CJ119: BAS087 | CK119: BAS088 | CL119: BAS089 | CM119: BAS090 | CN119: BAS091 | CO119: BAS092 | CP119: BAS093 | CQ119: BAS094 | CR119: BAS095 | CS119: BAS096 | CT119: BAS097 | CU119: BAS098 | CV119: BAS099 | CW119: BAS100 | CX119: BAS101 | CY119: BAS102 | CZ119: BAS103 | DA119: BAS104 | DB119: BAS105 | DC119: BAS106 | DD119: BAS107 | DE119: BAS108 | DF119: BAS109 | DG119: BAS110 | DH119: BAS111 | DI119: BAS112 | DJ119: BAS113 | DK119: BAS114 | DL119: BAS115 | DM119: BAS116 | DN119: BAS117 | DO119: BAS118 | DP119: BAS119 | DQ119: BAS120 | DR119: BAS121 | DS119: BAS122 | DT119: BAS123 | DU119: BAS124 | DV119: BAS125 | DW119: BAS126 | DX119: BAS127 | DY119: BAS128 | DZ119: BAS129 | EA119: BAS130 | EB119: BAS131 | EC119: BAS132 | ED119: BAS133 | EE119: BAS134 | EF119: BAS135 | EG119: BAS136 | EH119: BAS137 | EI119: BAS138 | EJ119: BAS139 | EK119: BAS140 | EL119: BAS141 | EM119: BAS142 | EN119: BAS143 | EO119: BAS144 | EP119: BAS145 | EQ119: BAS146 | ER119: BAS147 | ES119: BAS148 | ET119: BAS149 | EU119: BAS150 | EV119: BAS151 | EW119: BAS152 | EX119: BAS153 | EY119: BAS154 | EZ119: BAS155 | FA119: BAS156 | FB119: BAS157 | FC119: BAS158 | FD119: BAS159 | FE119: BAS160 | FF119: BAS161 | FG119: BAS162 | FH119: BAS163 | FI119: BAS164 | FJ119: BAS165 | FK119: BAS166 | FL119: BAS167 | FM119: BAS168 | FN119: BAS169 | FO119: BAS170 | FP119: BAS171 | FQ119: BAS172 | FR119: BAS173 | FS119: BAS174 | FT119: BAS175 | FU119: BAS176 | FV119: BAS177 | FW119: BAS178 | FX119: BAS179 | FY119: BAS180 | FZ119: BAS181 | GA119: BAS182 | GB119: BAS183 | GC119: BAS184 | GD119: BAS185 | GE119: BAS186 | GF119: BAS187 | GG119: BAS188 | GH119: BAS189 | GI119: BAS190 | GJ119: BAS191 | GK119: BAS192 | GL119: BAS193 | GM119: BAS194 | GN119: BAS195 | GO119: BAS196 | GP119: BAS197 | GQ119: BAS198 | GR119: BAS199 | GS119: BAS200 | GT119: BAS201 | GU119: BAS202 | GV119: BAS203 | GW119: BAS204 | GX119: BAS205 | GY119: BAS206 | GZ119: BAS207 | HA119: BAS208 | HB119: BAS209 | HC119: BAS210 | HD119: BAS211 | HE119: BAS212 | HF119: BAS213 | HG119: BAS214 | HH119: BAS215 | HI119: BAS216 | HJ119: BAS217 | HK119: BAS218 | HL119: BAS219 | HM119: BAS220 | HN119: BAS221 | HO119: BAS222 | HP119: BAS223 | HQ119: BAS224 | HR119: BAS225 | HS119: BAS226 | HT119: BAS227 | HU119: BAS228 | HV119: BAS229 | HW119: BAS230
B120: =IF(B119=B98,"SI","NO") -> SI | C120: =IF(C119=C98,"SI","NO") -> SI | D120: SI | E120: SI | F120: SI | G120: SI | H120: SI | I120: SI | J120: SI | K120: SI | L120: SI | M120: SI | N120: SI | O120: SI | P120: SI | Q120: SI | R120: SI | S120: SI | T120: SI | U120: SI | V120: SI | W120: SI | X120: SI | Y120: SI | Z120: SI | AA120: SI | AB120: SI | AC120: SI | AD120: SI | AE120: SI | AF120: SI | AG120: SI | AH120: SI | AI120: SI | AJ120: SI | AK120: SI | AL120: SI | AM120: SI | AN120: SI | AO120: SI | AP120: SI | AQ120: SI | AR120: SI | AS120: SI | AT120: SI | AU120: SI | AV120: SI | AW120: SI | AX120: SI | AY120: SI | AZ120: SI | BA120: SI | BB120: SI | BC120: SI | BD120: SI | BE120: SI | BF120: SI | BG120: SI | BH120: SI | BI120: SI | BJ120: SI | BK120: SI | BL120: SI | BM120: SI | BN120: SI | BO120: =IF(BO119=BO98,"SI","NO") -> SI | BP120: SI | BQ120: SI | BR120: SI | BS120: SI | BT120: SI | BU120: SI | BV120: SI | BW120: SI | BX120: SI | BY120: SI | BZ120: SI | CA120: SI | CB120: SI | CC120: SI | CD120: SI | CE120: SI | CF120: SI | CG120: SI | CH120: SI | CI120: SI | CJ120: SI | CK120: SI | CL120: SI | CM120: SI | CN120: SI | CO120: SI | CP120: SI | CQ120: SI | CR120: SI | CS120: SI | CT120: SI | CU120: SI | CV120: SI | CW120: SI | CX120: SI | CY120: SI | CZ120: SI | DA120: SI | DB120: SI | DC120: SI | DD120: SI | DE120: SI | DF120: SI | DG120: SI | DH120: SI | DI120: SI | DJ120: SI | DK120: SI | DL120: SI | DM120: SI | DN120: SI | DO120: SI | DP120: SI | DQ120: SI | DR120: SI | DS120: SI | DT120: SI | DU120: SI | DV120: SI | DW120: SI | DX120: SI | DY120: SI | DZ120: SI | EA120: =IF(EA119=EA98,"SI","NO") -> SI | EB120: SI | EC120: SI | ED120: SI | EE120: SI | EF120: SI | EG120: SI | EH120: SI | EI120: SI | EJ120: SI | EK120: SI | EL120: SI | EM120: SI | EN120: SI | EO120: SI | EP120: SI | EQ120: SI | ER120: SI | ES120: SI | ET120: SI | EU120: SI | EV120: SI | EW120: SI | EX120: SI | EY120: SI | EZ120: SI | FA120: SI | FB120: SI | FC120: SI | FD120: SI | FE120: SI | FF120: SI | FG120: SI | FH120: SI | FI120: SI | FJ120: SI | FK120: SI | FL120: SI | FM120: SI | FN120: SI | FO120: SI | FP120: SI | FQ120: SI | FR120: SI | FS120: SI | FT120: SI | FU120: SI | FV120: SI | FW120: SI | FX120: SI | FY120: SI | FZ120: SI | GA120: SI | GB120: SI | GC120: SI | GD120: SI | GE120: SI | GF120: SI | GG120: SI | GH120: SI | GI120: SI | GJ120: SI | GK120: SI | GL120: SI | GM120: =IF(GM119=GM98,"SI","NO") -> SI | GN120: SI | GO120: SI | GP120: SI | GQ120: SI | GR120: SI | GS120: SI | GT120: SI | GU120: SI | GV120: SI | GW120: SI | GX120: SI | GY120: SI | GZ120: SI | HA120: SI | HB120: SI | HC120: SI | HD120: SI | HE120: SI | HF120: SI | HG120: SI | HH120: SI | HI120: SI | HJ120: SI | HK120: SI | HL120: SI | HM120: SI | HN120: SI | HO120: SI | HP120: SI | HQ120: SI | HR120: SI | HS120: SI | HT120: SI | HU120: SI | HV120: SI | HW120: SI
A124: Poblacion
A125: anno | B125: 2025
A126: cod_red | B126: 03
A127: codmic | B127: (Todas)
A128: cod_prov | B128: (Todas)
A129: coddist | B129: (Todas)
A130: cod_estab | B130: (Todas)
A131: cod_eje | B131: (Todas)
A132: sector | B132: (Todas)
A134: Valores
A135: t_0 | B135: t_1 | C135: t_2 | D135: t_3 | E135: t_4 | F135: t_5_11 | G135: f_10_49 | H135: t_2_4 | I135: adoles | J135: joven | K135: m_10_11 | L135: m_12_17 | M135: m_18_29 | N135: m_30_59 | O135: m_60_99 | P135: t_30_49 | Q135: adulto | R135: t_50_59 | S135: adulmy | T135: f_10_11 | U135: f_12_17 | V135: f_18_29 | W135: f_30_49
A136: 0 | B136: 0 | C136: 0 | D136: 0 | E136: 0 | F136: 0 | G136: 0 | H136: 0 | I136: 0 | J136: 0 | K136: 0 | L136: 0 | M136: 0 | N136: 0 | O136: 0 | P136: 0 | Q136: 0 | R136: 0 | S136: 0 | T136: 0 | U136: 0 | V136: 0 | W136: 0
A145: Metas
A146: anno | B146: 2025
A147: cod_red | B147: 03
A148: codmic | B148: (Todas)
A149: cod_prov | B149: (Todas)
A150: coddist | B150: (Todas)
A151: cod_estab | B151: (Todas)
A152: cod_eje | B152: (Todas)
A153: sector | B153: (Todas)
A155: Valores
A156: rn | B156: m1a | C156: a1 | D156: a2 | E156: a3 | F156: a4 | G156: a511
A157: 1673 | B157: 1833 | C157: 1842 | D157: 2093 | E157: 233 | F157: 1940 | G157: 0

Sheet INFORME
B1: GERENCIA REGIONAL DE SALUD CUSCO
B2: DIRECCION DE ESTADISTICA E INFORMATICA Y TELECOMUNICACION
B4: INFORME MENSUAL ESTRATEGIA SANITARIA DE INMUNIZACIONES
B6: GERESA | D6: ESTABLECIMIENTO | H6: PROVINCIA
B7: CUSCO | D7: =+TABLAS!O11 ->  | H7: =+TABLAS!O12 -> 
B9: RED DE SALUD | D9: SECTOR | H9: DISTRITO
B10: =+TABLAS!O12 ->  | D10: =+TABLAS!O15 ->  | H10: =+TABLAS!O13 -> 
B12: MICRO RED | D12: EJECUTORA | H12: MES | I12: =+TABLAS!N26 -> ENE - MAR | K12: =+TABLAS!N20 -> 3
B13: =+TABLAS!O10 ->  | D13: =+TABLAS!O14 ->  | H13: AÑO | I13: =+TABLAS!I17 -> 2025
I14: =IF(K12=1,MID(D7,1,9)&"_"&MID(D7,13,20)&"_"&MID(I12,1,3)&"_"&I13,MID(D7,1,9)&"_"&MID(D7,13,20)&"_"&MID(I12,1,3)&"_"&MID(I12,7,3)&"_"&I13) -> __ENE_MAR_2025
B16: 1.-Menores de 1 Año | C16: =+GETPIVOTDATA(" rn",TABLAS!$A$155) -> 1673
B17: Tipo de Vacuna | C17: POBLACION
C18: Población < 1 año Program. | D18: Dosis Administradas | G18: Protegidos | I18: Oportunidad
D19: 1ra | E19: 2da | F19: 3ra. | G19: Total | H19: Cobert. | I19: Nº
A20: 1 | B20: BCG 100% A (24 Hr) | C20: =+GETPIVOTDATA(" m1a",TABLAS!$A$155) -> 1833 | D20: =+GETPIVOTDATA(" BAS001",TABLAS!$A$59) -> 328 | G20: =SUM(D20:D20) -> 328 | H20: =SUM(G20/$C$20)*100 -> 17.89416258
A21: =+A20+1 -> 2 | B21: BCG 100% B (28 Dias) | D21: =+GETPIVOTDATA(" BAS002",TABLAS!$A$59) -> 17 | G21: 17 | H21: =SUM(G21/$C$20)*100 -> 0.927441353
A22: =+A21+1 -> 3 | B22: BCG 100% C (1M A 11M meses) | D22: =+GETPIVOTDATA(" BAS003",TABLAS!$A$59) -> 6 | G22: 6 | H22: 0.3273322422
A23: 4 | B23: BCG 100% 1-5A | D23: =+GETPIVOTDATA(" BAS026",TABLAS!$A$59) -> 1 | G23: 1 | H23: 0.0545553737
A24: 5 | B24: Hepatitis Viral B (HVB)(*) 100% A (12Hr) | D24: =+GETPIVOTDATA(" BAS004",TABLAS!$A$59) -> 330 | G24: 330 | H24: 18.00327332
A25: 6 | B25: Hepatitis Viral B (HVB)(*) 100% A (24Hr) | D25: =+GETPIVOTDATA(" BAS005",TABLAS!$A$59) -> 330 | G25: 330 | H25: 18.00327332
A26: 7 | B26: Hepatitis Viral B (HVB)(*) 100% a menores de 7 dias | D26: =+GETPIVOTDATA(" BAS027",TABLAS!$A$59) -> 9 | G26: =+D26 -> 9 | H26: 0.4909983633
A27: 8 | B27: IPV 2 Y 4 y 6 Meses | D27: =+GETPIVOTDATA(" BAS006",TABLAS!$A$59) -> 387 | E27: =+GETPIVOTDATA(" BAS007",TABLAS!$A$59) -> 390 | F27: =+GETPIVOTDATA(" BAS028",TABLAS!$A$59) -> 348 | G27: =+F27 -> 348 | H27: 18.98527005
A28: 9 | B28: Antipolio 6meses | F28: =+GETPIVOTDATA(" BAS010",TABLAS!$A$59) -> 0 | G28: =SUM(F28) -> 0 | H28: 0
A29: 10 | B29: Antipolio esquema anterior 4 y 6 meses | E29: =+GETPIVOTDATA(" BAS009",TABLAS!$A$59) -> 0 | H29: 0
A30: 11 | B30: Pentavalente (HIB+Titranrix) (**) 100% | D30: =+GETPIVOTDATA(" BAS011",TABLAS!$A$59) -> 387 | E30: =+GETPIVOTDATA(" BAS012",TABLAS!$A$59) -> 387 | F30: =+GETPIVOTDATA(" BAS013",TABLAS!$A$59) -> 345 | G30: =SUM(F30) -> 345 | H30: 18.82160393
A31: 12 | B31: dt (Pediátrico) 1% (Reacción adversa a Penta) | E31: =+GETPIVOTDATA(" BAS014",TABLAS!$A$59) -> 0 | F31: =+GETPIVOTDATA(" BAS015",TABLAS!$A$59) -> 2 | G31: 2 | H31: 0.1091107474
A32: 13 | B32: HVB 1% (Reacción adversa a Penta) | E32: =+GETPIVOTDATA(" BAS016",TABLAS!$A$59) -> 0 | F32: =+GETPIVOTDATA(" BAS017",TABLAS!$A$59) -> 0 | G32: 0 | H32: 0
A33: 14 | B33: HiB 1% (Reacción adversa a Penta) | E33: =+GETPIVOTDATA(" BAS018",TABLAS!$A$59) -> 4 | F33: =+GETPIVOTDATA(" BAS019",TABLAS!$A$59) -> 0 | G33: 0 | H33: 0
A34: 15 | B34: Rotavirus 100% | D34: =+GETPIVOTDATA(" BAS020",TABLAS!$A$59) -> 383 | E34: =+GETPIVOTDATA(" BAS021",TABLAS!$A$59) -> 386 | G34: =SUM(E34) -> 386 | H34: =SUM(G34/$C$20)*100 -> 21.05837425
A35: 16 | B35: Neumococo (heptavalente) (**) 100% | D35: =+GETPIVOTDATA(" BAS022",TABLAS!$A$59) -> 387 | E35: =+GETPIVOTDATA(" BAS023",TABLAS!$A$59) -> 388 | G35: =SUM(E35) -> 388 | H35: 21.167485
A36: 17 | B36: Influenza solo Pediatrica 100% (***) | D36: =+GETPIVOTDATA(" BAS024",TABLAS!$A$59) -> 12 | E36: =+GETPIVOTDATA(" BAS025",TABLAS!$A$59) -> 14 | G36: =SUM(E36) -> 14 | H36: 0.7637752319
B37: poblacion en riesgo IPV 2,4 Y 6 MESES
B38: (*) La HVB de RN (Se administrará dentro de las 12horas de vida)
B39: (**) El PpR considera " Recien nacido con vacuna completa" aquel niño que recibio 1 dosis de vacuna BCG + 1 dosis de vacuna HVB de RN; para fines de monitoreo se realizara con el avance de la vacuna BCG.
B40: dt (Pediátrico) se administrara en casos que haya reacciones adversas a la vacuna penta.
B41: IPV (Vacuna Antipolio Inyectable), se administrarà al menor de un año nacido de madre portadora de VIH. en tres dosis, 2,4 y 6 meses,
B42: (**) El PpR considera al "niño <1a con vacuna completa" aquel niño que recibio: 3 dosis de penta + 3 dosis de APO + 2 dosis de rotavirus+ 2 dosis de neumococo+2 dosis de influenza; para fines de monitoreo se realizara con el avance de la tercera dosis de vacuna pentavalente.
B44: 2.- Niños de 1 año:
B45: Tipo de Vacuna | C45: Población 1 año Program. | D45: POBLACION
D46: DOSIS ADMINISTRADAS | H46: PROT | I46: Cob. (%) | J46: Oportunidad
D47: 1ra. | E47: 2da | F47: 3 era. | G47: DOSIS UNICA | J47: Nº | K47: Acum.
A48: 1 | B48: Neumococo 3° Dosis 100% | C48: =+GETPIVOTDATA(" a1",TABLAS!$A$155) -> 1842 | F48: =+GETPIVOTDATA(" BAS038",TABLAS!$A$59) -> 376 | H48: =SUM(F48) -> 376 | I48: =SUM(H48/$C$48)*100 -> 20.41259501
A49: =+A48+1 -> 2 | B49: VARICELA | G49: =+GETPIVOTDATA(" BAS057",TABLAS!$A$59) -> 355 | H49: =+G49 -> 355 | I49: =SUM(H49/$C$48)*100 -> 19.27252986
A50: =+A49+1 -> 3 | B50: Sarampión, Paperas Rubéola (SPR) * 100% | D50: =+GETPIVOTDATA(" BAS039",TABLAS!$A$59) -> 379 | E50: =+GETPIVOTDATA(" BAS041",TABLAS!$A$59) -> 415 | H50: =SUM(E50) -> 415 | I50: 22.52985885
A51: 4 | B51: Antiamarilica (AA) 15 meses)100% | G51: =+GETPIVOTDATA(" BAS040",TABLAS!$A$59) -> 430 | H51: =SUM(G51) -> 430 | I51: 23.3441911
A52: 5 | B52: Hepatitis Viral A (HVA) (15 meses) 100% | G52: =+GETPIVOTDATA(" BAS061",TABLAS!$A$59) -> 412 | H52: =+G52 -> 412 | I52: 22.3669924 | O52: falta codigo
A53: 6 | B53: DPT 1er Refuerzo (18 meses) 100% | D53: =+GETPIVOTDATA(" BAS042",TABLAS!$A$59) -> 407 | H53: =SUM(D53) -> 407 | I53: 22.09554832
A54: 7 | B54: IPV (APO) Refuerzo (18 meses) revisar DA - DDA | D54: =+GETPIVOTDATA(" BAS043",TABLAS!$A$59) -> 389 | H54: =SUM(D54) -> 389 | I54: 21.11834962
A55: 8 | B55: Influenza 100% | D55: =+GETPIVOTDATA(" BAS058",TABLAS!$A$59) -> 7 | G55: =+GETPIVOTDATA(" BAS059",TABLAS!$A$59) -> 0 | H55: =+G55 -> 0 | I55: 0
A56: 9 | B56: Pentavalente 5% | D56: =+GETPIVOTDATA(" BAS048",TABLAS!$A$59) -> 0 | E56: =+GETPIVOTDATA(" BAS049",TABLAS!$A$59) -> 3 | F56: =+GETPIVOTDATA(" BAS050",TABLAS!$A$59) -> 6 | H56: =SUM(F56) -> 6 | I56: 0.325732899
A57: 10 | B57: IPV | D57: =+GETPIVOTDATA(" BAS045",TABLAS!$A$59) -> 8 | E57: =+GETPIVOTDATA(" BAS046",TABLAS!$A$59) -> 9 | F57: =+GETPIVOTDATA(" BAS060",TABLAS!$A$59) -> 9 | H57: =+F57 -> 9 | I57: 0.4885993485
A58: 11 | B58: Neumococo 1° y 2° dosis 5% no Vacunados Anteriormente | D58: =+GETPIVOTDATA(" BAS036",TABLAS!$A$59) -> 2 | E58: =+GETPIVOTDATA(" BAS037",TABLAS!$A$59) -> 6 | H58: =SUM(E58) -> 6 | I58: 0.325732899
A59: 12 | B59: Antipolio | F59: =+GETPIVOTDATA(" BAS047",TABLAS!$A$59) -> 0 | I59: 0
A60: 13 | B60: dt (Pediátrico) 1% (Reacción adversa a Penta) | E60: =+GETPIVOTDATA(" BAS051",TABLAS!$A$59) -> 0 | F60: =+GETPIVOTDATA(" BAS052",TABLAS!$A$59) -> 0 | H60: =+F60 -> 0 | I60: 0
A61: 14 | B61: HVB 1% (Reacción adversa a Penta) | E61: =+GETPIVOTDATA(" BAS053",TABLAS!$A$59) -> 1 | F61: =+GETPIVOTDATA(" BAS054",TABLAS!$A$59) -> 0 | H61: =+F61 -> 0 | I61: 0
A62: 15 | B62: HiB 1% (Reacción adversa a Penta) | E62: =+GETPIVOTDATA(" BAS055",TABLAS!$A$59) -> 0 | F62: =+GETPIVOTDATA(" BAS056",TABLAS!$A$59) -> 0 | H62: =+F62 -> 0 | I62: 0
B64: (*) El PpR considera "niño de un año con vacuna completa" aquel niño que recibio: 1 dosis de SPR + 1 dosis de Neumococo+ 1 dosis de vacuna refuerzo DPT+ 1 dosis de influenza; para fines de monitoreo se realizara con el avance de vacuna neumococo.
B65: (**) A los 12 meses el niño recibe la tercera dosis de vacuna contra el neumococo; sin embargo si el niño no es captado antes del año de edad, recibirà la primera dosis al año y deberà recibir solamente dos dosis con un intervalo de 2 meses entre dosis.
B67: 3.- Niños de 2 años :
B68: Tipo de Vacuna | C68: Población 2 años Program. | D68: POBLACION
D69: DOSIS APLICADAS
D70: 1ra. | E70: 2da. | F70: 3 era. | G70: DU | H70: PROT | I70: Cob. (%)
A71: 1 | B71: Influenza 100% | C71: =+GETPIVOTDATA(" a2",TABLAS!$A$155) -> 2093 | G71: =+GETPIVOTDATA(" BAS068",TABLAS!$A$59) -> 5 | H71: =SUM(G71) -> 5 | I71: =SUM(H71/$C$71)*100 -> 0.2388915432
A72: =+A71+1 -> 2 | B72: Neumococo 5% (Comorbilidad) | D72: =+GETPIVOTDATA(" BAS069",TABLAS!$A$59) -> 0 | H72: =SUM(D72) -> 0 | I72: =SUM(H72/$C$71)*100 -> 0
A73: =+A72+1 -> 3 | B73: SPR | D73: =+GETPIVOTDATA(" BAS079",TABLAS!$A$59) -> 6 | E73: =+GETPIVOTDATA(" BAS080",TABLAS!$A$59) -> 20 | H73: =+E73 -> 20 | I73: 0.955566173
A74: 4 | B74: VARICELA | G74: =+GETPIVOTDATA(" BAS081",TABLAS!$A$59) -> 6 | H74: =+G74 -> 6 | I74: 0.2866698519
A75: 5 | B75: Antiamarilica (AA) 100% | G75: =+GETPIVOTDATA(" BAS070",TABLAS!$A$59) -> 11 | H75: =+G75 -> 11 | I75: 0.5255613951
A76: 6 | B76: DPT 1er Refuerzo (18 meses) 100% | D76: =+GETPIVOTDATA(" BAS083",TABLAS!$A$59) -> 17 | H76: 0 | I76: 0
A77: 7 | B77: IPV (APO) Refuerzo (18 meses) | D77: =+GETPIVOTDATA(" BAS084",TABLAS!$A$59) -> 13 | H77: =SUM(D77) -> 13 | I77: 0.6211180124
A78: 8 | B78: Pentavalente 5% | D78: =+GETPIVOTDATA(" BAS074",TABLAS!$A$59) -> 1 | E78: =+GETPIVOTDATA(" BAS075",TABLAS!$A$59) -> 1 | F78: =+GETPIVOTDATA(" BAS076",TABLAS!$A$59) -> 4 | H78: =SUM(F78) -> 4 | I78: 0.1911132346
A79: 9 | B79: IPV | D79: =+GETPIVOTDATA(" BAS071",TABLAS!$A$59) -> 3 | E79: =+GETPIVOTDATA(" BAS072",TABLAS!$A$59) -> 3 | F79: =+GETPIVOTDATA(" BAS082",TABLAS!$A$59) -> 2 | H79: =SUM(D79) -> 3 | I79: 0.1433349259
A80: 10 | B80: Neumococo 1° y 2° dosis 5% no Vacunados Anteriormente | D80: =+GETPIVOTDATA(" BAS085",TABLAS!$A$59) -> 0 | E80: =+GETPIVOTDATA(" BAS086",TABLAS!$A$59) -> 1 | H80: =+E80 -> 1 | I80: 0.04777830865
A81: 11 | B81: dt (Pediátrico) 1% (Reacción adversa a Penta) | E81: =+GETPIVOTDATA(" BAS077",TABLAS!$A$59) -> 0 | F81: =+GETPIVOTDATA(" BAS078",TABLAS!$A$59) -> 0 | H81: =SUM(F81) -> 0 | I81: 0
A82: 12 | B82: HVB 1% (Reacción adversa a Penta) | E82: =+GETPIVOTDATA(" BAS087",TABLAS!$A$59) -> 0 | F82: =+GETPIVOTDATA(" BAS088",TABLAS!$A$59) -> 0 | H82: =+F82 -> 0 | I82: 0
A83: 13 | B83: HiB 1% (Reacción adversa a Penta) | E83: =+GETPIVOTDATA(" BAS089",TABLAS!$A$59) -> 0 | F83: =+GETPIVOTDATA(" BAS090",TABLAS!$A$59) -> 0 | H83: =+F83 -> 0 | I83: 0
B85: Antipolio | C85: =SUM(C75) -> 0 | F85: =+GETPIVOTDATA(" BAS073",TABLAS!$A$59) -> 0 | G85: =+F85 -> 0 | H85: =SUM(G85/C85)*100 -> 
B86: Influenza 100% dosis unica | G86: =SUM(D86) -> 0 | H86: =SUM(G86/C86)*100 -> 
B89: (*) El PpR considera "niño de dos años con vacuna completa" aquel niño que no fue vacunado oportunamente y se le protege con 3 dosis de penta+ 3 dosis de APO+1 dosis de SPR + 2 dosis de neumococo + 1 dosis de vacuna contra la influenza. Para fines de monitoreo se realizara con el avance de vacuna contra la influenza
B91: 4.- Niños de 3 AÑOS años:
B92: Tipo de Vacuna | C92: Población 3 años Program. | D92: POBLACION
D93: DOSIS APLICADAS | O93: 2 años
D94: 1ra | E94: 2da | F94: 3 era. | G94: DU | H94: PROT | I94: Cob. (%) | O94: Influenza 100%
A95: 1 | B95: Influenza 5% (Comorbilidad) | C95: =+GETPIVOTDATA(" a3",TABLAS!$A$155) -> 233 | G95: =+GETPIVOTDATA(" BAS092",TABLAS!$A$59) -> 6 | H95: =SUM(G95) -> 6 | I95: =SUM(H95/$C$95)*100 -> 2.575107296 | O95: Neumococo 5% (Comorbilidad)
A96: =+A95+1 -> 2 | B96: Neumococo 5% (Comorbilidad) | D96: =+GETPIVOTDATA(" BAS093",TABLAS!$A$59) -> 4 | H96: =SUM(D96) -> 4 | I96: =SUM(H96/$C$95)*100 -> 1.716738197 | O96: SPR
A97: =+A96+1 -> 3 | B97: SPR | D97: =+GETPIVOTDATA(" BAS107",TABLAS!$A$59) -> 2 | E97: =+GETPIVOTDATA(" BAS108",TABLAS!$A$59) -> 8 | H97: =+E97 -> 8 | I97: 3.433476395 | O97: VARICELA
A98: 4 | B98: VARICELA | G98: =+GETPIVOTDATA(" BAS109",TABLAS!$A$59) -> 5 | H98: =+G98 -> 5 | I98: 2.145922747 | O98: Antiamarilica (AA) 100%
A99: 5 | B99: Antiamarilica (AA) 100% | G99: =+GETPIVOTDATA(" BAS094",TABLAS!$A$59) -> 6 | H99: =+G99 -> 6 | I99: 2.575107296 | O99: DPT 1er Refuerzo (18 meses) 100%
A100: 6 | B100: DPT 1er Refuerzo (18 meses) 100% | D100: =+GETPIVOTDATA(" BAS111",TABLAS!$A$59) -> 10 | H100: =SUM(D100) -> 10 | I100: 4.291845494 | O100: APO Refuerzo (18 meses)
A101: 7 | B101: IPV (APO) Refuerzo (18 meses) | D101: =+GETPIVOTDATA(" BAS112",TABLAS!$A$59) -> 4 | H101: =SUM(D101) -> 4 | I101: 1.716738197 | O101: Pentavalente 5%
A102: 8 | B102: Pentavalente 5% | D102: =+GETPIVOTDATA(" BAS098",TABLAS!$A$59) -> 0 | E102: =+GETPIVOTDATA(" BAS099",TABLAS!$A$59) -> 0 | F102: =+GETPIVOTDATA(" BAS100",TABLAS!$A$59) -> 5 | H102: =SUM(F102) -> 5 | I102: 2.145922747 | O102: IPV
A103: 9 | B103: IPV | D103: =+GETPIVOTDATA(" BAS095",TABLAS!$A$59) -> 1 | E103: =+GETPIVOTDATA(" BAS096",TABLAS!$A$59) -> 0 | F103: =+GETPIVOTDATA(" BAS103",TABLAS!$A$59) -> 0 | H103: =+F103 -> 0 | I103: 0 | O103: Neumococo 1° y 2° dosis 5% no Vacunados Anteriormente
A104: 10 | B104: Neumococo 1° y 2° dosis 5% no Vacunados Anteriormente | D104: =+GETPIVOTDATA(" BAS113",TABLAS!$A$59) -> 0 | E104: =+GETPIVOTDATA(" BAS114",TABLAS!$A$59) -> 0 | H104: =+E104 -> 0 | I104: 0 | O104: dt (Pediátrico) 1% (Reacción adversa a Penta)
A105: 11 | B105: dt (Pediátrico) 1% (Reacción adversa a Penta) | E105: =+GETPIVOTDATA(" BAS101",TABLAS!$A$59) -> 0 | F105: =+GETPIVOTDATA(" BAS102",TABLAS!$A$59) -> 0 | H105: =+F105 -> 0 | I105: 0 | O105: HVB 1% (Reacción adversa a Penta)
A106: 12 | B106: HVB 1% (Reacción adversa a Penta) | E106: =+GETPIVOTDATA(" BAS103",TABLAS!$A$59) -> 0 | F106: =+GETPIVOTDATA(" BAS104",TABLAS!$A$59) -> 0 | H106: =+F106 -> 0 | I106: 0 | O106: HiB 1% (Reacción adversa a Penta)
A107: 13 | B107: HiB 1% (Reacción adversa a Penta) | E107: =+GETPIVOTDATA(" BAS105",TABLAS!$A$59) -> 0 | F107: =+GETPIVOTDATA(" BAS106",TABLAS!$A$59) -> 0 | H107: =+F107 -> 0 | I107: 0
A108: 14 | B108: Antipolio | C108: =+C96 -> 0 | F108: =+GETPIVOTDATA(" BAS097",TABLAS!$A$59) -> 0 | I108: 0
A109: 15 | B109: Influenza 100% dosis unica | H109: =SUM(D109) -> 0 | I109: 0
B111: (*) El PpR considera "niño de tres años con vacuna completa" aquel niño que no fue vacunado oportunamente y se le protege con 3 dosis de penta+ 3 dosis de APO+1 dosis de SPR + 2 dosis de neumococo + 1 dosis de vacuna contra la influenza. Para fines de monitoreo se realizara con el avance de vacuna contra el neumococo.
B113: 5. Niños de 4 AÑOS
B114: Tipo de Vacuna | C114: Poblaciòn 4 años Program. | D114: POBLACION
D115: DOSIS APLICADAS
D116: 1ra | E116: 2da | F116: 3 era. | G116: DU | H116: Mensual | I116: Cob. (%)
A117: 1 | B117: DPT 2do Refuerzo 100% | C117: =+GETPIVOTDATA(" a4",TABLAS!$A$155) -> 1940 | E117: =+GETPIVOTDATA(" BAS137",TABLAS!$A$59) -> 409 | H117: =SUM(E117) -> 409 | I117: =SUM(H117/$C$117)*100 -> 21.08247423 | O117: 2 años
A118: =+A117+1 -> 2 | B118: Antipolio 2do Refuerzo 100% | E118: =+GETPIVOTDATA(" BAS138",TABLAS!$A$59) -> 356 | H118: =SUM(E118) -> 356 | I118: =SUM(H118/$C$117)*100 -> 18.35051546 | O118: Influenza 100%
A119: =+A118+1 -> 3 | B119: Influenza 5% | G119: =+GETPIVOTDATA(" BAS120",TABLAS!$A$59) -> 5 | H119: =SUM(G119) -> 5 | I119: 0.2577319588 | O119: Neumococo 5% (Comorbilidad)
A120: 4 | B120: Neumococo 5% | D120: =+GETPIVOTDATA(" BAS121",TABLAS!$A$59) -> 1 | H120: =SUM(D120) -> 1 | I120: 0.05154639175 | O120: SPR
A121: 5 | B121: SPR | D121: =+GETPIVOTDATA(" BAS135",TABLAS!$A$59) -> 4 | E121: =+GETPIVOTDATA(" BAS136",TABLAS!$A$59) -> 4 | H121: =SUM(E121) -> 4 | I121: 0.206185567 | O121: VARICELA
A122: 6 | B122: VARICELA niiños que no recibieron oportunamente la vacuna | G122: =+GETPIVOTDATA(" BAS140",TABLAS!$A$59) -> 41 | H122: =+G122 -> 41 | I122: 2.113402062 | O122: Antiamarilica (AA) 100%
A123: 7 | B123: Antiamarilica (AA) 100% | G123: =+GETPIVOTDATA(" BAS122",TABLAS!$A$59) -> 5 | H123: =SUM(G123) -> 5 | I123: 0.2577319588 | O123: DPT 1er Refuerzo (18 meses) 100%
A124: 8 | B124: DPT 1er Refuerzo (18 meses) 100% | D124: =+GETPIVOTDATA(" BAS141",TABLAS!$A$59) -> 409 | H124: =SUM(D124) -> 409 | I124: 21.08247423 | O124: APO Refuerzo (18 meses)
A125: 9 | B125: IPV (APO) Refuerzo (18 meses) | D125: =+GETPIVOTDATA(" BAS142",TABLAS!$A$59) -> 16 | H125: =SUM(D125) -> 16 | I125: 0.824742268 | O125: Pentavalente 5%
A126: 10 | B126: Pentavalente 5% | D126: =+GETPIVOTDATA(" BAS126",TABLAS!$A$59) -> 0 | E126: =+GETPIVOTDATA(" BAS127",TABLAS!$A$59) -> 0 | F126: =+GETPIVOTDATA(" BAS128",TABLAS!$A$59) -> 0 | H126: =SUM(F126) -> 0 | I126: 0 | O126: IPV
A127: 11 | B127: IPV | D127: =+GETPIVOTDATA(" BAS123",TABLAS!$A$59) -> 2 | E127: =+GETPIVOTDATA(" BAS124",TABLAS!$A$59) -> 0 | F127: =+GETPIVOTDATA(" BAS139",TABLAS!$A$59) -> 2 | H127: =+F127 -> 2 | I127: 0.1030927835 | O127: Neumococo 1° y 2° dosis 5% no Vacunados Anteriormente
A128: 12 | B128: Neumococo 1° y 2° dosis 5% no Vacunados Anteriormente | D128: =+GETPIVOTDATA(" BAS143",TABLAS!$A$59) -> 1 | E128: =+GETPIVOTDATA(" BAS144",TABLAS!$A$59) -> 0 | H128: =SUM(E128) -> 0 | I128: 0 | O128: dt (Pediátrico) 1% (Reacción adversa a Penta)
A129: 13 | B129: dt (Pediátrico) 1% (Reacción adversa a Penta) | E129: =+GETPIVOTDATA(" BAS129",TABLAS!$A$59) -> 0 | F129: =+GETPIVOTDATA(" BAS130",TABLAS!$A$59) -> 0 | H129: =SUM(F129) -> 0 | I129: 0 | O129: HVB 1% (Reacción adversa a Penta)
A130: 14 | B130: HVB 1% (Reacción adversa a Penta) | E130: =+GETPIVOTDATA(" BAS131",TABLAS!$A$59) -> 0 | F130: =+GETPIVOTDATA(" BAS132",TABLAS!$A$59) -> 0 | H130: =SUM(F130) -> 0 | I130: 0 | O130: HiB 1% (Reacción adversa a Penta)
A131: 15 | B131: HiB 1% (Reacción adversa a Penta) | E131: =+GETPIVOTDATA(" BAS133",TABLAS!$A$59) -> 0 | F131: =+GETPIVOTDATA(" BAS134",TABLAS!$A$59) -> 0 | H131: =SUM(F131) -> 0 | I131: 0
A132: 16 | B132: Antipolio | C132: =+C120 -> 0 | F132: =+GETPIVOTDATA(" BAS125",TABLAS!$A$59) -> 0 | H132: =SUM(F132) -> 0 | I132: =SUM(H132/C132)*100 -> 
B134: * Una dosis por única vez
B135: El PpR considera "niño de cuatro años con vacuna completa" aquel niño que fue vacunado con 1 dosis de influenza + 1 dosis de vacuna Antiamarilica + 1 dosis de refuerzo APO y 1 dosis de vacuna. Para fines de monitoreo se realizará con el avance del segundo refuerzo DPT
B137: 7. Niños de 05 a 11 AÑOS
B138: Tipo de Vacuna | C138: Poblaciòn 5-11 años Program. | D138: POBLACION
D139: DOSIS APLICADAS
D140: 1ra | E140: 2da | F140: 3 era. | G140: DU | H140: PROT | I140: Cob. (%) | O140: Neumococo (heptavalente) 5%
A141: 1 | B141: Neumococo 1% (con comorbilidades) | C141: =+GETPIVOTDATA(" a511",TABLAS!$A$155) -> 0 | D141: =+GETPIVOTDATA(" BAS149",TABLAS!$A$59) -> 1 | H141: =SUM(D141) -> 1 | I141: =IFERROR(SUM(H141/$C$141)*100,0) -> 0 | O141: Influenza 5% (***)
A142: =+A141+1 -> 2 | B142: Influenza | G142: =+GETPIVOTDATA(" BAS150",TABLAS!$A$59) -> 0 | H142: =SUM(G142) -> 0 | I142: =IFERROR(SUM(H142/$C$141)*100,0) -> 0 | O142: Pentavalente (hasta los 7 años)
A143: =+A142+1 -> 3 | B143: Pentavalente (5-7 años) | D143: =+GETPIVOTDATA(" BAS195",TABLAS!$A$59) -> 1 | E143: =+GETPIVOTDATA(" BAS196",TABLAS!$A$59) -> 1 | F143: =+GETPIVOTDATA(" BAS197",TABLAS!$A$59) -> 0 | H143: =+F143 -> 0 | I143: 0 | O143: DPT (hasta los 7 años)
A144: 4 | B144: DPT (5-7 años) 1% | E144: =+GETPIVOTDATA(" BAS198",TABLAS!$A$59) -> 16 | H144: =+E144 -> 16 | I144: 0 | O144: SPR
A145: 5 | B145: SPR (población en riesgo) 2% | G145: =+GETPIVOTDATA(" BAS151",TABLAS!$A$59) -> 1 | H145: =+G145 -> 1 | I145: 0 | O145: 90707
A146: 6 | B146: VPH (virus del Papilo,ma humano) 9-13A | G146: =+GETPIVOTDATA(" BAS152",TABLAS!$A$59) -> 406 | H146: =+G146 -> 406 | I146: =IFERROR(SUM(H146/$C$141)*100,0) -> 0 | O146: 90649 001 - DU | P146: solo debe ser 9 a 13 años
A147: 7 | B147: VPH (virus del Papilo,ma humano) 14-18A | G147: =+GETPIVOTDATA(" BAS153",TABLAS!$A$59) -> 469 | H147: =+G147 -> 469 | I147: =IFERROR(SUM(H147/$C$141)*100,0) -> 0
A148: 8 | B148: dT adulto (7 a 11 años) (Si no recibio la vacuna previamente) 0.005% | D148: =+GETPIVOTDATA(" BAS199",TABLAS!$A$59) -> 12 | E148: =+GETPIVOTDATA(" BAS200",TABLAS!$A$59) -> 6 | F148: =+GETPIVOTDATA(" BAS201",TABLAS!$A$59) -> 1 | H148: =+F148 -> 1 | I148: 0
B150: 9.- MUJERES EN EDAD FERTIL DE 10 A 49 AÑOS: DT ADULTO
B151: Grupo | C151: Población Program. Según Grupo | D151: POBLACION
D152: DOSIS APLICADAS
D153: DT(A) 1 | F153: DT(A)2 | H153: DT(A)3
D154: Mensual | E154: Cob.(%) | F154: Mensual | G154: Cob.(%) | H154: Mensual | I154: Cob.(%)
A155: 1 | B155: No Gestantes 10 a 11 años 15% | C155: =+GETPIVOTDATA(" f_10_11",TABLAS!$A$134) -> 0 | D155: =+GETPIVOTDATA(" BAS156",TABLAS!$A$59) -> 2 | E155: =+D155/C155*100 ->  | F155: =+GETPIVOTDATA(" BAS157",TABLAS!$A$59) -> 0 | G155: =+F155/C155*100 ->  | H155: =+GETPIVOTDATA(" BAS158",TABLAS!$A$59) -> 1 | I155: =+H155/C155*100 -> 
A156: =+A155+1 -> 2 | B156: No Gestantes 12 a 17 años 15% | C156: =+GETPIVOTDATA(" f_12_17",TABLAS!$A$134) -> 0 | D156: =+GETPIVOTDATA(" BAS159",TABLAS!$A$59) -> 32 | E156: =+D156/C156*100 ->  | F156: =+GETPIVOTDATA(" BAS160",TABLAS!$A$59) -> 12 | G156: =+F156/C156*100 ->  | H156: =+GETPIVOTDATA(" BAS161",TABLAS!$A$59) -> 6 | I156: =+H156/C156*100 -> 
A157: =+A156+1 -> 3 | B157: No Gestantes 18 a 29 años 15% | C157: =+GETPIVOTDATA(" f_18_29",TABLAS!$A$134) -> 0 | D157: =+GETPIVOTDATA(" BAS162",TABLAS!$A$59) -> 76 | F157: =+GETPIVOTDATA(" BAS163",TABLAS!$A$59) -> 55 | H157: =+GETPIVOTDATA(" BAS164",TABLAS!$A$59) -> 30
A158: 4 | B158: No Gestantes 30 a 49 años 15% | C158: =+GETPIVOTDATA(" f_30_49",TABLAS!$A$134) -> 0 | D158: =+GETPIVOTDATA(" BAS165",TABLAS!$A$59) -> 102 | F158: =+GETPIVOTDATA(" BAS166",TABLAS!$A$59) -> 62 | H158: =+GETPIVOTDATA(" BAS167",TABLAS!$A$59) -> 36
B159: Total Mujeres
A160: =+A158+1 -> 5 | B160: Niños 10 a 11 años | C160: =+GETPIVOTDATA(" m_10_11",TABLAS!$A$134) -> 0 | D160: =+GETPIVOTDATA(" BAS180",TABLAS!$A$59) -> 7 | E160: =SUM(D160/C160*100) ->  | F160: =+GETPIVOTDATA(" BAS181",TABLAS!$A$59) -> 6 | G160: =SUM(F160/C160)*100 ->  | H160: =+GETPIVOTDATA(" BAS182",TABLAS!$A$59) -> 0 | I160: =+H160/C160*100 -> 
A161: 6 | B161: Adolescente 12 a 17 años | C161: =+GETPIVOTDATA(" m_12_17",TABLAS!$A$134) -> 0 | D161: =+GETPIVOTDATA(" BAS183",TABLAS!$A$59) -> 35 | F161: =+GETPIVOTDATA(" BAS184",TABLAS!$A$59) -> 4 | H161: =+GETPIVOTDATA(" BAS185",TABLAS!$A$59) -> 4
A162: 7 | B162: Joven 18 a 29 años | C162: =+GETPIVOTDATA(" m_18_29",TABLAS!$A$134) -> 0 | D162: =+GETPIVOTDATA(" BAS186",TABLAS!$A$59) -> 300 | F162: =+GETPIVOTDATA(" BAS187",TABLAS!$A$59) -> 194 | H162: =+GETPIVOTDATA(" BAS188",TABLAS!$A$59) -> 77
A163: 8 | B163: Adulto 30 a 59 años | C163: =+GETPIVOTDATA(" m_30_59",TABLAS!$A$134) -> 0 | D163: =+GETPIVOTDATA(" BAS189",TABLAS!$A$59) -> 198 | F163: =+GETPIVOTDATA(" BAS190",TABLAS!$A$59) -> 132 | H163: =+GETPIVOTDATA(" BAS191",TABLAS!$A$59) -> 90
A164: 9 | B164: Adulto mayor de 60 a más | C164: =+GETPIVOTDATA(" m_60_99",TABLAS!$A$134) -> 0 | D164: =+GETPIVOTDATA(" BAS192",TABLAS!$A$59) -> 28 | F164: =+GETPIVOTDATA(" BAS193",TABLAS!$A$59) -> 11 | H164: =+GETPIVOTDATA(" BAS194",TABLAS!$A$59) -> 6
B165: Total Varoness | C165: =SUM(C160:C164) -> 0 | D165: =SUM(D161:D164) -> 561 | F165: =SUM(F161:F164) -> 341 | H165: =SUM(H160:H164) -> 177
B166: (*) El PpR considera "Atencion de Gestante reenfocada" aquella gestante que ademas de sus controles recibe su vacuna antitetanica. Se vacunara con vacuna dt adulto lo mas precozmente posible no existiendo contraindicacion con la edad gestacional, administrando la 1ª dosis en la primera consulta
B168: 9.- VACUNA HEPATITIS VIRAL B: (HvB)
B169: GRUPO POBLACIONAL | C169: POBLACION
C170: DOSIS APLICADAS
C171: 1ra | D171: 2da | E171: 3ra | F171: Total
A172: 1 | B172: Trabajadores de Salud | C172: =+GETPIVOTDATA(" BAS001",TABLAS!$A$97) -> 4 | D172: =+GETPIVOTDATA(" BAS002",TABLAS!$A$97) -> 5 | E172: =+GETPIVOTDATA(" BAS003",TABLAS!$A$97) -> 5 | F172: =SUM(C172:E172) -> 14
A173: =+A172+1 -> 2 | B173: Trabajadores Sexuales | C173: =+GETPIVOTDATA(" BAS004",TABLAS!$A$97) -> 0 | D173: =+GETPIVOTDATA(" BAS005",TABLAS!$A$97) -> 0 | E173: =+GETPIVOTDATA(" BAS006",TABLAS!$A$97) -> 0 | F173: =SUM(C173:E173) -> 0
A174: =+A173+1 -> 3 | B174: HSH | C174: =+GETPIVOTDATA(" BAS007",TABLAS!$A$97) -> 0 | D174: =+GETPIVOTDATA(" BAS008",TABLAS!$A$97) -> 0 | E174: =+GETPIVOTDATA(" BAS009",TABLAS!$A$97) -> 0 | F174: 0
A175: 4 | B175: Politransfundidos | F175: 0
A176: 5 | B176: Privados de Libertad | C176: =+GETPIVOTDATA(" BAS013",TABLAS!$A$97) -> 0 | D176: =+GETPIVOTDATA(" BAS014",TABLAS!$A$97) -> 0 | E176: =+GETPIVOTDATA(" BAS015",TABLAS!$A$97) -> 0 | F176: 0
A177: 6 | B177: Fuerzas Policiales y Militares | C177: =+GETPIVOTDATA(" BAS016",TABLAS!$A$97) -> 0 | D177: =+GETPIVOTDATA(" BAS017",TABLAS!$A$97) -> 8 | E177: =+GETPIVOTDATA(" BAS018",TABLAS!$A$97) -> 3 | F177: 11
A178: 7 | B178: Cruz Roja, Defensa Civil, Bomberos | C178: =+GETPIVOTDATA(" BAS019",TABLAS!$A$97) -> 0 | D178: =+GETPIVOTDATA(" BAS020",TABLAS!$A$97) -> 8 | E178: =+GETPIVOTDATA(" BAS021",TABLAS!$A$97) -> 0 | F178: 8
A179: 8 | B179: Estudiantes de Areas de Salud | C179: =+GETPIVOTDATA(" BAS022",TABLAS!$A$97) -> 1 | D179: =+GETPIVOTDATA(" BAS023",TABLAS!$A$97) -> 0 | E179: =+GETPIVOTDATA(" BAS024",TABLAS!$A$97) -> 0 | F179: 1
B180: TOTAL GRUPOS DE RIESGO | C180: =SUM(C172:C179) -> 5 | D180: =SUM(D172:D179) -> 21 | E180: =SUM(E172:E179) -> 8 | F180: =SUM(F172:F179) -> 34
A181: =+A179+1 -> 9 | B181: Niños de 5-11 años | C181: =+GETPIVOTDATA(" BAS025",TABLAS!$A$97) -> 0 | D181: =+GETPIVOTDATA(" BAS026",TABLAS!$A$97) -> 0 | E181: =+GETPIVOTDATA(" BAS027",TABLAS!$A$97) -> 0 | F181: 0
A182: 10 | B182: Adolescentes de 12 a 17 años | C182: =+GETPIVOTDATA(" BAS028",TABLAS!$A$97) -> 59 | D182: =+GETPIVOTDATA(" BAS029",TABLAS!$A$97) -> 16 | E182: =+GETPIVOTDATA(" BAS030",TABLAS!$A$97) -> 6 | F182: 81
A183: 11 | B183: Joven 18 a 29 años | C183: =+GETPIVOTDATA(" BAS031",TABLAS!$A$97) -> 443 | D183: =+GETPIVOTDATA(" BAS032",TABLAS!$A$97) -> 313 | E183: =+GETPIVOTDATA(" BAS033",TABLAS!$A$97) -> 167 | F183: 923
A184: 12 | B184: Adulto 30 a 59 años | C184: =+GETPIVOTDATA(" BAS034",TABLAS!$A$97) -> 308 | D184: =+GETPIVOTDATA(" BAS035",TABLAS!$A$97) -> 205 | E184: =+GETPIVOTDATA(" BAS036",TABLAS!$A$97) -> 137 | F184: 650
B185: TOTAL | C185: =SUM(C181:C184) -> 810 | D185: =SUM(D181:D184) -> 534 | E185: 310 | F185: 1654
B186: Hepatitis "B" | C186: =+GETPIVOTDATA(" BAS072",TABLAS!$A$97) -> 296 | D186: =+GETPIVOTDATA(" BAS073",TABLAS!$A$97) -> 198 | E186: =+GETPIVOTDATA(" BAS074",TABLAS!$A$97) -> 103 | F186: 597
B189: 10.- VACUNA CONTRA LA INFLUENZA ESTACIONAL | F189: 10.- VACUNA NEUMOCOCO
B190: GRUPO POBLACIONAL | C190: Poblaciòn Programada | D190: PROTEGIDOS | F190: GRUPO POBLACIONAL | H190: Poblaciòn Programada | I190: PROTEGIDOS
D191: 1ra | I191: 1ra
A192: 1 | B192: Niños de 5-11 años | C192: =+GETPIVOTDATA(" t_5_11",TABLAS!$A$134) -> 0 | D192: =+GETPIVOTDATA(" BAS037",TABLAS!$A$97) -> 0 | E192: =+A200+1 -> 9 | F192: Adolescentes de 12-17años | H192: =+C193 -> 0 | I192: =+GETPIVOTDATA(" BAS051",TABLAS!$A$97) -> 0
A193: =+A192+1 -> 2 | B193: Adolescentes de 12-17años | C193: =+GETPIVOTDATA(" adoles",TABLAS!$A$134) -> 0 | D193: =+GETPIVOTDATA(" BAS038",TABLAS!$A$97) -> 0 | E193: =+E192+1 -> 10 | F193: Joven de 18-29 años | H193: =+C194 -> 0 | I193: =+GETPIVOTDATA(" BAS052",TABLAS!$A$97) -> 11
A194: =+A193+1 -> 3 | B194: Joven de 18-29 años | C194: =+GETPIVOTDATA(" joven",TABLAS!$A$134) -> 0 | D194: =+GETPIVOTDATA(" BAS039",TABLAS!$A$97) -> 1 | E194: =+E193+1 -> 11 | F194: Adulto 30 a 59 años | H194: =+C195 -> 0 | I194: =+GETPIVOTDATA(" BAS053",TABLAS!$A$97) -> 28
A195: 4 | B195: Adulto 30 a 49 años | C195: =+GETPIVOTDATA(" t_30_49",TABLAS!$A$134) -> 0 | D195: =+GETPIVOTDATA(" BAS040",TABLAS!$A$97) -> 0 | E195: 12 | F195: Adulto Mayor 60 años a mas | H195: =+C197 -> 0 | I195: =+GETPIVOTDATA(" BAS054",TABLAS!$A$97) -> 112
A196: 5 | B196: Adulto 50 a 59 años | C196: =+GETPIVOTDATA(" t_50_59",TABLAS!$A$134) -> 0 | D196: =+GETPIVOTDATA(" BAS041",TABLAS!$A$97) -> 0 | F196: TOTAL | H196: =SUM(H192:H195) -> 0 | I196: =SUM(I192:I195) -> 151
A197: 6 | B197: Adulto Mayor 60 años a mas | C197: =+GETPIVOTDATA(" adulmy",TABLAS!$A$134) -> 0 | D197: =+GETPIVOTDATA(" BAS042",TABLAS!$A$97) -> 0
B198: TOTAL | C198: =SUM(C192:C197) -> 0 | D198: =SUM(D192:D197) -> 1 | F198: 10- VACUNA ANTIAMARILICA:(AA)
A199: =+A225+1 -> 7 | B199: Trabajadores de Salud | D199: =+GETPIVOTDATA(" BAS045",TABLAS!$A$97) -> 0 | F199: Grupo de Edad | H199: POBLACION AUTOCTONO
A200: 8 | B200: Persona Privadas de su Libertad | D200: =+GETPIVOTDATA(" BAS046",TABLAS!$A$97) -> 0 | H200: Pob. Prog. | I200: DOSIS APLICADAS
B201: TOTAl | D201: =SUM(D198:D200) -> 1 | I201: Mensual | J201: Cob.(%)
E202: =+E195+1 -> 13 | F202: De 2 a 4 Años | H202: =+GETPIVOTDATA(" t_2_4",TABLAS!$A$134) -> 0 | I202: =+GETPIVOTDATA(" BAS060",TABLAS!$A$97) -> 22 | J202: =SUM(I202/H202*100) -> 
E203: =+E202+1 -> 14 | F203: De 5 a 11 Años | H203: =+GETPIVOTDATA(" t_5_11",TABLAS!$A$134) -> 0 | I203: =+GETPIVOTDATA(" BAS061",TABLAS!$A$97) -> 11
E204: =+E203+1 -> 15 | F204: De 12 a 17 Años | H204: =+GETPIVOTDATA(" adoles",TABLAS!$A$134) -> 0 | I204: =+GETPIVOTDATA(" BAS062",TABLAS!$A$97) -> 52
E205: 16 | F205: De 18 a 29 Años | H205: =+GETPIVOTDATA(" joven",TABLAS!$A$134) -> 0 | I205: =+GETPIVOTDATA(" BAS063",TABLAS!$A$97) -> 420
E206: 17 | F206: De 30 a 59 Años | H206: =+GETPIVOTDATA(" adulto",TABLAS!$A$134) -> 0 | I206: =+GETPIVOTDATA(" BAS064",TABLAS!$A$97) -> 321
F207: TOTAL | H207: =SUM(H202:H206) -> 0 | I207: =SUM(I202:I206) -> 826
B209: G E S T A N T E
B210: 9.- MUJERES EN EDAD FERTIL DE 10 A 49 AÑOS: DT ADULTO - GESTANTE
B211: Grupo | C211: Población Program. Según Grupo | D211: POBLACION
D212: DOSIS APLICADAS
D213: DT(A) 1 | F213: DT(A)2 | H213: DT(A)3
D214: Mensual | E214: Cob.(%) | F214: Mensual | G214: Cob.(%) | H214: Mensual | I214: Cob.(%)
A215: 1 | B215: Gestantes 10 a 11 años 100% | C215: =+GETPIVOTDATA(" f_10_11",TABLAS!$A$134) -> 0 | D215: =+GETPIVOTDATA(" BAS168",TABLAS!$A$59) -> 0 | E215: =+D215/C215*100 ->  | F215: =+GETPIVOTDATA(" BAS169",TABLAS!$A$59) -> 0 | G215: =+F215/C215*100 ->  | H215: =+GETPIVOTDATA(" BAS170",TABLAS!$A$59) -> 0 | I215: =+H215/C215*100 -> 
A216: =+A215+1 -> 2 | B216: Gestantes 12 a 17 años 100% | C216: =+GETPIVOTDATA(" f_12_17",TABLAS!$A$134) -> 0 | D216: =+GETPIVOTDATA(" BAS171",TABLAS!$A$59) -> 3 | E216: =+D216/C216*100 ->  | F216: =+GETPIVOTDATA(" BAS172",TABLAS!$A$59) -> 0 | G216: =+F216/C216*100 ->  | H216: =+GETPIVOTDATA(" BAS173",TABLAS!$A$59) -> 0 | I216: =+H216/C216*100 -> 
A217: =+A216+1 -> 3 | B217: Gestantes 18 a 29 años 100% | C217: =+GETPIVOTDATA(" f_18_29",TABLAS!$A$134) -> 0 | D217: =+GETPIVOTDATA(" BAS174",TABLAS!$A$59) -> 10 | E217: =+D217/C217*100 ->  | F217: =+GETPIVOTDATA(" BAS175",TABLAS!$A$59) -> 6 | G217: =+F217/C217*100 ->  | H217: =+GETPIVOTDATA(" BAS176",TABLAS!$A$59) -> 5 | I217: =+H217/C217*100 -> 
A218: =+A217+1 -> 4 | B218: Gestantes 30 a 49 años 100% | C218: =+GETPIVOTDATA(" f_30_49",TABLAS!$A$134) -> 0 | D218: =+GETPIVOTDATA(" BAS177",TABLAS!$A$59) -> 6 | E218: =+D218/C218*100 ->  | F218: =+GETPIVOTDATA(" BAS178",TABLAS!$A$59) -> 4 | G218: =+F218/C218*100 ->  | H218: =+GETPIVOTDATA(" BAS179",TABLAS!$A$59) -> 1 | I218: =+H218/C218*100 -> 
B219: TOT GEST | C219: =SUM(C215:C218) -> 0 | D219: =SUM(D215:D218) -> 19 | E219: =+D219/C219*100 ->  | F219: =SUM(F215:F218) -> 10 | G219: =+F219/C219*100 ->  | H219: =SUM(H215:H218) -> 6 | I219: =+H219/C219*100 -> 
B221: 10.- VACUNA CONTRA LA INFLUENZA ESTACIONAL - GESTANTE
B222: GRUPO POBLACIONAL | C222: Poblaciòn Programada | D222: PROTEGIDOS
... 26 more rows

Sheet CIE_CPT (hidden)
B1: GERENCIA REGIONAL DE SALUD CUSCO
B2: DIRECCION DE ESTADISTICA E INFORMATICA Y TELECOMUNICACION
B4: INFORME MENSUAL ESTRATEGIA SANITARIA DE INMUNIZACIONES
B7: RED DE SALUD | F7: MICRO RED | J7: PROVINCIA
B10: ESTABLECIMIENTO | F10: DISTRITO
J11: AÑO | K11: 2024
J13: MES | K13: ENERO
B15: 1.-Menores de 1 Año
B16: Tipo de Vacuna | C16: CIE / CPT | D16: LAB | E16: POBLACION
E17: Población < 1 año Program. | F17: Dosis Administradas | I17: Protegidos | K17: Oportunidad
F18: 1ra | G18: 2da | H18: 3ra. | I18: Total | J18: Cobert. | K18: Nº
A19: 1 | B19: BCG 100% A (24 Hr) | C19: 90585 | F19: 1
A20: 2 | B20: BCG 100% B (28 Dias) | D20: 1 | F20: 1
A21: 3 | B21: BCG 100% C (1M A 11M meses) | F21: 1
A22: 4 | B22: BCG 100% 1-5A | F22: 1
A23: 5 | B23: Hepatitis Viral B (HVB)(*) 100% A (12Hr) | C23: 90744 | F23: 1
A24: 6 | B24: Hepatitis Viral B (HVB)(*) 100% A (24Hr) | D24: 1 | F24: 1
A25: 7 | B25: Hepatitis Viral B (HVB)(*) 100% a menores de 7 dias | F25: 1
A26: 8 | B26: IPV 2 Y 4 y 6 Meses | C26: 90713 | F26: 1 | G26: 2 | H26: 3
A27: 11 | B27: Pentavalente (HIB+Titranrix) (**) 100% | C27: 90722 | F27: 1 | G27: 2 | H27: 3
A28: 12 | B28: dt (Pediátrico) 1% (Reacción adversa a Penta) | C28: 90702 | G28: 2 | H28: 3
A29: 13 | B29: HVB 1% (Reacción adversa a Penta) | C29: 90744 | G29: 2 | H29: 3
A30: 14 | B30: HiB 1% (Reacción adversa a Penta) | C30: 90648 | G30: 2 | H30: 3
A31: 15 | B31: Rotavirus 100% | C31: 90681 | F31: 1 | G31: 2
A32: 16 | B32: Neumococo (heptavalente) (**) 100% | C32: 90670 | F32: 1 | G32: 2
A33: 17 | B33: Influenza solo Pediatrica 100% (***) | C33: 90657 | F33: 1 | G33: 2
B34: poblacion en riesgo IPV 2,4 Y 6 MESES
B41: 2.- Niños de 1 año:
B42: Tipo de Vacuna | C42: CIE / CPT | D42: LAB | E42: Población 1 año Program. | F42: POBLACION
F43: DOSIS ADMINISTRADAS | J43: PROT | K43: Cob. (%) | L43: Oportunidad
F44: 1ra. | G44: 2da | H44: 3 era. | I44: DOSIS UNICA | L44: Nº | M44: Acum.
A45: 1 | B45: Neumococo 3° Dosis 100% | C45: 90670 | H45: 3
A46: 2 | B46: VARICELA | C46: 90716 | I46: DU
A47: 3 | B47: Sarampión, Paperas Rubéola (SPR) * 100% | C47: 90707 | F47: 1 | G47: 2
A48: 4 | B48: Antiamarilica (AA) 15 meses)100% | C48: 90717 | I48: DU
A49: 5 | B49: Hepatitis Viral A (HVA) (15 meses) 100% | C49: 90633.01 | I49: DU | Q49: falta codigo
A50: 6 | B50: DPT 1er Refuerzo (18 meses) 100% | C50: 90701 | F50: 1
A51: 7 | B51: IPV (APO) Refuerzo (18 meses) revisar DA - DDA | C51: 90713 | F51: 1
A52: 8 | B52: Influenza 100% | C52: 90657 | F52: 1 | I52: DU
A53: 9 | B53: Pentavalente 5% | C53: 90722 | F53: 1 | G53: 2 | H53: 3
A54: 10 | B54: IPV | C54: 90713 | F54: 1 | G54: 2 | H54: 3
A55: 11 | B55: Neumococo 1° y 2° dosis 5% no Vac Anteriormente | C55: 90670 | F55: 1 | G55: 2
A56: 13 | B56: dt (Pediátrico) 1% (Reacción adversa a Penta) | C56: 90702 | G56: 2 | H56: 3
A57: 14 | B57: HVB 1% (Reacción adversa a Penta) | C57: 90744 | G57: 2 | H57: 3
A58: 15 | B58: HiB 1% (Reacción adversa a Penta) | C58: 90648 | G58: 2 | H58: 3
B62: 3.- Niños de 2 años :
B63: Tipo de Vacuna | C63: CIE / CPT | D63: LAB | E63: Población 2 años Program. | F63: POBLACION
F64: DOSIS APLICADAS
F65: 1ra. | G65: 2da. | H65: 3 era. | I65: DU | J65: PROT | K65: Cob. (%)
A66: 1 | B66: Influenza 100% | C66: =+C52 -> 90657 | I66: DU
A67: 2 | B67: Neumococo 5% (Comorbilidad) | C67: =+C55 -> 90670 | F67: 1
A68: 3 | B68: SPR | C68: =+C47 -> 90707 | F68: 1 | G68: 2
A69: 4 | B69: VARICELA | C69: =+C46 -> 90716 | I69: DU
A70: 5 | B70: Antiamarilica (AA) 100% | C70: =+C48 -> 90717 | I70: DU
A71: 6 | B71: DPT 1er Refuerzo (18 meses) 100% | C71: =+C50 -> 90701 | F71: 1
A72: 7 | B72: IPV (APO) Refuerzo (18 meses) | C72: =+C51 -> 90713 | F72: 1
A73: 8 | B73: Pentavalente 5% | C73: =+C53 -> 90722 | F73: 1 | G73: 2 | H73: 3
A74: 9 | B74: IPV | C74: =+C54 -> 90713 | F74: 1 | G74: 2 | H74: 3
A75: 10 | B75: Neumococo 1° y 2° dosis 5% no Vacunados Anteriormente | C75: =+C55 -> 90670 | F75: 1 | G75: 2
A76: 11 | B76: dt (Pediátrico) 1% (Reacción adversa a Penta) | C76: =+C56 -> 90702 | G76: 2 | H76: 3
A77: 12 | B77: HVB 1% (Reacción adversa a Penta) | C77: =+C57 -> 90744 | G77: 2 | H77: 3
A78: 13 | B78: HiB 1% (Reacción adversa a Penta) | C78: 90648 | G78: 2 | H78: 3
B81: 4.- Niños de 3 AÑOS años:
B82: Tipo de Vacuna | C82: CIE / CPT | D82: LAB | E82: Población 3 años Program. | F82: POBLACION
F83: DOSIS APLICADAS | Q83: 2 años
F84: 1ra | G84: 2da | H84: 3 era. | I84: DU | J84: PROT | K84: Cob. (%) | Q84: Influenza 100%
A85: 1 | B85: Influenza 5% (Comorbilidad) | C85: =+C66 -> 90657 | I85: DU | Q85: Neumococo 5% (Comorbilidad)
A86: 2 | B86: Neumococo 5% (Comorbilidad) | C86: =+C67 -> 90670 | F86: 1 | Q86: SPR
A87: 3 | B87: SPR | C87: 90707 | F87: 1 | G87: 2 | Q87: VARICELA
A88: 4 | B88: VARICELA | C88: 90716 | I88: DU | Q88: Antiamarilica (AA) 100%
A89: 5 | B89: Antiamarilica (AA) 100% | C89: 90717 | I89: DU | Q89: DPT 1er Refuerzo (18 meses) 100%
A90: 6 | B90: DPT 1er Refuerzo (18 meses) 100% | C90: 90701 | F90: 1 | Q90: APO Refuerzo (18 meses)
A91: 7 | B91: IPV (APO) Refuerzo (18 meses) | C91: 90713 | F91: 1 | Q91: Pentavalente 5%
A92: 8 | B92: Pentavalente 5% | C92: 90722 | F92: 1 | G92: 2 | H92: 3 | Q92: IPV
A93: 9 | B93: IPV | C93: 90713 | F93: 1 | G93: 2 | H93: 3 | Q93: Neumococo 1° y 2° dosis 5% no Vacunados Anteriormente
A94: 10 | B94: Neumococo 1° y 2° dosis 5% No Vac Anteriormente | C94: 90670 | F94: 1 | G94: 2 | Q94: dt (Pediátrico) 1% (Reacción adversa a Penta)
A95: 11 | B95: dt (Pediátrico) 1% (Reacción adversa a Penta) | C95: 90702 | G95: 2 | H95: 3 | Q95: HVB 1% (Reacción adversa a Penta)
A96: 12 | B96: HVB 1% (Reacción adversa a Penta) | C96: 90744 | G96: 2 | H96: 3 | Q96: HiB 1% (Reacción adversa a Penta)
A97: 13 | B97: HiB 1% (Reacción adversa a Penta) | C97: 90648 | G97: 2 | H97: 3
B99: (*) El PpR considera "niño de tres años con vacuna completa" aquel niño que no fue vacunado oportunamente y se le protege con 3 dosis de penta+ 3 dosis de APO+1 dosis de SPR + 2 dosis de neumococo + 1 dosis de vacuna contra la influenza. Para fines de monitoreo se realizara con el avance de vacuna contra el neumococo.
B101: 5. Niños de 4 AÑOS
B102: Tipo de Vacuna | C102: CIE / CPT | D102: LAB | E102: Poblaciòn 4 años Program. | F102: POBLACION
F103: DOSIS APLICADAS
F104: 1ra | G104: 2da | H104: 3 era. | I104: DU | J104: Mensual | K104: Cob. (%)
A105: 1 | B105: DPT 2do Refuerzo 100% | C105: 90701 | G105: 2 | Q105: 2 años
A106: 2 | B106: Antipolio 2do Refuerzo 100% | C106: 90712 | G106: 2 | Q106: Influenza 100%
A107: 3 | B107: Influenza 5% | C107: 90658 | I107: DU | Q107: Neumococo 5% (Comorbilidad)
A108: 4 | B108: Neumococo 5% | C108: 90670 | F108: 1 | Q108: SPR
A109: 5 | B109: SPR | C109: 90707 | F109: 1 | G109: 2 | Q109: VARICELA
A110: 6 | B110: VARICELA niiños no recibieron oportunamente vacuna | C110: 90716 | I110: DU | Q110: Antiamarilica (AA) 100%
A111: 7 | B111: Antiamarilica (AA) 100% | C111: 90717 | I111: DU | Q111: DPT 1er Refuerzo (18 meses) 100%
A112: 8 | B112: DPT 1er Refuerzo (18 meses) 100% | C112: 90701 | F112: 1 | Q112: APO Refuerzo (18 meses)
A113: 9 | B113: IPV (APO) Refuerzo (18 meses) | C113: =+C91 -> 90713 | F113: 1 | Q113: Pentavalente 5%
A114: 10 | B114: Pentavalente 5% | C114: 90723 | F114: 1 | G114: 2 | H114: 3 | Q114: IPV
A115: 11 | B115: IPV | C115: =+C93 -> 90713 | F115: 1 | G115: 2 | H115: 3 | Q115: Neumococo 1° y 2° dosis 5% no Vacunados Anteriormente
A116: 12 | B116: Neumococo 1° y 2° dosis 5% No Vac Anteriormente | C116: =+C94 -> 90670 | F116: 1 | G116: 2 | Q116: dt (Pediátrico) 1% (Reacción adversa a Penta)
A117: 13 | B117: dt (Pediátrico) 1% (Reacción adversa a Penta) | C117: =+C95 -> 90702 | G117: 2 | H117: 3 | Q117: HVB 1% (Reacción adversa a Penta)
A118: 14 | B118: HVB 1% (Reacción adversa a Penta) | C118: =+C96 -> 90744 | G118: 2 | H118: 3 | Q118: HiB 1% (Reacción adversa a Penta)
A119: 15 | B119: HiB 1% (Reacción adversa a Penta) | C119: 90648 | G119: 2 | H119: 3
A120: 16 | B120: Antipolio | E120: 0 | H120: 0 | J120: 0
B122: * Una dosis por única vez
B123: El PpR considera "niño de cuatro años con vacuna completa" aquel niño que fue vacunado con 1 dosis de influenza + 1 dosis de vacuna Antiamarilica + 1 dosis de refuerzo APO y 1 dosis de vacuna. Para fines de monitoreo se realizará con el avance del segundo refuerzo DPT
B125: 7. Niños de 05 a 11 AÑOS
B126: Tipo de Vacuna | C126: CIE / CPT | D126: LAB | E126: Poblaciòn 5-11 años Program. | F126: POBLACION
F127: DOSIS APLICADAS
F128: 1ra | G128: 2da | H128: 3 era. | I128: DU | J128: PROT | K128: Cob. (%) | Q128: Neumococo (heptavalente) 5%
A129: 1 | B129: Neumococo 1% (con comorbilidades) | C129: 90670 | F129: 1 | Q129: Influenza 5% (***)
A130: 2 | B130: Influenza | C130: 90658 | I130: DU | Q130: Pentavalente (hasta los 7 años)
A131: 3 | B131: Pentavalente (5-7 años) | C131: 90722 | F131: 1 | G131: 2 | H131: 3 | Q131: DPT (hasta los 7 años)
A132: 4 | B132: DPT (5-7 años) 1% | C132: 90701 | G132: 2 | Q132: SPR
A133: 5 | B133: SPR (población en riesgo) 2% | C133: 90707 | I133: DU | Q133: 90707
A134: 6 | B134: VPH (virus del Papilo,ma humano) 9-13A | C134: 90649 | I134: DU | Q134: 90649 001 - DU | R134: solo debe ser 9 a 13 años
A135: 7 | B135: VPH (virus del Papilo,ma humano) 14-18A | C135: 90649
A136: 8 | B136: dT adulto (7 a 11 años) (Si no recibio la vacuna previamente) 0.005% | C136: 90714 | F136: 1 | G136: 2 | H136: 3
B138: 9.- MUJERES EN EDAD FERTIL DE 10 A 49 AÑOS: DT ADULTO
B139: Grupo | C139: CIE / CPT | D139: LAB | E139: Población Program. Según Grupo | F139: POBLACION
F140: DOSIS APLICADAS
F141: DT(A) 1 | H141: DT(A)2 | J141: DT(A)3
F142: Mensual | G142: Cob.(%) | H142: Mensual | I142: Cob.(%) | J142: Mensual | K142: Cob.(%)
A143: 1 | B143: No Gestantes 10 a 11 años 15% | C143: 90714 | F143: 1 | H143: 2 | J143: 3
A144: 2 | B144: No Gestantes 12 a 17 años 15%
A145: 3 | B145: No Gestantes 18 a 29 años 15%
A146: 4 | B146: No Gestantes 30 a 49 años 15%
B147: Total Mujeres
A148: 5 | B148: Niños 10 a 11 años | C148: 90714 | F148: 1 | H148: 2 | J148: 3
A149: 6 | B149: Adolescente 12 a 17 años
A150: 7 | B150: Joven 18 a 29 años
A151: 8 | B151: Adulto 30 a 59 años
A152: 9 | B152: Adulto mayor de 60 a más
B153: Total Varoness
B154: (*) El PpR considera "Atencion de Gestante reenfocada" aquella gestante que ademas de sus controles recibe su vacuna antitetanica. Se vacunara con vacuna dt adulto lo mas precozmente posible no existiendo contraindicacion con la edad gestacional, administrando la 1ª dosis en la primera consulta
B156: 9.- VACUNA HEPATITIS VIRAL B: (HvB)
B157: GRUPO POBLACIONAL | C157: CIE / CPT | D157: LAB | E157: POBLACION
E158: DOSIS APLICADAS
E159: 1ra | F159: 2da | G159: 3ra | H159: Total
A160: 1 | B160: Trabajadores de Salud | C160: 90746 | D160: ST | E160: 1 | F160: 2 | G160: 3
A161: 2 | B161: Trabajadores Sexuales | D161: TS
A162: 3 | B162: HSH | D162: HSH
A163: 4 | B163: Politransfundidos
A164: 5 | B164: Privados de Libertad | D164: PPL
A165: 6 | B165: Fuerzas Policiales y Militares | D165: M,PNP
A166: 7 | B166: Cruz Roja, Defensa Civil, Bomberos | D166: BOM,DCI
A167: 8 | B167: Estudiantes de Areas de Salud | D167: EST
B168: TOTAL GRUPOS DE RIESGO
A169: 9 | B169: Niños de 5-11 años | C169: 90744 | E169: 1 | F169: 2 | G169: 3
A170: 10 | B170: Adolescentes de 12 a 17 años | C170: 9074_
A171: 11 | B171: Joven 18 a 29 años | C171: 90746
A172: 12 | B172: Adulto 30 a 59 años | C172: 90746
B173: TOTAL
B174: Hepatitis "B" | E174: 1115 | F174: 667 | G174: 430 | H174: 2212
B177: 10.- VACUNA CONTRA LA INFLUENZA ESTACIONAL | H177: 10.- VACUNA NEUMOCOCO
B178: GRUPO POBLACIONAL | C178: CIE / CPT | D178: LAB | E178: Poblaciòn Programada | F178: PROTEGIDOS | H178: GRUPO POBLACIONAL | J178: CIE / CPT | K178: LAB | L178: Poblaciòn Programada | M178: PROTEGIDOS
F179: 1ra | M179: 1ra
A180: 1 | B180: Niños de 5-11 años | G180: 9 | H180: Adolescentes de 12-17años
A181: 2 | B181: Adolescentes de 12-17años | G181: 10 | H181: Joven de 18-29 años
A182: 3 | B182: Joven de 18-29 años | G182: 11 | H182: Adulto 30 a 59 años
A183: 4 | B183: Adulto 30 a 49 años | G183: 12 | H183: Adulto Mayor 60 años a mas
A184: 5 | B184: Adulto 50 a 59 años | H184: TOTAL
A185: 6 | B185: Adulto Mayor 60 años a mas
B186: TOTAL | H186: 10- VACUNA ANTIAMARILICA:(AA)
A187: 7 | B187: Trabajadores de Salud | H187: Grupo de Edad | J187: CIE / CPT | K187: LAB | L187: POBLACION AUTOCTONO
A188: 8 | B188: Persona Privadas de su Libertad | L188: Pob. Prog. | M188: DOSIS APLICADAS
B189: TOTAL | M189: Mensual | N189: Cob.(%)
G190: 13 | H190: De 2 a 4 Años
G191: 14 | H191: De 5 a 11 Años
G192: 15 | H192: De 12 a 17 Años
G193: 16 | H193: De 18 a 29 Años
G194: 17 | H194: De 30 a 59 Años
H195: TOTAL
B197: G E S T A N T E
B198: 9.- MUJERES EN EDAD FERTIL DE 10 A 49 AÑOS: DT ADULTO - GESTANTE
B199: Grupo | E199: Población Program. Según Grupo | F199: POBLACION
F200: DOSIS APLICADAS
F201: DT(A) 1 | H201: DT(A)2 | J201: DT(A)3
F202: Mensual | G202: Cob.(%) | H202: Mensual | I202: Cob.(%) | J202: Mensual | K202: Cob.(%)
A203: 1 | B203: Gestantes 10 a 11 años 100%
A204: 2 | B204: Gestantes 12 a 17 años 100%
A205: 3 | B205: Gestantes 18 a 29 años 100%
A206: 4 | B206: Gestantes 30 a 49 años 100%
B207: TOT GEST
B209: 10.- VACUNA CONTRA LA INFLUENZA ESTACIONAL - GESTANTE
B210: GRUPO POBLACIONAL | E210: Poblaciòn Programada | F210: PROTEGIDOS
F211: 1ra
A212: 5 | B212: Gestantes | F212: 0
A213: 6 | B213: Puerperas | F213: 0
B215: 10.- VACUNA DTPA GESTANTE
B216: GRUPO POBLACIONAL | E216: Poblaciòn Programada | F216: PROTEGIDOS | G216: COB.
F217: 1ra
A218: 7 | B218: 10-11años | F218: 0
A219: 8 | B219: 12-17años | F219: 47
A220: 9 | B220: 18-29años | F220: 340
A221: 10 | B221: 30-59años | F221: 225
B222: TOTAL | F222: 612
B224: 11- VACUNA CONTRA EL COVID-19
B225: GRUPO ETARIO | E225: Población Programada | F225: 1ra | H225: 2da | J225: 3ra | L225: 4to | N225: DOSIS BIVALENTE
F226: N | G226: % | H226: N | I226: % | J226: N | K226: % | L226: N | N226: N
A227: 1 | B227: 06 a 11 meses | F227: 126 | H227: 47 | J227: 0 | L227: 0 | N227: 0
A228: 2 | B228: 01 a 04 años | F228: 264 | H228: 152 | J228: 0 | L228: 0 | N228: 46
A229: 3 | B229: 05 a 11 años | F229: 87 | H229: 6 | J229: 0 | L229: 0 | N229: 170
A230: 4 | B230: 12 a 17 años | F230: 14 | H230: 3 | J230: 3 | L230: 0 | N230: 229
... 8 more rows

Sheet PAI_MENOR_1A
A2: ANNO | B2: (Todas)
B4: Valores
A5: MES | B5: MetaRn | C5: MetaM1 | D5: 1.BCG_24_H | E5: 2.BCG_28_D | F5: 3.BCG_1M_11M | G5: 4BCG_1_5A | H5: 5.HVB_12Hr | I5: 6.HVB_24Hr | J5: 7.HVB_M7_D | K5: 8.1_IPV_2_6M | L5: 8.2_IPV_2_6M | M5: 8.3_IPV_2_6M | N5: 11.1_Penta | O5: 11.2_Penta | P5: 11.3_Penta | Q5: 12.2_DT | R5: 12.3_DT | S5: 13.2_HVB | T5: 13.3_HVB | U5: 14.2_HiB | V5: 14.3_HiB | W5: 15.1_Rotavirus | X5: 15.2_Rotavirus | Y5: 16.1_Neumococo | Z5: 16.2_Neumococo | AA5: 17.1_Influenza | AB5: 17.2_Influenza
A6: 1 | B6: 0 | C6: 0 | D6: 113 | E6: 5 | F6: 0 | G6: 1 | H6: 113 | I6: 113 | J6: 4 | K6: 121 | L6: 140 | M6: 107 | N6: 120 | O6: 139 | P6: 107 | Q6: 0 | R6: 0 | S6: 0 | T6: 0 | U6: 4 | V6: 0 | W6: 121 | X6: 140 | Y6: 121 | Z6: 139 | AA6: 9 | AB6: 13
A7: 0 | B7: 21803 | C7: 21123 | D7: 0 | E7: 0 | F7: 0 | G7: 0 | H7: 0 | I7: 0 | J7: 0 | K7: 0 | L7: 0 | M7: 0 | N7: 0 | O7: 0 | P7: 0 | Q7: 0 | R7: 0 | S7: 0 | T7: 0 | U7: 0 | V7: 0 | W7: 0 | X7: 0 | Y7: 0 | Z7: 0 | AA7: 0 | AB7: 0
A8: 2 | B8: 0 | C8: 0 | D8: 107 | E8: 3 | F8: 3 | G8: 0 | H8: 108 | I8: 108 | J8: 1 | K8: 130 | L8: 131 | M8: 100 | N8: 132 | O8: 129 | P8: 101 | Q8: 0 | R8: 1 | S8: 0 | T8: 0 | U8: 0 | V8: 0 | W8: 128 | X8: 130 | Y8: 132 | Z8: 130 | AA8: 1 | AB8: 0
A9: 3 | B9: 0 | C9: 0 | D9: 108 | E9: 9 | F9: 3 | G9: 0 | H9: 109 | I9: 109 | J9: 4 | K9: 136 | L9: 119 | M9: 141 | N9: 135 | O9: 119 | P9: 137 | Q9: 0 | R9: 1 | S9: 0 | T9: 0 | U9: 0 | V9: 0 | W9: 134 | X9: 116 | Y9: 134 | Z9: 119 | AA9: 2 | AB9: 1
A10: Total general | B10: 21803 | C10: 21123 | D10: 328 | E10: 17 | F10: 6 | G10: 1 | H10: 330 | I10: 330 | J10: 9 | K10: 387 | L10: 390 | M10: 348 | N10: 387 | O10: 387 | P10: 345 | Q10: 0 | R10: 2 | S10: 0 | T10: 0 | U10: 4 | V10: 0 | W10: 383 | X10: 386 | Y10: 387 | Z10: 388 | AA10: 12 | AB10: 14

Sheet PAI_1A
A2: ANNO | B2: (Todas)
B4: Valores
A5: MES | B5: Meta | C5: 1.3_NEU | D5: 2.DU_VARIC | E5: 3.1_SPR | F5: 3.2_SPR | G5: 4.DU_AMA | H5: 5.DU_HVA | I5: 6.1_DPT | J5: 7.1_IPV_APO | K5: 8.1_INFLU | L5: 8.DU_INFLU | M5: 9.1_PENTA | N5: 9.2_PENTA | O5: 9.3_PENTA | P5: 10.1_IPV | Q5: 10.2_IPV | R5: 10.3_IPV | S5: 11.1_NEUM | T5: 11.2_NEUM | U5: 13.2_DTP | V5: 13.3_DTP | W5: 14.2_HVB | X5: 14.3_HVB | Y5: 15.2_HIB | Z5: 15.3_HIB
A6: 1 | B6: 0 | C6: 138 | D6: 138 | E6: 137 | F6: 149 | G6: 157 | H6: 152 | I6: 152 | J6: 144 | K6: 6 | L6: 0 | M6: 0 | N6: 1 | O6: 1 | P6: 4 | Q6: 2 | R6: 2 | S6: 0 | T6: 1 | U6: 0 | V6: 0 | W6: 0 | X6: 0 | Y6: 0 | Z6: 0
A7: 0 | B7: 20581 | C7: 0 | D7: 0 | E7: 0 | F7: 0 | G7: 0 | H7: 0 | I7: 0 | J7: 0 | K7: 0 | L7: 0 | M7: 0 | N7: 0 | O7: 0 | P7: 0 | Q7: 0 | R7: 0 | S7: 0 | T7: 0 | U7: 0 | V7: 0 | W7: 0 | X7: 0 | Y7: 0 | Z7: 0
A8: 2 | B8: 0 | C8: 110 | D8: 110 | E8: 114 | F8: 135 | G8: 134 | H8: 129 | I8: 127 | J8: 122 | K8: 0 | L8: 0 | M8: 0 | N8: 1 | O8: 2 | P8: 2 | Q8: 1 | R8: 5 | S8: 1 | T8: 3 | U8: 0 | V8: 0 | W8: 0 | X8: 0 | Y8: 0 | Z8: 0
A9: 3 | B9: 0 | C9: 128 | D9: 107 | E9: 128 | F9: 131 | G9: 139 | H9: 131 | I9: 128 | J9: 123 | K9: 1 | L9: 0 | M9: 0 | N9: 1 | O9: 3 | P9: 2 | Q9: 6 | R9: 2 | S9: 1 | T9: 2 | U9: 0 | V9: 0 | W9: 1 | X9: 0 | Y9: 0 | Z9: 0
A10: Total general | B10: 20581 | C10: 376 | D10: 355 | E10: 379 | F10: 415 | G10: 430 | H10: 412 | I10: 407 | J10: 389 | K10: 7 | L10: 0 | M10: 0 | N10: 3 | O10: 6 | P10: 8 | Q10: 9 | R10: 9 | S10: 2 | T10: 6 | U10: 0 | V10: 0 | W10: 1 | X10: 0 | Y10: 0 | Z10: 0

Sheet PAI_2A
A1: ANNO | B1: (Todas)
A2: MES | B2: (Todas)
B4: Valores
A5: DESC_RED | B5: Meta | C5: 1.DU_INFLU | D5: 2.1_NEUM | E5: 3.1_SPR | F5: 3.2_SPR | G5: 4.DU_VARIC | H5: 5.DU_AMA | I5: 6.1_DPT | J5: 7.1_IPV_APO | K5: 8.1_PENTA | L5: 8.2_PENTA | M5: 8.3_PENTA | N5: 9.1_IPV | O5: 9.2_IPV | P5: 9.3_IPV | Q5: 10.1_NEUM_NVA | R5: 10.2_NEUM_NVA | S5: 11.1_DTP | T5: 11.2_DTP | U5: 12.1_HVB | V5: 12.2_HVB | W5: 13.1_HIB | X5: 13.2_HIB
A6: CANAS-CANCHIS-ESPINAR | B6: 3131 | C6: 0 | D6: 0 | E6: 0 | F6: 0 | G6: 0 | H6: 0 | I6: 0 | J6: 0 | K6: 0 | L6: 0 | M6: 0 | N6: 0 | O6: 0 | P6: 0 | Q6: 0 | R6: 0 | S6: 0 | T6: 0 | U6: 0 | V6: 0 | W6: 0 | X6: 0
A7: CHUMBIVILCAS | B7: 1159 | C7: 0 | D7: 0 | E7: 0 | F7: 0 | G7: 0 | H7: 0 | I7: 0 | J7: 0 | K7: 0 | L7: 0 | M7: 0 | N7: 0 | O7: 0 | P7: 0 | Q7: 0 | R7: 0 | S7: 0 | T7: 0 | U7: 0 | V7: 0 | W7: 0 | X7: 0
A8: CUSCO NORTE | B8: 8210 | C8: 0 | D8: 0 | E8: 0 | F8: 0 | G8: 0 | H8: 0 | I8: 0 | J8: 0 | K8: 0 | L8: 0 | M8: 0 | N8: 0 | O8: 0 | P8: 0 | Q8: 0 | R8: 0 | S8: 0 | T8: 0 | U8: 0 | V8: 0 | W8: 0 | X8: 0
A9: CUSCO SUR | B9: 6219 | C9: 0 | D9: 0 | E9: 0 | F9: 0 | G9: 0 | H9: 0 | I9: 0 | J9: 0 | K9: 0 | L9: 0 | M9: 0 | N9: 0 | O9: 0 | P9: 0 | Q9: 0 | R9: 0 | S9: 0 | T9: 0 | U9: 0 | V9: 0 | W9: 0 | X9: 0
A10: KIMBIRI PICHARI | B10: 1604 | C10: 0 | D10: 0 | E10: 0 | F10: 0 | G10: 0 | H10: 0 | I10: 0 | J10: 0 | K10: 0 | L10: 0 | M10: 0 | N10: 0 | O10: 0 | P10: 0 | Q10: 0 | R10: 0 | S10: 0 | T10: 0 | U10: 0 | V10: 0 | W10: 0 | X10: 0
A11: LA CONVENCION | B11: 2093 | C11: 5 | D11: 0 | E11: 6 | F11: 20 | G11: 6 | H11: 11 | I11: 17 | J11: 13 | K11: 1 | L11: 1 | M11: 4 | N11: 3 | O11: 3 | P11: 2 | Q11: 0 | R11: 1 | S11: 0 | T11: 0 | U11: 0 | V11: 0 | W11: 0 | X11: 0
A12: NO PERTENECE A NINGUNA RED | B12: 0 | C12: 0 | D12: 0 | E12: 0 | F12: 0 | G12: 0 | H12: 0 | I12: 0 | J12: 0 | K12: 0 | L12: 0 | M12: 0 | N12: 0 | O12: 0 | P12: 0 | Q12: 0 | R12: 0 | S12: 0 | T12: 0 | U12: 0 | V12: 0 | W12: 0 | X12: 0
A13: Total general | B13: 22416 | C13: 5 | D13: 0 | E13: 6 | F13: 20 | G13: 6 | H13: 11 | I13: 17 | J13: 13 | K13: 1 | L13: 1 | M13: 4 | N13: 3 | O13: 3 | P13: 2 | Q13: 0 | R13: 1 | S13: 0 | T13: 0 | U13: 0 | V13: 0 | W13: 0 | X13: 0

Sheet PAI_3A
A1: ANNO | B1: (Todas)
A2: MES | B2: (Todas)
B4: Valores
A5: DESC_RED | B5: Meta | C5: 1.DU_INFLU | D5: 2.1_NEUM | E5: 3.1_SPR | F5: 3.2_SPR | G5: 4.DU_VARIC | H5: 5.DU_AMA | I5: 6.1_DPT | J5: 7.1_APO(IPV) | K5: 8.1_PENTA | L5: 8.2_PENTA | M5: 8.3_PENTA | N5: 9.1_IPV | O5: 9.2_IPV | P5: 9.3_IPV | Q5: 10.1_NEUM_NVA | R5: 10.2_NEUM_NVA | S5: 11.1_DTp | T5: 11.2_DTp | U5: 12.1_HVB | V5: 12.2_HVB | W5: 13.1_HIB | X5: 13.2_HIB
A6: CANAS-CANCHIS-ESPINAR | B6: 391 | C6: 0 | D6: 0 | E6: 0 | F6: 0 | G6: 0 | H6: 0 | I6: 0 | J6: 0 | K6: 0 | L6: 0 | M6: 0 | N6: 0 | O6: 0 | P6: 0 | Q6: 0 | R6: 0 | S6: 0 | T6: 0 | U6: 0 | V6: 0 | W6: 0 | X6: 0
A7: CHUMBIVILCAS | B7: 236 | C7: 0 | D7: 0 | E7: 0 | F7: 0 | G7: 0 | H7: 0 | I7: 0 | J7: 0 | K7: 0 | L7: 0 | M7: 0 | N7: 0 | O7: 0 | P7: 0 | Q7: 0 | R7: 0 | S7: 0 | T7: 0 | U7: 0 | V7: 0 | W7: 0 | X7: 0
A8: CUSCO NORTE | B8: 1069 | C8: 0 | D8: 0 | E8: 0 | F8: 0 | G8: 0 | H8: 0 | I8: 0 | J8: 0 | K8: 0 | L8: 0 | M8: 0 | N8: 0 | O8: 0 | P8: 0 | Q8: 0 | R8: 0 | S8: 0 | T8: 0 | U8: 0 | V8: 0 | W8: 0 | X8: 0
A9: CUSCO SUR | B9: 739 | C9: 0 | D9: 0 | E9: 0 | F9: 0 | G9: 0 | H9: 0 | I9: 0 | J9: 0 | K9: 0 | L9: 0 | M9: 0 | N9: 0 | O9: 0 | P9: 0 | Q9: 0 | R9: 0 | S9: 0 | T9: 0 | U9: 0 | V9: 0 | W9: 0 | X9: 0
A10: KIMBIRI PICHARI | B10: 161 | C10: 0 | D10: 0 | E10: 0 | F10: 0 | G10: 0 | H10: 0 | I10: 0 | J10: 0 | K10: 0 | L10: 0 | M10: 0 | N10: 0 | O10: 0 | P10: 0 | Q10: 0 | R10: 0 | S10: 0 | T10: 0 | U10: 0 | V10: 0 | W10: 0 | X10: 0
A11: LA CONVENCION | B11: 233 | C11: 6 | D11: 4 | E11: 2 | F11: 8 | G11: 5 | H11: 6 | I11: 10 | J11: 4 | K11: 0 | L11: 0 | M11: 5 | N11: 1 | O11: 0 | P11: 0 | Q11: 0 | R11: 0 | S11: 0 | T11: 0 | U11: 0 | V11: 0 | W11: 0 | X11: 0
A12: NO PERTENECE A NINGUNA RED | B12: 0 | C12: 0 | D12: 0 | E12: 0 | F12: 0 | G12: 0 | H12: 0 | I12: 0 | J12: 0 | K12: 0 | L12: 0 | M12: 0 | N12: 0 | O12: 0 | P12: 0 | Q12: 0 | R12: 0 | S12: 0 | T12: 0 | U12: 0 | V12: 0 | W12: 0 | X12: 0
A13: Total general | B13: 2829 | C13: 6 | D13: 4 | E13: 2 | F13: 8 | G13: 5 | H13: 6 | I13: 10 | J13: 4 | K13: 0 | L13: 0 | M13: 5 | N13: 1 | O13: 0 | P13: 0 | Q13: 0 | R13: 0 | S13: 0 | T13: 0 | U13: 0 | V13: 0 | W13: 0 | X13: 0

Sheet PAI_4A
A2: ANNO | B2: (Todas)
B4: Valores
A5: MES | B5: Meta | C5: 1.2R_DPT | D5: 2.2R_ANTIPOLIO | E5: 3.DU_INFLU | F5: 4.1_NEUMO | G5: 5.1_SPR | H5: 5.2_SPR | I5: 6.DU_VARICELA | J5: 7.DU_AMA | K5: 8.1R_DPT | L5: 9.1R_APO | M5: 10.1_PENTA | N5: 10.2_PENTA | O5: 10.3_PENTA | P5: 11.1_IPV | Q5: 11.2_IPV | R5: 11.3_IPV | S5: 12.1_NEUMO_NVA | T5: 12.2_NEUMO_NVA | U5: 13.2_DTp | V5: 13.3_DTP | W5: 14.2_HVB | X5: 14.3_HVB | Y5: 15.2_HiB | Z5: 15.3_HiB
A6: 1 | B6: 0 | C6: 148 | D6: 128 | E6: 3 | F6: 0 | G6: 2 | H6: 0 | I6: 24 | J6: 1 | K6: 148 | L6: 6 | M6: 0 | N6: 0 | O6: 0 | P6: 0 | Q6: 0 | R6: 0 | S6: 0 | T6: 0 | U6: 0 | V6: 0 | W6: 0 | X6: 0 | Y6: 0 | Z6: 0
A7: 0 | B7: 23233 | C7: 0 | D7: 0 | E7: 0 | F7: 0 | G7: 0 | H7: 0 | I7: 0 | J7: 0 | K7: 0 | L7: 0 | M7: 0 | N7: 0 | O7: 0 | P7: 0 | Q7: 0 | R7: 0 | S7: 0 | T7: 0 | U7: 0 | V7: 0 | W7: 0 | X7: 0 | Y7: 0 | Z7: 0
A8: 2 | B8: 0 | C8: 128 | D8: 111 | E8: 1 | F8: 0 | G8: 1 | H8: 2 | I8: 16 | J8: 2 | K8: 128 | L8: 4 | M8: 0 | N8: 0 | O8: 0 | P8: 0 | Q8: 0 | R8: 1 | S8: 0 | T8: 0 | U8: 0 | V8: 0 | W8: 0 | X8: 0 | Y8: 0 | Z8: 0
A9: 3 | B9: 0 | C9: 133 | D9: 117 | E9: 1 | F9: 1 | G9: 1 | H9: 2 | I9: 1 | J9: 2 | K9: 133 | L9: 6 | M9: 0 | N9: 0 | O9: 0 | P9: 2 | Q9: 0 | R9: 1 | S9: 1 | T9: 0 | U9: 0 | V9: 0 | W9: 0 | X9: 0 | Y9: 0 | Z9: 0
A10: Total general | B10: 23233 | C10: 409 | D10: 356 | E10: 5 | F10: 1 | G10: 4 | H10: 4 | I10: 41 | J10: 5 | K10: 409 | L10: 16 | M10: 0 | N10: 0 | O10: 0 | P10: 2 | Q10: 0 | R10: 2 | S10: 1 | T10: 0 | U10: 0 | V10: 0 | W10: 0 | X10: 0 | Y10: 0 | Z10: 0

Sheet PAI_511A
A2: ANNO | B2: (Todas)
B4: Valores
A5: MES | B5: Meta | C5: 1.1_NEUMOCOCO | D5: 2.1_INFLUENZA | E5: 3.1_PENTA | F5: 3.2_PENTA | G5: 3.3_PENTA | H5: 4.2_DPT | I5: 5.1_SPR | J5: 6.DU_VPH_913 | K5: 7.DU_VPH_1418 | L5: 8.3_DTA
A6: 1 | B6: 0 | C6: 1 | D6: 0 | E6: 1 | F6: 0 | G6: 0 | H6: 3 | I6: 1 | J6: 5 | K6: 8 | L6: 0
A7: 0 | B7: 0 | C7: 0 | D7: 0 | E7: 0 | F7: 0 | G7: 0 | H7: 0 | I7: 0 | J7: 0 | K7: 0 | L7: 0
A8: 2 | B8: 0 | C8: 0 | D8: 0 | E8: 0 | F8: 0 | G8: 0 | H8: 8 | I8: 0 | J8: 288 | K8: 404 | L8: 0
A9: 3 | B9: 0 | C9: 0 | D9: 0 | E9: 0 | F9: 1 | G9: 0 | H9: 5 | I9: 0 | J9: 113 | K9: 57 | L9: 1
A10: Total general | B10: 0 | C10: 1 | D10: 0 | E10: 1 | F10: 1 | G10: 0 | H10: 16 | I10: 1 | J10: 406 | K10: 469 | L10: 1

Sheet PAI_1049
A1: ANNO | B1: (Todas)
A2: MES | B2: (Todas)
A4: Etiquetas de fila | B4: MetaG | C4: MetaV | D4: 1.1_DT_NGe_1011 | E4: 1.2_DT_NGe_1011 | F4: 1.3_DT_NGe_1011 | G4: 2.1_DT_NGe_1217 | H4: 2.2_DT_NGe_1217 | I4: 2.3_DT_NGe_1217 | J4: 3.1_DT_NGe_1829 | K4: 3.2_DT_NGe_1829 | L4: 3.3_DT_NGe_1829 | M4: 4.1_DT_NGe_3049 | N4: 4.2_DT_NGe_3049 | O4: 4.3_DT_NGe_3049 | P4: 5.1_DT_Varon_1011 | Q4: 5.2_DT_Varon_1011 | R4: 5.3_DT_Varon_1011 | S4: 6.1_DT_Varon_1217 | T4: 6.2_DT_Varon_1217 | U4: 6.3_DT_Varon_1217 | V4: 7.1_DT_Varon_1829 | W4: 7.2_DT_Varon_1829 | X4: 7.3_DT_Varon_1829 | Y4: 8.1_DT_Varon_3059 | Z4: 8.2_DT_Varon_3059 | AA4: 8.3_DT_Varon_3059 | AB4: 9.1_DT_Varon_m60A | AC4: 9.2_DT_Varon_m60A | AD4: 9.3_DT_Varon_M60A
A5: CANAS-CANCHIS-ESPINAR | B5: 0 | C5: 0 | D5: 0 | E5: 0 | F5: 0 | G5: 0 | H5: 0 | I5: 0 | J5: 0 | K5: 0 | L5: 0 | M5: 0 | N5: 0 | O5: 0 | P5: 0 | Q5: 0 | R5: 0 | S5: 0 | T5: 0 | U5: 0 | V5: 0 | W5: 0 | X5: 0 | Y5: 0 | Z5: 0 | AA5: 0 | AB5: 0 | AC5: 0 | AD5: 0
A6: CHUMBIVILCAS | B6: 0 | C6: 0 | D6: 0 | E6: 0 | F6: 0 | G6: 0 | H6: 0 | I6: 0 | J6: 0 | K6: 0 | L6: 0 | M6: 0 | N6: 0 | O6: 0 | P6: 0 | Q6: 0 | R6: 0 | S6: 0 | T6: 0 | U6: 0 | V6: 0 | W6: 0 | X6: 0 | Y6: 0 | Z6: 0 | AA6: 0 | AB6: 0 | AC6: 0 | AD6: 0
A7: CUSCO NORTE | B7: 0 | C7: 0 | D7: 0 | E7: 0 | F7: 0 | G7: 0 | H7: 0 | I7: 0 | J7: 0 | K7: 0 | L7: 0 | M7: 0 | N7: 0 | O7: 0 | P7: 0 | Q7: 0 | R7: 0 | S7: 0 | T7: 0 | U7: 0 | V7: 0 | W7: 0 | X7: 0 | Y7: 0 | Z7: 0 | AA7: 0 | AB7: 0 | AC7: 0 | AD7: 0
A8: CUSCO SUR | B8: 0 | C8: 0 | D8: 0 | E8: 0 | F8: 0 | G8: 0 | H8: 0 | I8: 0 | J8: 0 | K8: 0 | L8: 0 | M8: 0 | N8: 0 | O8: 0 | P8: 0 | Q8: 0 | R8: 0 | S8: 0 | T8: 0 | U8: 0 | V8: 0 | W8: 0 | X8: 0 | Y8: 0 | Z8: 0 | AA8: 0 | AB8: 0 | AC8: 0 | AD8: 0
A9: KIMBIRI PICHARI | B9: 0 | C9: 0 | D9: 0 | E9: 0 | F9: 0 | G9: 0 | H9: 0 | I9: 0 | J9: 0 | K9: 0 | L9: 0 | M9: 0 | N9: 0 | O9: 0 | P9: 0 | Q9: 0 | R9: 0 | S9: 0 | T9: 0 | U9: 0 | V9: 0 | W9: 0 | X9: 0 | Y9: 0 | Z9: 0 | AA9: 0 | AB9: 0 | AC9: 0 | AD9: 0
A10: LA CONVENCION | B10: 0 | C10: 0 | D10: 2 | E10: 0 | F10: 1 | G10: 32 | H10: 12 | I10: 6 | J10: 76 | K10: 55 | L10: 30 | M10: 102 | N10: 62 | O10: 36 | P10: 7 | Q10: 6 | R10: 0 | S10: 35 | T10: 4 | U10: 4 | V10: 300 | W10: 194 | X10: 77 | Y10: 198 | Z10: 132 | AA10: 90 | AB10: 28 | AC10: 11 | AD10: 6
A11: NO PERTENECE A NINGUNA RED | B11: 0 | C11: 0 | D11: 0 | E11: 0 | F11: 0 | G11: 0 | H11: 0 | I11: 0 | J11: 0 | K11: 0 | L11: 0 | M11: 0 | N11: 0 | O11: 0 | P11: 0 | Q11: 0 | R11: 0 | S11: 0 | T11: 0 | U11: 0 | V11: 0 | W11: 0 | X11: 0 | Y11: 0 | Z11: 0 | AA11: 0 | AB11: 0 | AC11: 0 | AD11: 0
A12: Total general | B12: 0 | C12: 0 | D12: 2 | E12: 0 | F12: 1 | G12: 32 | H12: 12 | I12: 6 | J12: 76 | K12: 55 | L12: 30 | M12: 102 | N12: 62 | O12: 36 | P12: 7 | Q12: 6 | R12: 0 | S12: 35 | T12: 4 | U12: 4 | V12: 300 | W12: 194 | X12: 77 | Y12: 198 | Z12: 132 | AA12: 90 | AB12: 28 | AC12: 11 | AD12: 6

Sheet HVB_VARIOS
A1: ANNO | B1: (Todas)
A2: MES | B2: (Todas)
B4: Valores
A5: DESC_RED | B5: Meta | C5: 1.1_HvB_ST | D5: 1.2_HvB_ST | E5: 1.3_HvB_ST | F5: 2.1_HvB_TS | G5: 2.2_HvB_TS | H5: 2.3_HvB_TS | I5: 3.1_HvB_HSH | J5: 3.2_HvB_HSH | K5: 3.3_HvB_HSH | L5: 5.1_HvB_PPL | M5: 5.2_HvB_PPL | N5: 5.3_HvB_PPL | O5: 6.1_HvB_FPM | P5: 6.2_HvB_FPM | Q5: 6.3_HvB_FPM | R5: 7.1_HvB_CRB | S5: 7.2_HvB_CRB | T5: 7.3_HvB_CRB | U5: 8.1_HvB_ES | V5: 8.2_HvB_ES | W5: 8.3_HvB_ES | X5: 9.1_HvB_0511A | Y5: 9.2_HvB_0511A | Z5: 9.3_HvB_0511A | AA5: 10.1_HvB_1217A | AB5: 10.2_HvB_1217A | AC5: 10.3_HvB_1217A | AD5: 11.1_HvB_1829A | AE5: 11.2_HvB_1829A | AF5: 11.3_HvB_1829A | AG5: 12.1_HvB_3059A | AH5: 12.2_HvB_3059A | AI5: 12.3_HvB_3059A
A6: CANAS-CANCHIS-ESPINAR | B6: 0 | C6: 0 | D6: 0 | E6: 0 | F6: 0 | G6: 0 | H6: 0 | I6: 0 | J6: 0 | K6: 0 | L6: 0 | M6: 0 | N6: 0 | O6: 0 | P6: 0 | Q6: 0 | R6: 0 | S6: 0 | T6: 0 | U6: 0 | V6: 0 | W6: 0 | X6: 0 | Y6: 0 | Z6: 0 | AA6: 0 | AB6: 0 | AC6: 0 | AD6: 0 | AE6: 0 | AF6: 0 | AG6: 0 | AH6: 0 | AI6: 0
A7: CHUMBIVILCAS | B7: 0 | C7: 0 | D7: 0 | E7: 0 | F7: 0 | G7: 0 | H7: 0 | I7: 0 | J7: 0 | K7: 0 | L7: 0 | M7: 0 | N7: 0 | O7: 0 | P7: 0 | Q7: 0 | R7: 0 | S7: 0 | T7: 0 | U7: 0 | V7: 0 | W7: 0 | X7: 0 | Y7: 0 | Z7: 0 | AA7: 0 | AB7: 0 | AC7: 0 | AD7: 0 | AE7: 0 | AF7: 0 | AG7: 0 | AH7: 0 | AI7: 0
A8: CUSCO NORTE | B8: 0 | C8: 0 | D8: 0 | E8: 0 | F8: 0 | G8: 0 | H8: 0 | I8: 0 | J8: 0 | K8: 0 | L8: 0 | M8: 0 | N8: 0 | O8: 0 | P8: 0 | Q8: 0 | R8: 0 | S8: 0 | T8: 0 | U8: 0 | V8: 0 | W8: 0 | X8: 0 | Y8: 0 | Z8: 0 | AA8: 0 | AB8: 0 | AC8: 0 | AD8: 0 | AE8: 0 | AF8: 0 | AG8: 0 | AH8: 0 | AI8: 0
A9: CUSCO SUR | B9: 0 | C9: 0 | D9: 0 | E9: 0 | F9: 0 | G9: 0 | H9: 0 | I9: 0 | J9: 0 | K9: 0 | L9: 0 | M9: 0 | N9: 0 | O9: 0 | P9: 0 | Q9: 0 | R9: 0 | S9: 0 | T9: 0 | U9: 0 | V9: 0 | W9: 0 | X9: 0 | Y9: 0 | Z9: 0 | AA9: 0 | AB9: 0 | AC9: 0 | AD9: 0 | AE9: 0 | AF9: 0 | AG9: 0 | AH9: 0 | AI9: 0
A10: KIMBIRI PICHARI | B10: 0 | C10: 0 | D10: 0 | E10: 0 | F10: 0 | G10: 0 | H10: 0 | I10: 0 | J10: 0 | K10: 0 | L10: 0 | M10: 0 | N10: 0 | O10: 0 | P10: 0 | Q10: 0 | R10: 0 | S10: 0 | T10: 0 | U10: 0 | V10: 0 | W10: 0 | X10: 0 | Y10: 0 | Z10: 0 | AA10: 0 | AB10: 0 | AC10: 0 | AD10: 0 | AE10: 0 | AF10: 0 | AG10: 0 | AH10: 0 | AI10: 0
A11: LA CONVENCION | B11: 0 | C11: 4 | D11: 5 | E11: 5 | F11: 0 | G11: 0 | H11: 0 | I11: 0 | J11: 0 | K11: 0 | L11: 0 | M11: 0 | N11: 0 | O11: 0 | P11: 8 | Q11: 3 | R11: 0 | S11: 8 | T11: 0 | U11: 1 | V11: 0 | W11: 0 | X11: 0 | Y11: 0 | Z11: 0 | AA11: 59 | AB11: 16 | AC11: 6 | AD11: 443 | AE11: 313 | AF11: 167 | AG11: 308 | AH11: 205 | AI11: 137
A12: NO PERTENECE A NINGUNA RED | B12: 0 | C12: 0 | D12: 0 | E12: 0 | F12: 0 | G12: 0 | H12: 0 | I12: 0 | J12: 0 | K12: 0 | L12: 0 | M12: 0 | N12: 0 | O12: 0 | P12: 0 | Q12: 0 | R12: 0 | S12: 0 | T12: 0 | U12: 0 | V12: 0 | W12: 0 | X12: 0 | Y12: 0 | Z12: 0 | AA12: 0 | AB12: 0 | AC12: 0 | AD12: 0 | AE12: 0 | AF12: 0 | AG12: 0 | AH12: 0 | AI12: 0
A13: Total general | B13: 0 | C13: 4 | D13: 5 | E13: 5 | F13: 0 | G13: 0 | H13: 0 | I13: 0 | J13: 0 | K13: 0 | L13: 0 | M13: 0 | N13: 0 | O13: 0 | P13: 8 | Q13: 3 | R13: 0 | S13: 8 | T13: 0 | U13: 1 | V13: 0 | W13: 0 | X13: 0 | Y13: 0 | Z13: 0 | AA13: 59 | AB13: 16 | AC13: 6 | AD13: 443 | AE13: 313 | AF13: 167 | AG13: 308 | AH13: 205 | AI13: 137

Sheet INFLU_NEU_AMA
A2: ANNO | B2: (Todas)
B4: Valores
A5: MES | B5: MetaI | C5: MetaN | D5: MetaA | E5: 1.1_Influ_0511A | F5: 2.1_Influ_1217A | G5: 3.1_Influ_1829A | H5: 4.1_Influ_3049A | I5: 5.1_Influ_5059A | J5: 6.1_Influ_6099A | K5: 7.1_Influ_TS | L5: 8.1_Influ_PPL | M5: 9.1_Neumo_1217A | N5: 10.1_Neumo_1829A | O5: 11.1_Neumo_3059A | P5: 12.1_Neumo_6099A | Q5: 13.1_AMA_0204A | R5: 14.1_AMA_0511A | S5: 15.1_AMA_1217A | T5: 16.1_AMA_1829A | U5: 17.1_AMA_3059A
A6: 1 | B6: 0 | C6: 0 | D6: 0 | E6: 0 | F6: 0 | G6: 1 | H6: 0 | I6: 0 | J6: 0 | K6: 0 | L6: 0 | M6: 0 | N6: 5 | O6: 14 | P6: 32 | Q6: 10 | R6: 3 | S6: 2 | T6: 137 | U6: 87
A7: 0 | B7: 0 | C7: 0 | D7: 0 | E7: 0 | F7: 0 | G7: 0 | H7: 0 | I7: 0 | J7: 0 | K7: 0 | L7: 0 | M7: 0 | N7: 0 | O7: 0 | P7: 0 | Q7: 0 | R7: 0 | S7: 0 | T7: 0 | U7: 0
A8: 2 | B8: 0 | C8: 0 | D8: 0 | E8: 0 | F8: 0 | G8: 0 | H8: 0 | I8: 0 | J8: 0 | K8: 0 | L8: 0 | M8: 0 | N8: 1 | O8: 6 | P8: 55 | Q8: 5 | R8: 3 | S8: 11 | T8: 134 | U8: 104
A9: 3 | B9: 0 | C9: 0 | D9: 0 | E9: 0 | F9: 0 | G9: 0 | H9: 0 | I9: 0 | J9: 0 | K9: 0 | L9: 0 | M9: 0 | N9: 5 | O9: 8 | P9: 25 | Q9: 7 | R9: 5 | S9: 39 | T9: 149 | U9: 130
A10: Total general | B10: 0 | C10: 0 | D10: 0 | E10: 0 | F10: 0 | G10: 1 | H10: 0 | I10: 0 | J10: 0 | K10: 0 | L10: 0 | M10: 0 | N10: 11 | O10: 28 | P10: 112 | Q10: 22 | R10: 11 | S10: 52 | T10: 420 | U10: 321

Sheet GESTANTE
A2: ANNO | B2: (Todas)
B4: Valores
A5: MES | B5: Meta | C5: 1.1_DT_Ges_1011 | D5: 1.2_DT_Ges_1011 | E5: 1.3_DT_Ges_1011 | F5: 2.1_DT_Ges_1217 | G5: 2.2_DT_Ges_1217 | H5: 2.3_DT_Ges_1217 | I5: 3.1_DT_Ges_1829 | J5: 3.2_DT_Ges_1829 | K5: 3.3_DT_Ges_1829 | L5: 4.1_DT_Ges_3049 | M5: 4.2_DT_Ges_3049 | N5: 4.3_DT_Ges_3049 | O5: 5.1_Influ_Ges | P5: 6.1_Influ_Puerp | Q5: 7.1_DTPAGES_1011A | R5: 8.1_DTPAGES_1217A | S5: 9.1_DTPAGES_1829A | T5: 10.1_DTPAGES_3059A
A6: 1 | B6: 0 | C6: 0 | D6: 0 | E6: 0 | F6: 0 | G6: 0 | H6: 0 | I6: 3 | J6: 5 | K6: 1 | L6: 2 | M6: 3 | N6: 1 | O6: 0 | P6: 0 | Q6: 0 | R6: 8 | S6: 56 | T6: 48 | U6: =SUM(Q6:T6) -> 112
A7: 0 | B7: 0 | C7: 0 | D7: 0 | E7: 0 | F7: 0 | G7: 0 | H7: 0 | I7: 0 | J7: 0 | K7: 0 | L7: 0 | M7: 0 | N7: 0 | O7: 0 | P7: 0 | Q7: 0 | R7: 0 | S7: 0 | T7: 0 | U7: =SUM(Q7:T7) -> 0
A8: 2 | B8: 0 | C8: 0 | D8: 0 | E8: 0 | F8: 1 | G8: 0 | H8: 0 | I8: 4 | J8: 1 | K8: 4 | L8: 3 | M8: 0 | N8: 0 | O8: 0 | P8: 0 | Q8: 0 | R8: 6 | S8: 61 | T8: 34 | U8: 101
A9: 3 | B9: 0 | C9: 0 | D9: 0 | E9: 0 | F9: 2 | G9: 0 | H9: 0 | I9: 3 | J9: 0 | K9: 0 | L9: 1 | M9: 1 | N9: 0 | O9: 0 | P9: 0 | Q9: 0 | R9: 12 | S9: 59 | T9: 42 | U9: 113
A10: Total general | B10: 0 | C10: 0 | D10: 0 | E10: 0 | F10: 3 | G10: 0 | H10: 0 | I10: 10 | J10: 6 | K10: 5 | L10: 6 | M10: 4 | N10: 1 | O10: 0 | P10: 0 | Q10: 0 | R10: 26 | S10: 176 | T10: 124 | U10: 326
U11: 0

Sheet COVID
A1: ANNO | B1: (Todas)
A2: MES | B2: (Todas)
B4: Valores
A5: DESC_RED | B5: Meta0011 | C5: Meta1217 | D5: Meta1829 | E5: Meta3059 | F5: Meta6099 | G5: 1.1_COVID_0611 | H5: 1.2_COVID_0611 | I5: 1.3_COVID_0611 | J5: 1.4_COVID_0611 | K5: 1.B_COVID_0611 | L5: 2.1_COVID_0104A | M5: 2.2_COVID_0104A | N5: 2.3_COVID_0104A | O5: 2.4_COVID_0104A | P5: 2.B_COVID_0104A | Q5: 3.1_COVID_0511A | R5: 3.2_COVID_0511A | S5: 3.3_COVID_0511A | T5: 3.4_COVID_0511A | U5: 3.B_COVID_0511A | V5: 4.1_COVID_1217A | W5: 4.2_COVID_1217A | X5: 4.3_COVID_1217A | Y5: 4.4_COVID_1217A | Z5: 4.B_COVID_1217A | AA5: 5.1_COVID_1829A | AB5: 5.2_COVID_1829A | AC5: 5.3_COVID_1829A | AD5: 5.4_COVID_1829A | AE5: 5.B_COVID_1829A | AF5: 6.1_COVID_3039A | AG5: 6.2_COVID_3039A | AH5: 6.3_COVID_3039A | AI5: 6.4_COVID_3039A | AJ5: 6.B_COVID_3039A | AK5: 7.1_COVID_4049A | AL5: 7.2_COVID_4049A | AM5: 7.3_COVID_4049A | AN5: 7.4_COVID_4049A | AO5: 7.B_COVID_4049A | AP5: 8.1_COVID_5059A | AQ5: 8.2_COVID_5059A | AR5: 8.3_COVID_5059A | AS5: 8.4_COVID_5059A | AT5: 8.B_COVID_5059A | AU5: 9.1_COVID_6069A | AV5: 9.2_COVID_6069A | AW5: 9.3_COVID_6069A | AX5: 9.4_COVID_6069A | AY5: 9.B_COVID_6069A | AZ5: 10.1_COVID_7079A | BA5: 10.2_COVID_7079A | BB5: 10.3_COVID_7079A | BC5: 10.4_COVID_7079A | BD5: 10.B_COVID_7079A | BE5: 11.1_COVID_8099A | BF5: 11.2_COVID_8099A | BG5: 11.3_COVID_8099A | BH5: 11.4_COVID_8099A | BI5: 11.B_COVID_8099A
A6: CANAS-CANCHIS-ESPINAR | B6: 0 | C6: 0 | D6: 0 | E6: 0 | F6: 0 | G6: 0 | H6: 0 | I6: 0 | J6: 0 | K6: 0 | L6: 0 | M6: 0 | N6: 0 | O6: 0 | P6: 0 | Q6: 0 | R6: 0 | S6: 0 | T6: 0 | U6: 0 | V6: 0 | W6: 0 | X6: 0 | Y6: 0 | Z6: 0 | AA6: 0 | AB6: 0 | AC6: 0 | AD6: 0 | AE6: 0 | AF6: 0 | AG6: 0 | AH6: 0 | AI6: 0 | AJ6: 0 | AK6: 0 | AL6: 0 | AM6: 0 | AN6: 0 | AO6: 0 | AP6: 0 | AQ6: 0 | AR6: 0 | AS6: 0 | AT6: 0 | AU6: 0 | AV6: 0 | AW6: 0 | AX6: 0 | AY6: 0 | AZ6: 0 | BA6: 0 | BB6: 0 | BC6: 0 | BD6: 0 | BE6: 0 | BF6: 0 | BG6: 0 | BH6: 0 | BI6: 0
A7: CHUMBIVILCAS | B7: 0 | C7: 0 | D7: 0 | E7: 0 | F7: 0 | G7: 0 | H7: 0 | I7: 0 | J7: 0 | K7: 0 | L7: 0 | M7: 0 | N7: 0 | O7: 0 | P7: 0 | Q7: 0 | R7: 0 | S7: 0 | T7: 0 | U7: 0 | V7: 0 | W7: 0 | X7: 0 | Y7: 0 | Z7: 0 | AA7: 0 | AB7: 0 | AC7: 0 | AD7: 0 | AE7: 0 | AF7: 0 | AG7: 0 | AH7: 0 | AI7: 0 | AJ7: 0 | AK7: 0 | AL7: 0 | AM7: 0 | AN7: 0 | AO7: 0 | AP7: 0 | AQ7: 0 | AR7: 0 | AS7: 0 | AT7: 0 | AU7: 0 | AV7: 0 | AW7: 0 | AX7: 0 | AY7: 0 | AZ7: 0 | BA7: 0 | BB7: 0 | BC7: 0 | BD7: 0 | BE7: 0 | BF7: 0 | BG7: 0 | BH7: 0 | BI7: 0
A8: CUSCO NORTE | B8: 0 | C8: 0 | D8: 0 | E8: 0 | F8: 0 | G8: 0 | H8: 0 | I8: 0 | J8: 0 | K8: 0 | L8: 0 | M8: 0 | N8: 0 | O8: 0 | P8: 0 | Q8: 0 | R8: 0 | S8: 0 | T8: 0 | U8: 0 | V8: 0 | W8: 0 | X8: 0 | Y8: 0 | Z8: 0 | AA8: 0 | AB8: 0 | AC8: 0 | AD8: 0 | AE8: 0 | AF8: 0 | AG8: 0 | AH8: 0 | AI8: 0 | AJ8: 0 | AK8: 0 | AL8: 0 | AM8: 0 | AN8: 0 | AO8: 0 | AP8: 0 | AQ8: 0 | AR8: 0 | AS8: 0 | AT8: 0 | AU8: 0 | AV8: 0 | AW8: 0 | AX8: 0 | AY8: 0 | AZ8: 0 | BA8: 0 | BB8: 0 | BC8: 0 | BD8: 0 | BE8: 0 | BF8: 0 | BG8: 0 | BH8: 0 | BI8: 0
A9: CUSCO SUR | B9: 0 | C9: 0 | D9: 0 | E9: 0 | F9: 0 | G9: 0 | H9: 0 | I9: 0 | J9: 0 | K9: 0 | L9: 0 | M9: 0 | N9: 0 | O9: 0 | P9: 0 | Q9: 0 | R9: 0 | S9: 0 | T9: 0 | U9: 0 | V9: 0 | W9: 0 | X9: 0 | Y9: 0 | Z9: 0 | AA9: 0 | AB9: 0 | AC9: 0 | AD9: 0 | AE9: 0 | AF9: 0 | AG9: 0 | AH9: 0 | AI9: 0 | AJ9: 0 | AK9: 0 | AL9: 0 | AM9: 0 | AN9: 0 | AO9: 0 | AP9: 0 | AQ9: 0 | AR9: 0 | AS9: 0 | AT9: 0 | AU9: 0 | AV9: 0 | AW9: 0 | AX9: 0 | AY9: 0 | AZ9: 0 | BA9: 0 | BB9: 0 | BC9: 0 | BD9: 0 | BE9: 0 | BF9: 0 | BG9: 0 | BH9: 0 | BI9: 0
A10: KIMBIRI PICHARI | B10: 0 | C10: 0 | D10: 0 | E10: 0 | F10: 0 | G10: 0 | H10: 0 | I10: 0 | J10: 0 | K10: 0 | L10: 0 | M10: 0 | N10: 0 | O10: 0 | P10: 0 | Q10: 0 | R10: 0 | S10: 0 | T10: 0 | U10: 0 | V10: 0 | W10: 0 | X10: 0 | Y10: 0 | Z10: 0 | AA10: 0 | AB10: 0 | AC10: 0 | AD10: 0 | AE10: 0 | AF10: 0 | AG10: 0 | AH10: 0 | AI10: 0 | AJ10: 0 | AK10: 0 | AL10: 0 | AM10: 0 | AN10: 0 | AO10: 0 | AP10: 0 | AQ10: 0 | AR10: 0 | AS10: 0 | AT10: 0 | AU10: 0 | AV10: 0 | AW10: 0 | AX10: 0 | AY10: 0 | AZ10: 0 | BA10: 0 | BB10: 0 | BC10: 0 | BD10: 0 | BE10: 0 | BF10: 0 | BG10: 0 | BH10: 0 | BI10: 0
A11: LA CONVENCION | B11: 0 | C11: 0 | D11: 0 | E11: 0 | F11: 0 | G11: 0 | H11: 0 | I11: 0 | J11: 0 | K11: 0 | L11: 0 | M11: 0 | N11: 0 | O11: 0 | P11: 0 | Q11: 0 | R11: 0 | S11: 0 | T11: 0 | U11: 0 | V11: 0 | W11: 0 | X11: 0 | Y11: 0 | Z11: 0 | AA11: 0 | AB11: 0 | AC11: 0 | AD11: 0 | AE11: 0 | AF11: 0 | AG11: 0 | AH11: 0 | AI11: 0 | AJ11: 0 | AK11: 0 | AL11: 0 | AM11: 0 | AN11: 0 | AO11: 0 | AP11: 0 | AQ11: 0 | AR11: 0 | AS11: 0 | AT11: 0 | AU11: 0 | AV11: 0 | AW11: 0 | AX11: 0 | AY11: 0 | AZ11: 0 | BA11: 0 | BB11: 0 | BC11: 0 | BD11: 0 | BE11: 0 | BF11: 0 | BG11: 0 | BH11: 0 | BI11: 0
A12: NO PERTENECE A NINGUNA RED | B12: 0 | C12: 0 | D12: 0 | E12: 0 | F12: 0 | G12: 0 | H12: 0 | I12: 0 | J12: 0 | K12: 0 | L12: 0 | M12: 0 | N12: 0 | O12: 0 | P12: 0 | Q12: 0 | R12: 0 | S12: 0 | T12: 0 | U12: 0 | V12: 0 | W12: 0 | X12: 0 | Y12: 0 | Z12: 0 | AA12: 0 | AB12: 0 | AC12: 0 | AD12: 0 | AE12: 0 | AF12: 0 | AG12: 0 | AH12: 0 | AI12: 0 | AJ12: 0 | AK12: 0 | AL12: 0 | AM12: 0 | AN12: 0 | AO12: 0 | AP12: 0 | AQ12: 0 | AR12: 0 | AS12: 0 | AT12: 0 | AU12: 0 | AV12: 0 | AW12: 0 | AX12: 0 | AY12: 0 | AZ12: 0 | BA12: 0 | BB12: 0 | BC12: 0 | BD12: 0 | BE12: 0 | BF12: 0 | BG12: 0 | BH12: 0 | BI12: 0
A13: Total general | B13: 0 | C13: 0 | D13: 0 | E13: 0 | F13: 0 | G13: 0 | H13: 0 | I13: 0 | J13: 0 | K13: 0 | L13: 0 | M13: 0 | N13: 0 | O13: 0 | P13: 0 | Q13: 0 | R13: 0 | S13: 0 | T13: 0 | U13: 0 | V13: 0 | W13: 0 | X13: 0 | Y13: 0 | Z13: 0 | AA13: 0 | AB13: 0 | AC13: 0 | AD13: 0 | AE13: 0 | AF13: 0 | AG13: 0 | AH13: 0 | AI13: 0 | AJ13: 0 | AK13: 0 | AL13: 0 | AM13: 0 | AN13: 0 | AO13: 0 | AP13: 0 | AQ13: 0 | AR13: 0 | AS13: 0 | AT13: 0 | AU13: 0 | AV13: 0 | AW13: 0 | AX13: 0 | AY13: 0 | AZ13: 0 | BA13: 0 | BB13: 0 | BC13: 0 | BD13: 0 | BE13: 0 | BF13: 0 | BG13: 0 | BH13: 0 | BI13: 0

Sheet Datos (hidden)
B9: ANO | D9: MESES | F9: COD_RED | G9: DESC_RED | H9: CONCATENAR | J9: COD_RED | K9: COD_MIC | L9: DESC_MICRO | M9: CONCATENAR | O9: COD_ESTAB | P9: DESC_ESTAB | Q9: COD_RED | R9: COD_MIC | S9: COD_PROV | T9: COD_DIST | U9: REDMIC | V9: CONCATENAR | X9: COD_PROV | Y9: DESC_PROV | Z9: CONCATENAR | AB9: COD_PROV | AC9: COD_DIST | AD9: DESC_DIST | AE9: PROVDIST | AF9: CONCATENAR
B10: 2025 | D10: 01-Enero | F10: 00 | G10: NO TIENE ASIGNADO NINGUNA RED | H10: =CONCATENATE(F10," - ",G10) -> 00 - NO TIENE ASIGNADO NINGUNA RED | J10: 00 | K10: 00 | L10: NO PERTENECE A NINGUNA MICRORED | M10: =CONCATENATE(J10,K10," - ",L10) -> 0000 - NO PERTENECE A NINGUNA MICRORED | O10: 000000000 | P10: (All) | Q10: 00 | R10: 00 | U10: =CONCATENATE(Q10,R10) -> 0000 | V10: =CONCATENATE(O10," - ",P10) -> 000000000 - (All) | X10: 00 | Y10: (All) | Z10: =CONCATENATE(X10," - ",Y10) -> 00 - (All) | AB10: 01 | AC10: 00 | AD10: (All) | AE10: =CONCATENATE(AB10,AC10) -> 0100 | AF10: =CONCATENATE(AB10,AC10," - ",AD10) -> 0100 - (All)
D11: 02-Febrero | F11: 01 | G11: CUSCO SUR | H11: =CONCATENATE(F11," - ",G11) -> 01 - CUSCO SUR | J11: 00 | K11: 99 | L11: (All) | M11: 0099 - (All) | N11: 1 | O11: 000002289 | P11: HOSPITAL DE APOYO DEPARTAMENTAL CUSCO | Q11: 00 | R11: 00 | S11: 01 | T11: 01 | U11: =CONCATENATE(Q11,R11) -> 0000 | V11: =CONCATENATE(O11," - ",P11) -> 000002289 - HOSPITAL DE APOYO DEPARTAMENTAL CUSCO | X11: 01 | Y11: CUSCO | Z11: =CONCATENATE(X11," - ",Y11) -> 01 - CUSCO | AB11: 01 | AC11: 01 | AD11: CUSCO | AE11: =CONCATENATE(AB11,AC11) -> 0101 | AF11: =CONCATENATE(AB11,AC11," - ",AD11) -> 0101 - CUSCO
D12: 03-Marzo | F12: 02 | G12: CUSCO NORTE | H12: 02 - CUSCO NORTE | J12: 01 | K12: 00 | L12: NO PERTENECE A NINGUNA MICRORED | M12: 0100 - NO PERTENECE A NINGUNA MICRORED | N12: =+N11+1 -> 2 | O12: 000002305 | P12: ANTONIO LORENA DEL CUSCO | Q12: 00 | R12: 00 | S12: 01 | T12: 06 | U12: 0000 | V12: 000002305 - ANTONIO LORENA DEL CUSCO | X12: 02 | Y12: ACOMAYO | Z12: =CONCATENATE(X12," - ",Y12) -> 02 - ACOMAYO | AB12: 01 | AC12: 02 | AD12: CCORCA | AE12: 0102 | AF12: 0102 - CCORCA
D13: 04-Abril | F13: 03 | G13: LA CONVENCION | H13: 03 - LA CONVENCION | J13: 01 | K13: 16 | L13: CUSCO | M13: 0116 - CUSCO | N13: =+N12+1 -> 3 | O13: 999999999 | P13: (All) | Q13: 00 | R13: 99 | U13: 0099 | V13: 999999999 - (All) | X13: 03 | Y13: ANTA | Z13: 03 - ANTA | AB13: 01 | AC13: 03 | AD13: POROY | AE13: 0103 | AF13: 0103 - POROY
D14: 05-Mayo | F14: 04 | G14: CANAS-CANCHIS-ESPINAR | H14: 04 - CANAS-CANCHIS-ESPINAR | J14: 01 | K14: 03 | L14: PARURO | M14: 0103 - PARURO | O14: 000025210 | P14: TUPAC AMARU | Q14: 01 | R14: 00 | S14: 01 | T14: 05 | U14: 0100 | V14: 000025210 - TUPAC AMARU | X14: 04 | Y14: CALCA | Z14: 04 - CALCA | AB14: 01 | AC14: 04 | AD14: SAN JERONIMO | AE14: 0104 | AF14: 0104 - SAN JERONIMO
D15: 06-Junio | F15: 05 | G15: KIMBIRI PICHARI | H15: 05 - KIMBIRI PICHARI | J15: 01 | K15: 06 | L15: PAUCARTAMBO | M15: 0106 - PAUCARTAMBO | N15: =+N13+1 -> 4 | O15: 000000000 | P15: (All) | Q15: 01 | R15: 03 | U15: 0103 | V15: 000000000 - (All) | X15: 05 | Y15: CANAS | Z15: 05 - CANAS | AB15: 01 | AC15: 05 | AD15: SAN SEBASTIAN | AE15: 0105 | AF15: 0105 - SAN SEBASTIAN
D16: 07-Julio | F16: 06 | G16: CHUMBIVILCAS | H16: 06 - CHUMBIVILCAS | J16: 01 | K16: 12 | L16: URCOS | M16: 0112 - URCOS | O16: 000002499 | P16: PARURO | Q16: 01 | R16: 03 | S16: 10 | T16: 01 | U16: 0103 | V16: 000002499 - PARURO | X16: 06 | Y16: CANCHIS | Z16: 06 - CANCHIS | AB16: 01 | AC16: 06 | AD16: SANTIAGO | AE16: 0106 | AF16: 0106 - SANTIAGO
D17: 08-Agosto | F17: 99 | G17: (All) | H17: 99 - (All) | J17: 01 | K17: 13 | L17: ACOMAYO | M17: 0113 - ACOMAYO | N17: =+N15+1 -> 5 | O17: 000002500 | P17: ACCHA | Q17: 01 | R17: 03 | S17: 10 | T17: 02 | U17: 0103 | V17: 000002500 - ACCHA | X17: 07 | Y17: CHUMBIVILCAS | Z17: 07 - CHUMBIVILCAS | AB17: 01 | AC17: 07 | AD17: SAYLLA | AE17: 0107 | AF17: 0107 - SAYLLA
D18: 09-Setiembre | J18: 01 | K18: 15 | L18: OCONGATE | M18: 0115 - OCONGATE | N18: 6 | O18: 000002501 | P18: CCAPI | Q18: 01 | R18: 03 | S18: 10 | T18: 03 | U18: 0103 | V18: 000002501 - CCAPI | X18: 08 | Y18: ESPINAR | Z18: 08 - ESPINAR | AB18: 01 | AC18: 08 | AD18: WANCHAQ | AE18: 0108 | AF18: 0108 - WANCHAQ
D19: 10-Octubre | J19: 01 | K19: 99 | L19: (All) | M19: 0199 - (All) | N19: 7 | O19: 000002502 | P19: CCOYABAMBA | Q19: 01 | R19: 03 | S19: 10 | T19: 03 | U19: 0103 | V19: 000002502 - CCOYABAMBA | X19: 09 | Y19: LA CONVENCION | Z19: 09 - LA CONVENCION | AB19: 02 | AC19: 00 | AD19: (All) | AE19: 0200 | AF19: 0200 - (All)
D20: 11-Noviembre | F20: EJECUTORAS | J20: 02 | K20: 01 | L20: BELEMPAMPA | M20: 0201 - BELEMPAMPA | N20: 8 | O20: 000002503 | P20: COLCHA | Q20: 01 | R20: 03 | S20: 10 | T20: 04 | U20: 0103 | V20: 000002503 - COLCHA | X20: 10 | Y20: PARURO | Z20: 10 - PARURO | AB20: 02 | AC20: 01 | AD20: ACOMAYO | AE20: 0201 | AF20: 0201 - ACOMAYO
D21: 12-Diciembre | F21: COD_RED | G21: DESC_RED | H21: CONCATENAR | J21: 02 | K21: 02 | L21: WANCHAQ | M21: 0202 - WANCHAQ | N21: 9 | O21: 000006978 | P21: CCOCHIRIHUAY | Q21: 01 | R21: 03 | S21: 10 | T21: 04 | U21: 0103 | V21: 000006978 - CCOCHIRIHUAY | X21: 11 | Y21: PAUCARTAMBO | Z21: 11 - PAUCARTAMBO | AB21: 02 | AC21: 02 | AD21: ACOPIA | AE21: 0202 | AF21: 0202 - ACOPIA
F22: 01 | G22: HOSPITAL REGIONAL CUSCO | H22: =CONCATENATE(F22," - ",G22) -> 01 - HOSPITAL REGIONAL CUSCO | J22: 02 | K22: 03 | L22: ANTA | M22: 0203 - ANTA | N22: 10 | O22: 000002504 | P22: HUANOQUITE | Q22: 01 | R22: 03 | S22: 10 | T22: 05 | U22: 0103 | V22: 000002504 - HUANOQUITE | X22: 12 | Y22: QUISPICANCHI | Z22: 12 - QUISPICANCHI | AB22: 02 | AC22: 03 | AD22: ACOS | AE22: 0203 | AF22: 0203 - ACOS
F23: 02 | G23: HOSPITAL ANTONIO LORENA | H23: =CONCATENATE(F23," - ",G23) -> 02 - HOSPITAL ANTONIO LORENA | J23: 02 | K23: 04 | L23: LIMATAMBO | M23: 0204 - LIMATAMBO | N23: 11 | O23: 000002505 | P23: OMACHA | Q23: 01 | R23: 03 | S23: 10 | T23: 06 | U23: 0103 | V23: 000002505 - OMACHA | X23: 13 | Y23: URUBAMBA | Z23: 13 - URUBAMBA | AB23: 02 | AC23: 04 | AD23: MOSOC LLACTA | AE23: 0204 | AF23: 0204 - MOSOC LLACTA
F24: 03 | G24: CUSCO NORTE | H24: 03 - CUSCO NORTE | J24: 02 | K24: 05 | L24: PISAC | M24: 0205 - PISAC | N24: 12 | O24: 000002506 | P24: ANTAPALLPA | Q24: 01 | R24: 03 | S24: 10 | T24: 06 | U24: 0103 | V24: 000002506 - ANTAPALLPA | AB24: 02 | AC24: 05 | AD24: POMACANCHI | AE24: 0205 | AF24: 0205 - POMACANCHI
F25: 04 | G25: CUSCO SUR | H25: 04 - CUSCO SUR | J25: 02 | K25: 06 | L25: CALCA | M25: 0206 - CALCA | N25: 13 | O25: 000007147 | P25: PUESTO DE SALUD DE HUASQUILLAY | Q25: 01 | R25: 03 | S25: 10 | T25: 06 | U25: 0103 | V25: 000007147 - PUESTO DE SALUD DE HUASQUILLAY | AB25: 02 | AC25: 06 | AD25: RONDOCAN | AE25: 0206 | AF25: 0206 - RONDOCAN
F26: 05 | G26: LA CONVENCION | H26: 05 - LA CONVENCION | J26: 02 | K26: 07 | L26: URUBAMBA | M26: 0207 - URUBAMBA | N26: 14 | O26: 000012924 | P26: SAHUA SAHUA | Q26: 01 | R26: 03 | S26: 10 | T26: 06 | U26: 0103 | V26: 000012924 - SAHUA SAHUA | AB26: 02 | AC26: 07 | AD26: SANGARARA | AE26: 0207 | AF26: 0207 - SANGARARA
F27: 06 | G27: HOSPITAL QUILLABAMBA | H27: 06 - HOSPITAL QUILLABAMBA | J27: 02 | K27: 08 | L27: YANATILE | M27: 0208 - YANATILE | N27: 15 | O27: 000002507 | P27: PACCARECTAMBO | Q27: 01 | R27: 03 | S27: 10 | T27: 07 | U27: 0103 | V27: 000002507 - PACCARECTAMBO | AB27: 03 | AC27: 00 | AD27: (All) | AE27: 0300 | AF27: 0300 - (All)
F28: 07 | G28: CANAS CANCHIS ESPINAR | H28: 07 - CANAS CANCHIS ESPINAR | J28: 02 | K28: 09 | L28: SIETE CUARTONES | M28: 0209 - SIETE CUARTONES | N28: 16 | O28: 000002509 | P28: YAURISQUE | Q28: 01 | R28: 03 | S28: 10 | T28: 09 | U28: 0103 | V28: 000002509 - YAURISQUE | AB28: 03 | AC28: 01 | AD28: ANTA | AE28: 0301 | AF28: 0301 - ANTA
F29: 08 | G29: HOSPITAL SICUANI | H29: 08 - HOSPITAL SICUANI | J29: 02 | K29: 99 | L29: (All) | M29: 0299 - (All) | N29: 17 | O29: 000000000 | P29: (All) | Q29: 01 | R29: 06 | U29: 0106 | V29: 000000000 - (All) | AB29: 03 | AC29: 02 | AD29: ANCAHUASI | AE29: 0302 | AF29: 0302 - ANCAHUASI
F30: 09 | G30: HOSPITAL ESPINAR | H30: 09 - HOSPITAL ESPINAR | J30: 03 | K30: 00 | L30: NO PERTENECE A NINGUNA MICRORED | M30: 0300 - NO PERTENECE A NINGUNA MICRORED | O30: 000002520 | P30: HUANCARANI | Q30: 01 | R30: 06 | S30: 11 | T30: 05 | U30: 0106 | V30: 000002520 - HUANCARANI | AB30: 03 | AC30: 03 | AD30: CACHIMAYO | AE30: 0303 | AF30: 0303 - CACHIMAYO
F31: 10 | G31: KIMBIRI PICHARI | H31: 10 - KIMBIRI PICHARI | J31: 03 | K31: 01 | L31: SANTA ANA | M31: 0301 - SANTA ANA | N31: =+N29+1 -> 18 | O31: 000002521 | P31: PILCOPATA | Q31: 01 | R31: 06 | S31: 11 | T31: 06 | U31: 0106 | V31: 000002521 - PILCOPATA | AB31: 03 | AC31: 04 | AD31: CHINCHAYPUJIO | AE31: 0304 | AF31: 0304 - CHINCHAYPUJIO
F32: 11 | G32: CHUMBIVILCAS | H32: 11 - CHUMBIVILCAS | J32: 03 | K32: 02 | L32: MARANURA | M32: 0302 - MARANURA | N32: 19 | O32: 000002522 | P32: PATRIA | Q32: 01 | R32: 06 | S32: 11 | T32: 06 | U32: 0106 | V32: 000002522 - PATRIA | AB32: 03 | AC32: 05 | AD32: HUAROCONDO | AE32: 0305 | AF32: 0305 - HUAROCONDO
F33: 99 | G33: (ALL) | H33: =CONCATENATE(F33," - ",G33) -> 99 - (ALL) | J33: 03 | K33: 03 | L33: QUELLOUNO | M33: 0303 - QUELLOUNO | N33: 20 | O33: 000002510 | P33: PAUCARTAMBO | Q33: 01 | R33: 06 | S33: 11 | T33: 01 | U33: 0106 | V33: 000002510 - PAUCARTAMBO | AB33: 03 | AC33: 06 | AD33: LIMATAMBO | AE33: 0306 | AF33: 0306 - LIMATAMBO
J34: 03 | K34: 04 | L34: KITENI | M34: 0304 - KITENI | N34: 21 | O34: 000002511 | P34: MOLLOMARCA | Q34: 01 | R34: 06 | S34: 11 | T34: 01 | U34: 0106 | V34: 000002511 - MOLLOMARCA | AB34: 03 | AC34: 07 | AD34: MOLLEPATA | AE34: 0307 | AF34: 0307 - MOLLEPATA
J35: 03 | K35: 05 | L35: KAMISEA | M35: 0305 - KAMISEA | N35: 22 | O35: 000010077 | P35: PAUCARTAMBO -ESSALUD | Q35: 01 | R35: 06 | S35: 11 | T35: 01 | U35: 0106 | V35: 000010077 - PAUCARTAMBO -ESSALUD | AB35: 03 | AC35: 08 | AD35: PUCYURA | AE35: 0308 | AF35: 0308 - PUCYURA
F36: SECTORES | J36: 03 | K36: 06 | L36: PUCYURA | M36: 0306 - PUCYURA | N36: 23 | O36: 000033777 | P36: MENTAL COMUNITARIO VIRGEN DEL ROSARIO | Q36: 01 | R36: 06 | S36: 11 | T36: 01 | U36: 0106 | V36: 000033777 - MENTAL COMUNITARIO VIRGEN DEL ROSARIO | AB36: 03 | AC36: 09 | AD36: ZURITE | AE36: 0309 | AF36: 0309 - ZURITE
F37: COD_SECTOR | G37: DESC_RED | H37: CONCATENAR | J37: 03 | K37: 07 | L37: PALMA REAL | M37: 0307 - PALMA REAL | N37: 24 | O37: 000002512 | P37: CAICAY | Q37: 01 | R37: 06 | S37: 11 | T37: 02 | U37: 0106 | V37: 000002512 - CAICAY | AB37: 04 | AC37: 00 | AD37: (All) | AE37: 0400 | AF37: 0400 - (All)
F38: 1 | G38: GORE | H38: =CONCATENATE(F38," - ",G38) -> 1 - GORE | J38: 03 | K38: 99 | L38: (All) | M38: 0399 - (All) | N38: 25 | O38: 000002513 | P38: HUASAC | Q38: 01 | R38: 06 | S38: 11 | T38: 02 | U38: 0106 | V38: 000002513 - HUASAC | AB38: 04 | AC38: 01 | AD38: CALCA | AE38: 0401 | AF38: 0401 - CALCA
F39: 2 | G39: ESSALUD | H39: =CONCATENATE(F39," - ",G39) -> 2 - ESSALUD | J39: 04 | K39: 00 | L39: NO PERTENECE A NINGUNA MICRORED | M39: 0400 - NO PERTENECE A NINGUNA MICRORED | N39: 26 | O39: 000002514 | P39: CHALLABAMBA | Q39: 01 | R39: 06 | S39: 11 | T39: 03 | U39: 0106 | V39: 000002514 - CHALLABAMBA | AB39: 04 | AC39: 02 | AD39: COYA | AE39: 0402 | AF39: 0402 - COYA
F40: 3 | G40: OTROS | H40: 3 - OTROS | J40: 04 | K40: 01 | L40: YANAOCA | M40: 0401 - YANAOCA | N40: 27 | O40: 000002516 | P40: COLQUEPATA | Q40: 01 | R40: 06 | S40: 11 | T40: 04 | U40: 0106 | V40: 000002516 - COLQUEPATA | AB40: 04 | AC40: 03 | AD40: LAMAY | AE40: 0403 | AF40: 0403 - LAMAY
F41: 99 | G41: (ALL) | H41: 99 - (ALL) | J41: 04 | K41: 02 | L41: EL DESCANSO | M41: 0402 - EL DESCANSO | N41: 28 | O41: 000002517 | P41: PICHIHUA COLQUEPATA | Q41: 01 | R41: 06 | S41: 11 | T41: 04 | U41: 0106 | V41: 000002517 - PICHIHUA COLQUEPATA | AB41: 04 | AC41: 04 | AD41: LARES | AE41: 0404 | AF41: 0404 - LARES
J42: 04 | K42: 03 | L42: COMBAPATA | M42: 0403 - COMBAPATA | N42: 29 | O42: 000002518 | P42: VIZCOCHONI | Q42: 01 | R42: 06 | S42: 11 | T42: 04 | U42: 0106 | V42: 000002518 - VIZCOCHONI | AB42: 04 | AC42: 05 | AD42: PISAC | AE42: 0405 | AF42: 0405 - PISAC
J43: 04 | K43: 04 | L43: TECHO OBRERO | M43: 0404 - TECHO OBRERO | N43: 30 | O43: 000002519 | P43: AYRE | Q43: 01 | R43: 06 | S43: 11 | T43: 04 | U43: 0106 | V43: 000002519 - AYRE | AB43: 04 | AC43: 06 | AD43: SAN SALVADOR | AE43: 0406 | AF43: 0406 - SAN SALVADOR
J44: 04 | K44: 05 | L44: PAMPAPHALLA | M44: 0405 - PAMPAPHALLA | N44: 31 | O44: 000006979 | P44: TOCRA | Q44: 01 | R44: 06 | S44: 11 | T44: 04 | U44: 0106 | V44: 000006979 - TOCRA | AB44: 04 | AC44: 07 | AD44: TARAY | AE44: 0407 | AF44: 0407 - TARAY
J45: 04 | K45: 06 | L45: YAURI | M45: 0406 - YAURI | N45: 32 | O45: 000000000 | P45: (All) | Q45: 01 | R45: 12 | U45: 0112 | V45: 000000000 - (All) | AB45: 04 | AC45: 08 | AD45: YANATILE | AE45: 0408 | AF45: 0408 - YANATILE
J46: 04 | K46: 99 | L46: (All) | M46: 0499 - (All) | O46: 000002523 | P46: URCOS | Q46: 01 | R46: 12 | S46: 12 | T46: 01 | U46: 0112 | V46: 000002523 - URCOS | AB46: 05 | AC46: 00 | AD46: (All) | AE46: 0500 | AF46: 0500 - (All)
J47: 05 | K47: 00 | L47: NO PERTENECE A NINGUNA MICRORED | M47: 0500 - NO PERTENECE A NINGUNA MICRORED | N47: =+N45+1 -> 33 | O47: 000026385 | P47: ESSALUD-URCOS | Q47: 01 | R47: 12 | S47: 12 | T47: 01 | U47: 0112 | V47: 000026385 - ESSALUD-URCOS | AB47: 05 | AC47: 01 | AD47: YANAOCA | AE47: 0501 | AF47: 0501 - YANAOCA
J48: 05 | K48: 01 | L48: KIMBIRI | M48: 0501 - KIMBIRI | N48: 34 | O48: 000002525 | P48: ANDAHUAYLILLAS | Q48: 01 | R48: 12 | S48: 12 | T48: 02 | U48: 0112 | V48: 000002525 - ANDAHUAYLILLAS | AB48: 05 | AC48: 02 | AD48: CHECCA | AE48: 0502 | AF48: 0502 - CHECCA
J49: 05 | K49: 02 | L49: PICHARI | M49: 0502 - PICHARI | N49: 35 | O49: 000008911 | P49: HUARA HUARA | Q49: 01 | R49: 12 | S49: 12 | T49: 05 | U49: 0112 | V49: 000008911 - HUARA HUARA | AB49: 05 | AC49: 03 | AD49: KUNTURKANKI | AE49: 0503 | AF49: 0503 - KUNTURKANKI
J50: 05 | K50: 99 | L50: (All) | M50: 0599 - (All) | N50: 36 | O50: 000002530 | P50: CUSIPATA | Q50: 01 | R50: 12 | S50: 12 | T50: 06 | U50: 0112 | V50: 000002530 - CUSIPATA | AB50: 05 | AC50: 04 | AD50: LANGUI | AE50: 0504 | AF50: 0504 - LANGUI
J51: 06 | K51: 00 | L51: NO PERTENECE A NINGUNA MICRORED | M51: 0600 - NO PERTENECE A NINGUNA MICRORED | N51: 37 | O51: 000006980 | P51: CHILLIHUANI | Q51: 01 | R51: 12 | S51: 12 | T51: 06 | U51: 0112 | V51: 000006980 - CHILLIHUANI | AB51: 05 | AC51: 05 | AD51: LAYO | AE51: 0505 | AF51: 0505 - LAYO
J52: 06 | K52: 09 | L52: SANTO TOMAS | M52: 0609 - SANTO TOMAS | N52: 38 | O52: 000002532 | P52: HUARO | Q52: 01 | R52: 12 | S52: 12 | T52: 07 | U52: 0112 | V52: 000002532 - HUARO | AB52: 05 | AC52: 06 | AD52: PAMPAMARCA | AE52: 0506 | AF52: 0506 - PAMPAMARCA
J53: 06 | K53: 01 | L53: LIVITACA | M53: 0601 - LIVITACA | N53: 39 | O53: 000002533 | P53: URPAY | Q53: 01 | R53: 12 | S53: 12 | T53: 07 | U53: 0112 | V53: 000002533 - URPAY | AB53: 05 | AC53: 07 | AD53: QUEHUE | AE53: 0507 | AF53: 0507 - QUEHUE
J54: 06 | K54: 99 | L54: (All) | M54: 0699 - (All) | N54: 40 | O54: 000011747 | P54: POSTA MEDICA POLICIAL PUCUTO | Q54: 01 | R54: 12 | S54: 12 | T54: 07 | U54: 0112 | V54: 000011747 - POSTA MEDICA POLICIAL PUCUTO | AB54: 05 | AC54: 08 | AD54: TUPAC AMARU | AE54: 0508 | AF54: 0508 - TUPAC AMARU
J55: 99 | K55: 99 | L55: (All) | M55: 9999 - (All) | N55: 41 | O55: 000030708 | P55: MENTAL COMUNITARIO HUARO | Q55: 01 | R55: 12 | S55: 12 | T55: 07 | U55: 0112 | V55: 000030708 - MENTAL COMUNITARIO HUARO | AB55: 06 | AC55: 00 | AD55: (All) | AE55: 0600 | AF55: 0600 - (All)
N56: 42 | O56: 000002534 | P56: LUCRE | Q56: 01 | R56: 12 | S56: 12 | T56: 08 | U56: 0112 | V56: 000002534 - LUCRE | AB56: 06 | AC56: 01 | AD56: SICUANI | AE56: 0601 | AF56: 0601 - SICUANI
N57: 43 | O57: 000002537 | P57: OROPESA | Q57: 01 | R57: 12 | S57: 12 | T57: 11 | U57: 0112 | V57: 000002537 - OROPESA | AB57: 06 | AC57: 02 | AD57: CHECACUPE | AE57: 0602 | AF57: 0602 - CHECACUPE
N58: 44 | O58: 000002538 | P58: QUIQUIJANA | Q58: 01 | R58: 12 | S58: 12 | T58: 12 | U58: 0112 | V58: 000002538 - QUIQUIJANA | AB58: 06 | AC58: 03 | AD58: COMBAPATA | AE58: 0603 | AF58: 0603 - COMBAPATA
N59: 45 | O59: 000002539 | P59: CCOLCA | Q59: 01 | R59: 12 | S59: 12 | T59: 12 | U59: 0112 | V59: 000002539 - CCOLCA | AB59: 06 | AC59: 04 | AD59: MARANGANI | AE59: 0604 | AF59: 0604 - MARANGANI
N60: 46 | O60: 000000000 | P60: (All) | Q60: 01 | R60: 13 | U60: 0113 | V60: 000000000 - (All) | AB60: 06 | AC60: 05 | AD60: PITUMARCA | AE60: 0605 | AF60: 0605 - PITUMARCA
O61: 000002317 | P61: ACOMAYO | Q61: 01 | R61: 13 | S61: 02 | T61: 01 | U61: 0113 | V61: 000002317 - ACOMAYO | AB61: 06 | AC61: 06 | AD61: SAN PABLO | AE61: 0606 | AF61: 0606 - SAN PABLO
N62: =+N60+1 -> 47 | O62: 000010076 | P62: ACOMAYO - ESSALUD | Q62: 01 | R62: 13 | S62: 02 | T62: 01 | U62: 0113 | V62: 000010076 - ACOMAYO - ESSALUD | AB62: 06 | AC62: 07 | AD62: SAN PEDRO | AE62: 0607 | AF62: 0607 - SAN PEDRO
N63: 48 | O63: 000002318 | P63: ACOPIA | Q63: 01 | R63: 13 | S63: 02 | T63: 02 | U63: 0113 | V63: 000002318 - ACOPIA | AB63: 06 | AC63: 08 | AD63: TINTA | AE63: 0608 | AF63: 0608 - TINTA
N64: 49 | O64: 000002319 | P64: ACOS | Q64: 01 | R64: 13 | S64: 02 | T64: 03 | U64: 0113 | V64: 000002319 - ACOS | AB64: 07 | AC64: 00 | AD64: (All) | AE64: 0700 | AF64: 0700 - (All)
N65: 50 | O65: 000002321 | P65: POMACANCHI | Q65: 01 | R65: 13 | S65: 02 | T65: 05 | U65: 0113 | V65: 000002321 - POMACANCHI | AB65: 07 | AC65: 01 | AD65: SANTO TOMAS | AE65: 0701 | AF65: 0701 - SANTO TOMAS
N66: 51 | O66: 000002322 | P66: SAN JUAN DE POMACANCHI | Q66: 01 | R66: 13 | S66: 02 | T66: 05 | U66: 0113 | V66: 000002322 - SAN JUAN DE POMACANCHI | AB66: 07 | AC66: 02 | AD66: CAPACMARCA | AE66: 0702 | AF66: 0702 - CAPACMARCA
N67: 52 | O67: 000012926 | P67: SANTA LUCIA | Q67: 01 | R67: 13 | S67: 02 | T67: 05 | U67: 0113 | V67: 000012926 - SANTA LUCIA | AB67: 07 | AC67: 03 | AD67: CHAMACA | AE67: 0703 | AF67: 0703 - CHAMACA
N68: 53 | O68: 000002324 | P68: PUESTO DE SALUD SANGARARA | Q68: 01 | R68: 13 | S68: 02 | T68: 07 | U68: 0113 | V68: 000002324 - PUESTO DE SALUD SANGARARA | AB68: 07 | AC68: 04 | AD68: COLQUEMARCA | AE68: 0704 | AF68: 0704 - COLQUEMARCA
N69: 54 | O69: 000002325 | P69: PUESTO DE SALUD MARCACONGA | Q69: 01 | R69: 13 | S69: 02 | T69: 07 | U69: 0113 | V69: 000002325 - PUESTO DE SALUD MARCACONGA | AB69: 07 | AC69: 05 | AD69: LIVITACA | AE69: 0705 | AF69: 0705 - LIVITACA
N70: 55 | O70: 000002508 | P70: PILLPINTO | Q70: 01 | R70: 13 | S70: 10 | T70: 08 | U70: 0113 | V70: 000002508 - PILLPINTO | AB70: 07 | AC70: 06 | AD70: LLUSCO | AE70: 0706 | AF70: 0706 - LLUSCO
N71: 56 | O71: 000000000 | P71: (All) | Q71: 01 | R71: 15 | U71: 0115 | V71: 000000000 - (All) | AB71: 07 | AC71: 07 | AD71: QUIÑOTA | AE71: 0707 | AF71: 0707 - QUIÑOTA
O72: 000002526 | P72: QUINCE MIL | Q72: 01 | R72: 15 | S72: 12 | T72: 03 | U72: 0115 | V72: 000002526 - QUINCE MIL | AB72: 07 | AC72: 08 | AD72: VELILLE | AE72: 0708 | AF72: 0708 - VELILLE
N73: =+N71+1 -> 57 | O73: 000002527 | P73: CCARHUAYO | Q73: 01 | R73: 15 | S73: 12 | T73: 04 | U73: 0115 | V73: 000002527 - CCARHUAYO | AB73: 08 | AC73: 00 | AD73: (All) | AE73: 0800 | AF73: 0800 - (All)
N74: 58 | O74: 000002524 | P74: PAMPACAMARA | Q74: 01 | R74: 15 | S74: 12 | T74: 05 | U74: 0115 | V74: 000002524 - PAMPACAMARA | AB74: 08 | AC74: 01 | AD74: ESPINAR | AE74: 0801 | AF74: 0801 - ESPINAR
N75: 59 | O75: 000002528 | P75: CCATCCA | Q75: 01 | R75: 15 | S75: 12 | T75: 05 | U75: 0115 | V75: 000002528 - CCATCCA | AB75: 08 | AC75: 02 | AD75: CONDOROMA | AE75: =CONCATENATE(AB75,AC75) -> 0802 | AF75: =CONCATENATE(AB75,AC75," - ",AD75) -> 0802 - CONDOROMA
N76: 60 | O76: 000002529 | P76: KCAURY | Q76: 01 | R76: 15 | S76: 12 | T76: 05 | U76: 0115 | V76: 000002529 - KCAURY | AB76: 08 | AC76: 03 | AD76: COPORAQUE | AE76: 0803 | AF76: 0803 - COPORAQUE
N77: =+N76+1 -> 61 | O77: 000012931 | P77: CHICHINA | Q77: 01 | R77: 15 | S77: 12 | T77: 05 | U77: 0115 | V77: 000012931 - CHICHINA | AB77: 08 | AC77: 04 | AD77: OCORURO | AE77: 0804 | AF77: 0804 - OCORURO
N78: 62 | O78: 000016335 | P78: CCAPANA | Q78: 01 | R78: 15 | S78: 12 | T78: 05 | U78: 0115 | V78: 000016335 - CCAPANA | AB78: 08 | AC78: 05 | AD78: PALLPATA | AE78: 0805 | AF78: 0805 - PALLPATA
N79: 63 | O79: 000002535 | P79: MARCAPATA | Q79: 01 | R79: 15 | S79: 12 | T79: 09 | U79: 0115 | V79: 000002535 - MARCAPATA | AB79: 08 | AC79: 06 | AD79: PICHIGUA | AE79: 0806 | AF79: 0806 - PICHIGUA
N80: 64 | O80: 000007110 | P80: INCACANCHA | Q80: 01 | R80: 15 | S80: 12 | T80: 09 | U80: =CONCATENATE(Q80,R80) -> 0115 | V80: =CONCATENATE(O80," - ",P80) -> 000007110 - INCACANCHA | AB80: 08 | AC80: 07 | AD80: SUYCKUTAMBO | AE80: 0807 | AF80: 0807 - SUYCKUTAMBO
N81: 65 | O81: 000002536 | P81: OCONGATE | Q81: 01 | R81: 15 | S81: 12 | T81: 10 | U81: 0115 | V81: 000002536 - OCONGATE | AB81: 08 | AC81: 08 | AD81: ALTO PICHIGUA | AE81: 0808 | AF81: 0808 - ALTO PICHIGUA
N82: 66 | O82: 000006977 | P82: TINKI | Q82: 01 | R82: 15 | S82: 12 | T82: 10 | U82: 0115 | V82: 000006977 - TINKI | AB82: 09 | AC82: 00 | AD82: (All) | AE82: 0900 | AF82: 0900 - (All)
N83: 67 | O83: 000000000 | P83: (All) | Q83: 01 | R83: 16 | U83: 0116 | V83: 000000000 - (All) | AB83: 09 | AC83: 01 | AD83: SANTA ANA | AE83: 0901 | AF83: 0901 - SANTA ANA
O84: 000002300 | P84: SAN JERONIMO | Q84: 01 | R84: 16 | S84: 01 | T84: 04 | U84: 0116 | V84: 000002300 - SAN JERONIMO | AB84: 09 | AC84: 02 | AD84: ECHARATE | AE84: 0902 | AF84: 0902 - ECHARATE
N85: =+N83+1 -> 68 | O85: 000007699 | P85: CONCHACALLE | Q85: 01 | R85: 16 | S85: 01 | T85: 04 | U85: 0116 | V85: 000007699 - CONCHACALLE | AB85: 09 | AC85: 03 | AD85: HUAYOPATA | AE85: 0903 | AF85: 0903 - HUAYOPATA
N86: 69 | O86: 000018926 | P86: ESTABLECIMIENTO PENITENCIARIO CUSCO VARONES | Q86: 01 | R86: 16 | S86: 01 | T86: 04 | U86: 0116 | V86: 000018926 - ESTABLECIMIENTO PENITENCIARIO CUSCO VARONES | AB86: 09 | AC86: 04 | AD86: MARANURA | AE86: 0904 | AF86: 0904 - MARANURA
N87: 70 | O87: 000021187 | P87: ESTABLECIMIENTO PENITENCIARIO CUSCO MUJERES | Q87: 01 | R87: 16 | S87: 01 | T87: 04 | U87: 0116 | V87: 000021187 - ESTABLECIMIENTO PENITENCIARIO CUSCO MUJERES | AB87: 09 | AC87: 05 | AD87: OCOBAMBA | AE87: 0905 | AF87: 0905 - OCOBAMBA
N88: 71 | O88: 000030727 | P88: PATRÓN SAN SEBASTIAN | Q88: 01 | R88: 16 | S88: 01 | T88: 04 | U88: 0116 | V88: 000030727 - PATRÓN SAN SEBASTIAN | AB88: 09 | AC88: 06 | AD88: QUELLOUNO | AE88: 0906 | AF88: 0906 - QUELLOUNO
N89: 72 | O89: 000002301 | P89: SAN SEBASTIAN | Q89: 01 | R89: 16 | S89: 01 | T89: 05 | U89: 0116 | V89: 000002301 - SAN SEBASTIAN | AB89: 09 | AC89: 07 | AD89: KIMBIRI | AE89: 0907 | AF89: 0907 - KIMBIRI
N90: 73 | O90: 000002303 | P90: SANTA ROSA | Q90: 01 | R90: 16 | S90: 01 | T90: 05 | U90: 0116 | V90: 000002303 - SANTA ROSA | AB90: 09 | AC90: 08 | AD90: SANTA TERESA | AE90: 0908 | AF90: 0908 - SANTA TERESA
N91: 74 | O91: 000010065 | P91: SAN SEBASTIAN ESSALUD | Q91: 01 | R91: 16 | S91: 01 | T91: 05 | U91: 0116 | V91: 000010065 - SAN SEBASTIAN ESSALUD | AB91: 09 | AC91: 09 | AD91: VILCABAMBA | AE91: 0909 | AF91: 0909 - VILCABAMBA
N92: 75 | O92: 000011743 | P92: POLICIAL "SANTA ROSA" CUSCO | Q92: 01 | R92: 16 | S92: 01 | T92: 05 | U92: 0116 | V92: 000011743 - POLICIAL "SANTA ROSA" CUSCO | AB92: 09 | AC92: 10 | AD92: PICHARI | AE92: 0910 | AF92: 0910 - PICHARI
N93: 76 | O93: 000026181 | P93: MENTAL SAN SEBASTIAN | Q93: 01 | R93: 16 | S93: 01 | T93: 05 | U93: 0116 | V93: 000026181 - MENTAL SAN SEBASTIAN | AB93: 09 | AC93: 11 | AD93: INKAWASI | AE93: 0911 | AF93: 0911 - INKAWASI
N94: 77 | O94: 000002314 | P94: SAYLLA | Q94: 01 | R94: 16 | S94: 01 | T94: 07 | U94: 0116 | V94: 000002314 - SAYLLA | AB94: 09 | AC94: 12 | AD94: VILLA VIRGEN | AE94: 0912 | AF94: 0912 - VILLA VIRGEN
N95: 78 | O95: 000002323 | P95: RONDOCAN | Q95: 01 | R95: 16 | S95: 02 | T95: 06 | U95: 0116 | V95: 000002323 - RONDOCAN | AB95: 09 | AC95: 13 | AD95: VILLA KINTIARINA | AE95: 0913 | AF95: 0913 - VILLA KINTIARINA
N96: 79 | O96: 999999999 | P96: (All) | Q96: 01 | R96: 99 | U96: 0199 | V96: 999999999 - (All) | AB96: 09 | AC96: 14 | AD96: MEGANTONI | AE96: 0914 | AF96: 0914 - MEGANTONI
O97: 000000000 | P97: (All) | Q97: 02 | R97: 01 | U97: 0201 | V97: 000000000 - (All) | AB97: 09 | AC97: 15 | AD97: KUMPIRUSHIATO | AE97: 0915 | AF97: 0915 - KUMPIRUSHIATO
O98: 000002292 | P98: INDEPENDENCIA | Q98: 02 | R98: 01 | S98: 01 | T98: 01 | U98: 0201 | V98: 000002292 - INDEPENDENCIA | AB98: 09 | AC98: 16 | AD98: CIELO PUNCO | AE98: 0916 | AF98: 0916 - CIELO PUNCO
N99: =+N96+1 -> 80 | O99: 000002297 | P99: CCORCCA | Q99: 02 | R99: 01 | S99: 01 | T99: 02 | U99: 0201 | V99: 000002297 - CCORCCA | AB99: 09 | AC99: 17 | AD99: MANITEA | AE99: 0917 | AF99: 0917 - MANITEA
N100: 81 | O100: 000002306 | P100: BELEMPAMPA | Q100: 02 | R100: 01 | S100: 01 | T100: 06 | U100: 0201 | V100: 000002306 - BELEMPAMPA | AB100: 09 | AC100: 18 | AD100: UNION ASHANINKA | AE100: 0918 | AF100: 0918 - UNION ASHANINKA
N101: 82 | O101: 000002308 | P101: ZARZUELA ALTA | Q101: 02 | R101: 01 | S101: 01 | T101: 06 | U101: 0201 | V101: 000002308 - ZARZUELA ALTA | AB101: 09 | AC101: 00 | AD101: (All) | AE101: 0900 | AF101: 0900 - (All)
N102: 83 | O102: 000002309 | P102: DIGNIDAD NACIONAL | Q102: 02 | R102: 01 | S102: 01 | T102: 06 | U102: 0201 | V102: 000002309 - DIGNIDAD NACIONAL | AB102: 10 | AC102: 01 | AD102: PARURO | AE102: 1001 | AF102: 1001 - PARURO
N103: 84 | O103: 000002313 | P103: OCCOPATA | Q103: 02 | R103: 01 | S103: 01 | T103: 06 | U103: 0201 | V103: 000002313 - OCCOPATA | AB103: 10 | AC103: 02 | AD103: ACCHA | AE103: 1002 | AF103: 1002 - ACCHA
N104: 85 | O104: 000010920 | P104: QUINTA BRIGADA DE MONTAÑA | Q104: 02 | R104: 01 | S104: 01 | T104: 06 | U104: 0201 | V104: 000010920 - QUINTA BRIGADA DE MONTAÑA | AB104: 10 | AC104: 03 | AD104: CCAPI | AE104: 1003 | AF104: 1003 - CCAPI
N105: 86 | O105: 000026182 | P105: MENTAL SANTIAGO | Q105: 02 | R105: 01 | S105: 01 | T105: 06 | U105: 0201 | V105: 000026182 - MENTAL SANTIAGO | AB105: 10 | AC105: 04 | AD105: COLCHA | AE105: 1004 | AF105: 1004 - COLCHA
N106: 87 | O106: 000034933 | P106: SANTIAGO ESSALUD | Q106: 02 | R106: 01 | S106: 01 | T106: 06 | U106: 0201 | V106: 000034933 - SANTIAGO ESSALUD | AB106: 10 | AC106: 05 | AD106: HUANOQUITE | AE106: 1005 | AF106: 1005 - HUANOQUITE
N107: 88 | O107: 000023721 | P107: EJERCITO-PERUANO 5TA BM | Q107: 02 | R107: 01 | S107: 01 | T107: 06 | U107: 0201 | V107: 000023721 - EJERCITO-PERUANO 5TA BM | AB107: 10 | AC107: 06 | AD107: OMACHA | AE107: 1006 | AF107: 1006 - OMACHA
O108: 000000000 | P108: (All) | Q108: 02 | R108: 02 | U108: 0202 | V108: 000000000 - (All) | AB108: 10 | AC108: 07 | AD108: PACCARITAMBO | AE108: 1007 | AF108: 1007 - PACCARITAMBO
N109: =+N107+1 -> 89 | O109: 000034419 | P109: MENTAL COMUNITARIO CUSCO | Q109: 02 | R109: 02 | S109: 01 | T109: 01 | U109: 0202 | V109: 000034419 - MENTAL COMUNITARIO CUSCO | AB109: 10 | AC109: 08 | AD109: PILLPINTO | AE109: 1008 | AF109: 1008 - PILLPINTO
N110: 90 | O110: 000002302 | P110: CCORAO | Q110: 02 | R110: 02 | S110: 01 | T110: 05 | U110: 0202 | V110: 000002302 - CCORAO | AB110: 10 | AC110: 09 | AD110: YAURISQUE | AE110: 1009 | AF110: 1009 - YAURISQUE
N111: 91 | O111: 000002307 | P111: MANCO CAPAC | Q111: 02 | R111: 02 | S111: 01 | T111: 06 | U111: 0202 | V111: 000002307 - MANCO CAPAC | AB111: 11 | AC111: 00 | AD111: (All) | AE111: 1100 | AF111: 1100 - (All)
N112: 92 | O112: 000002310 | P112: CHOCCO | Q112: 02 | R112: 02 | S112: 01 | T112: 06 | U112: 0202 | V112: 000002310 - CHOCCO | AB112: 11 | AC112: 01 | AD112: PAUCARTAMBO | AE112: 1101 | AF112: 1101 - PAUCARTAMBO
N113: 93 | O113: 000002315 | P113: WANCHAQ | Q113: 02 | R113: 02 | S113: 01 | T113: 08 | U113: 0202 | V113: 000002315 - WANCHAQ | AB113: 11 | AC113: 02 | AD113: CAICAY | AE113: 1102 | AF113: 1102 - CAICAY
N114: 94 | O114: 000002316 | P114: TTIO | Q114: 02 | R114: 02 | S114: 01 | T114: 08 | U114: 0202 | V114: 000002316 - TTIO | AB114: 11 | AC114: 03 | AD114: CHALLABAMBA | AE114: 1103 | AF114: 1103 - CHALLABAMBA
N115: 95 | O115: 000010041 | P115: ADOLFO GUEVARA VELASCO | Q115: 02 | R115: 02 | S115: 01 | T115: 08 | U115: 0202 | V115: 000010041 - ADOLFO GUEVARA VELASCO | AB115: 11 | AC115: 04 | AD115: COLQUEPATA | AE115: 1104 | AF115: 1104 - COLQUEPATA
N116: 96 | O116: 000026183 | P116: METROPOLITANO | Q116: 02 | R116: 02 | S116: 01 | T116: 08 | U116: 0202 | V116: 000026183 - METROPOLITANO | AB116: 11 | AC116: 05 | AD116: HUANCARANI | AE116: 1105 | AF116: 1105 - HUANCARANI
O117: 000030730 | P117: PATRON SANTIAGO | Q117: 02 | R117: 02 | S117: 01 | T117: 08 | U117: 0202 | V117: 000030730 - PATRON SANTIAGO | AB117: 11 | AC117: 06 | AD117: KOSÑIPATA | AE117: 1106 | AF117: 1106 - KOSÑIPATA
N118: =+N116+1 -> 97 | O118: 000000000 | P118: (All) | Q118: 02 | R118: 03 | U118: 0203 | V118: 000000000 - (All) | AB118: 12 | AC118: 00 | AD118: (All) | AE118: 1200 | AF118: 1200 - (All)
N119: 98 | O119: 000002326 | P119: ANTA | Q119: 02 | R119: 03 | S119: 03 | T119: 01 | U119: 0203 | V119: 000002326 - ANTA | AB119: 12 | AC119: 01 | AD119: URCOS | AE119: 1201 | AF119: 1201 - URCOS
N120: 99 | O120: 000002328 | P120: COMPONE | Q120: 02 | R120: 03 | S120: 03 | T120: 01 | U120: 0203 | V120: 000002328 - COMPONE | AB120: 12 | AC120: 02 | AD120: ANDAHUAYLILLAS | AE120: 1202 | AF120: 1202 - ANDAHUAYLILLAS
N121: 100 | O121: 000002329 | P121: CONCHACALLA | Q121: 02 | R121: 03 | S121: 03 | T121: 01 | U121: 0203 | V121: 000002329 - CONCHACALLA | AB121: 12 | AC121: 03 | AD121: CAMANTI | AE121: 1203 | AF121: 1203 - CAMANTI
N122: 101 | O122: 000027790 | P122: MENTAL COMUNITARIO ANTA | Q122: 02 | R122: 03 | S122: 03 | T122: 01 | U122: 0203 | V122: 000027790 - MENTAL COMUNITARIO ANTA | AB122: 12 | AC122: 04 | AD122: CCARHUAYO | AE122: 1204 | AF122: 1204 - CCARHUAYO
N123: 102 | O123: 000029514 | P123: ESSALUD ANTA | Q123: 02 | R123: 03 | S123: 03 | T123: 01 | U123: 0203 | V123: 000029514 - ESSALUD ANTA | AB123: 12 | AC123: 05 | AD123: CCATCA | AE123: 1205 | AF123: 1205 - CCATCA
N124: 103 | O124: 000002330 | P124: ANCAHUASI | Q124: 02 | R124: 03 | S124: 03 | T124: 02 | U124: 0203 | V124: 000002330 - ANCAHUASI | AB124: 12 | AC124: 06 | AD124: CUSIPATA | AE124: 1206 | AF124: 1206 - CUSIPATA
N125: 104 | O125: 000002331 | P125: CACHIMAYO | Q125: 02 | R125: 03 | S125: 03 | T125: 03 | U125: 0203 | V125: 000002331 - CACHIMAYO | AB125: 12 | AC125: 07 | AD125: HUARO | AE125: 1207 | AF125: 1207 - HUARO
N126: 105 | O126: 000006972 | P126: PANTIPATA | Q126: 02 | R126: 03 | S126: 03 | T126: 04 | U126: 0203 | V126: 000006972 - PANTIPATA | AB126: 12 | AC126: 08 | AD126: LUCRE | AE126: 1208 | AF126: 1208 - LUCRE
N127: 106 | O127: 000036240 | P127: CHINCHAYPUJIO | Q127: 02 | R127: 03 | S127: 03 | T127: 04 | U127: 0203 | V127: 000036240 - CHINCHAYPUJIO | AB127: 12 | AC127: 09 | AD127: MARCAPATA | AE127: 1209 | AF127: 1209 - MARCAPATA
N128: 107 | O128: 000035838 | P128: PARCCOTICA | Q128: 02 | R128: 03 | S128: 03 | T128: 04 | U128: 0203 | V128: 000035838 - PARCCOTICA | AB128: 12 | AC128: 10 | AD128: OCONGATE | AE128: 1210 | AF128: 1210 - OCONGATE
N129: 108 | O129: 000002333 | P129: HUAROCONDO | Q129: 02 | R129: 03 | S129: 03 | T129: 05 | U129: 0203 | V129: 000002333 - HUAROCONDO | AB129: 12 | AC129: 11 | AD129: OROPESA | AE129: 1211 | AF129: 1211 - OROPESA
N130: 109 | O130: 000002334 | P130: HUAYLLACOCHA | Q130: 02 | R130: 03 | S130: 03 | T130: 05 | U130: 0203 | V130: 000002334 - HUAYLLACOCHA | AB130: 12 | AC130: 12 | AD130: QUIQUIJANA | AE130: 1212 | AF130: 1212 - QUIQUIJANA
N131: 110 | O131: 000002339 | P131: PUCYURA ANTA | Q131: 02 | R131: 03 | S131: 03 | T131: 08 | U131: 0203 | V131: 000002339 - PUCYURA ANTA | AB131: 13 | AC131: 00 | AD131: (All) | AE131: 1300 | AF131: 1300 - (All)
O132: 000002340 | P132: ZURITE | Q132: 02 | R132: 03 | S132: 03 | T132: 09 | U132: 0203 | V132: 000002340 - ZURITE | AB132: 13 | AC132: 01 | AD132: URUBAMBA | AE132: 1301 | AF132: 1301 - URUBAMBA
N133: =+N131+1 -> 111 | O133: 000002327 | P133: CHACAN | Q133: 02 | R133: 03 | S133: 03 | T133: 01 | U133: 0203 | V133: 000002327 - CHACAN | AB133: 13 | AC133: 02 | AD133: CHINCHERO | AE133: 1302 | AF133: 1302 - CHINCHERO
N134: 112 | O134: 000000000 | P134: (All) | Q134: 02 | R134: 04 | U134: 0204 | V134: 000000000 - (All) | AB134: 13 | AC134: 03 | AD134: HUAYLLABAMBA | AE134: 1303 | AF134: 1303 - HUAYLLABAMBA
N135: 113 | O135: 000002336 | P135: LIMATAMBO | Q135: 02 | R135: 04 | S135: 03 | T135: 06 | U135: 0204 | V135: 000002336 - LIMATAMBO | AB135: 13 | AC135: 04 | AD135: MACHUPICCHU | AE135: 1304 | AF135: 1304 - MACHUPICCHU
N136: 114 | O136: 000002337 | P136: PAMPACONGA | Q136: 02 | R136: 04 | S136: 03 | T136: 06 | U136: 0204 | V136: 000002337 - PAMPACONGA | AB136: 13 | AC136: 05 | AD136: MARAS | AE136: 1305 | AF136: 1305 - MARAS
N137: 115 | O137: 000010761 | P137: URATARI | Q137: 02 | R137: 04 | S137: 03 | T137: 06 | U137: 0204 | V137: 000010761 - URATARI | AB137: 13 | AC137: 06 | AD137: OLLANTAYTAMBO | AE137: 1306 | AF137: 1306 - OLLANTAYTAMBO
O138: 000002338 | P138: MOLLEPATA | Q138: 02 | R138: 04 | S138: 03 | T138: 07 | U138: 0204 | V138: 000002338 - MOLLEPATA | AB138: 13 | AC138: 07 | AD138: YUCAY | AE138: =CONCATENATE(AB138,AC138) -> 1307 | AF138: 1307 - YUCAY
N139: =+N137+1 -> 116 | O139: 000021061 | P139: HUAMANPATA | Q139: 02 | R139: 04 | S139: 03 | T139: 07 | U139: 0204 | V139: 000021061 - HUAMANPATA | AB139: 00 | AC139: 00 | AD139: (All) | AE139: =CONCATENATE(AB139,AC139) -> 0000 | AF139: 0000 - (All)
N140: 117 | O140: 000000000 | P140: (All) | Q140: 02 | R140: 05 | U140: 0205 | V140: 000000000 - (All)
N141: =+N140+1 -> 118 | O141: 000002343 | P141: COYA | Q141: 02 | R141: 05 | S141: 04 | T141: 02 | U141: 0205 | V141: 000002343 - COYA
N142: 119 | O142: 000002344 | P142: LAMAY | Q142: 02 | R142: 05 | S142: 04 | T142: 03 | U142: 0205 | V142: 000002344 - LAMAY
N143: 120 | O143: 000006975 | P143: SAYLLAFAYA | Q143: 02 | R143: 05 | S143: 04 | T143: 03 | U143: 0205 | V143: 000006975 - SAYLLAFAYA
N144: 121 | O144: 000007145 | P144: HUAMA | Q144: 02 | R144: 05 | S144: 04 | T144: 03 | U144: 0205 | V144: 000007145 - HUAMA
N145: 122 | O145: 000007146 | P145: POQUES | Q145: 02 | R145: 05 | S145: 04 | T145: 03 | U145: 0205 | V145: 000007146 - POQUES
N146: 123 | O146: 000036012 | P146: HUARQUI | Q146: 02 | R146: 05 | S146: 04 | T146: 03 | U146: 0205 | V146: 000036012 - HUARQUI
N147: 124 | O147: 000002348 | P147: PISAC | Q147: 02 | R147: 05 | S147: 04 | T147: 05 | U147: 0205 | V147: 000002348 - PISAC
N148: 125 | O148: 000002349 | P148: CUYO CHICO | Q148: 02 | R148: 05 | S148: 04 | T148: 05 | U148: 0205 | V148: 000002349 - CUYO CHICO
N149: 126 | O149: 000002350 | P149: CUYO GRANDE | Q149: 02 | R149: 05 | S149: 04 | T149: 05 | U149: 0205 | V149: 000002350 - CUYO GRANDE
N150: 127 | O150: 000002351 | P150: QUELLO QUELLO | Q150: 02 | R150: 05 | S150: 04 | T150: 05 | U150: =CONCATENATE(Q150,R150) -> 0205 | V150: =CONCATENATE(O150," - ",P150) -> 000002351 - QUELLO QUELLO
N151: 128 | O151: 000002352 | P151: SAN SALVADOR | Q151: 02 | R151: 05 | S151: 04 | T151: 06 | U151: 0205 | V151: 000002352 - SAN SALVADOR
N152: 129 | O152: 000036087 | P152: TIRACANCHA | Q152: 02 | R152: 05 | S152: 04 | T152: 06 | U152: 0205 | V152: 000036087 - TIRACANCHA
O153: 000002353 | P153: TARAY | Q153: 02 | R153: 05 | S153: 04 | T153: 07 | U153: 0205 | V153: 000002353 - TARAY
N154: =+N152+1 -> 130 | O154: 000002354 | P154: HUANCALLE | Q154: 02 | R154: 05 | S154: 04 | T154: 07 | U154: 0205 | V154: 000002354 - HUANCALLE
N155: 131 | O155: 000000000 | P155: (All) | Q155: 02 | R155: 06 | U155: 0206 | V155: 000000000 - (All)
N156: 132 | O156: 000002341 | P156: CALCA | Q156: 02 | R156: 06 | S156: 04 | T156: 01 | U156: 0206 | V156: 000002341 - CALCA
N157: 133 | O157: 000010069 | P157: ESSALUD CALCA | Q157: 02 | R157: 06 | S157: 04 | T157: 01 | U157: 0206 | V157: 000010069 - ESSALUD CALCA
N158: 134 | O158: 000010759 | P158: HUARAN | Q158: 02 | R158: 06 | S158: 04 | T158: 01 | U158: 0206 | V158: 000010759 - HUARAN
N159: 135 | O159: 000010762 | P159: ACCHA ALTA - PAMPALLACTA | Q159: 02 | R159: 06 | S159: 04 | T159: 01 | U159: 0206 | V159: 000010762 - ACCHA ALTA - PAMPALLACTA
N160: 136 | O160: 000026273 | P160: MENTAL COMUNITARIO VIRGEN ASUNTA DE CALCA | Q160: 02 | R160: 06 | S160: 04 | T160: 01 | U160: 0206 | V160: 000026273 - MENTAL COMUNITARIO VIRGEN ASUNTA DE CALCA
N161: 137 | O161: 000002342 | P161: AMPARAES | Q161: 02 | R161: 06 | S161: 04 | T161: 04 | U161: 0206 | V161: 000002342 - AMPARAES
N162: 138 | O162: 000002345 | P162: CCACHIN | Q162: 02 | R162: 06 | S162: 04 | T162: 04 | U162: 0206 | V162: 000002345 - CCACHIN
N163: 139 | O163: 000002346 | P163: CHOQUECANCHA | Q163: 02 | R163: 06 | S163: 04 | T163: 04 | U163: 0206 | V163: 000002346 - CHOQUECANCHA
N164: 140 | O164: 000002347 | P164: LARES | Q164: 02 | R164: 06 | S164: 04 | T164: 04 | U164: 0206 | V164: 000002347 - LARES
N165: 141 | O165: 000002361 | P165: SUYO | Q165: 02 | R165: 06 | S165: 04 | T165: 04 | U165: 0206 | V165: 000002361 - SUYO
N166: 142 | O166: 000007144 | P166: PATABAMBA | Q166: 02 | R166: 06 | S166: 04 | T166: 07 | U166: 0206 | V166: 000007144 - PATABAMBA
N167: 143 | O167: 000002515 | P167: PAROBAMBA | Q167: 02 | R167: 06 | S167: 11 | T167: 03 | U167: 0206 | V167: 000002515 - PAROBAMBA
N168: 144 | O168: 000007143 | P168: OTOCANI | Q168: 02 | R168: 06 | S168: 11 | T168: 03 | U168: 0206 | V168: 000007143 - OTOCANI
N169: 145 | O169: 000000000 | P169: (All) | Q169: 02 | R169: 07 | U169: 0207 | V169: 000000000 - (All)
N170: 146 | O170: 000002540 | P170: URUBAMBA | Q170: 02 | R170: 07 | S170: 13 | T170: 01 | U170: 0207 | V170: 000002540 - URUBAMBA
N171: 147 | O171: 000002541 | P171: YANAHUARA | Q171: 02 | R171: 07 | S171: 13 | T171: 01 | U171: 0207 | V171: 000002541 - YANAHUARA
N172: 148 | O172: 000010060 | P172: CAS URUBAMBA -ESSALUD | Q172: 02 | R172: 07 | S172: 13 | T172: 01 | U172: 0207 | V172: 000010060 - CAS URUBAMBA -ESSALUD
N173: 149 | O173: 000030666 | P173: MENTAL COMUNITARIO URUBAMBA | Q173: 02 | R173: 07 | S173: 13 | T173: 01 | U173: 0207 | V173: 000030666 - MENTAL COMUNITARIO URUBAMBA
N174: 150 | O174: 000035851 | P174: URUBAMBA - ESSALUD | Q174: 02 | R174: 07 | S174: 13 | T174: 01 | U174: 0207 | V174: 000035851 - URUBAMBA - ESSALUD
N175: 151 | O175: 000002543 | P175: CHINCHERO | Q175: 02 | R175: 07 | S175: 13 | T175: 02 | U175: 0207 | V175: 000002543 - CHINCHERO
N176: 152 | O176: 000002544 | P176: OCCOTUAN | Q176: 02 | R176: 07 | S176: 13 | T176: 02 | U176: 0207 | V176: 000002544 - OCCOTUAN
N177: 153 | O177: 000002545 | P177: HUAYLLABAMBA | Q177: 02 | R177: 07 | S177: 13 | T177: 03 | U177: 0207 | V177: 000002545 - HUAYLLABAMBA
N178: 154 | O178: 000002546 | P178: MACHUPICCHU | Q178: 02 | R178: 07 | S178: 13 | T178: 04 | U178: 0207 | V178: 000002546 - MACHUPICCHU
N179: 155 | O179: 000002547 | P179: COLLPANI | Q179: 02 | R179: 07 | S179: 13 | T179: 04 | U179: 0207 | V179: 000002547 - COLLPANI
N180: 156 | O180: 000006974 | P180: CAMINO INCA HUAYLLABAMBA | Q180: 02 | R180: 07 | S180: 13 | T180: 04 | U180: 0207 | V180: 000006974 - CAMINO INCA HUAYLLABAMBA
N181: 157 | O181: 000010073 | P181: MACHU PICCHU - ESSALUD | Q181: 02 | R181: 07 | S181: 13 | T181: 04 | U181: 0207 | V181: 000010073 - MACHU PICCHU - ESSALUD
N182: 158 | O182: 000002548 | P182: MARAS | Q182: 02 | R182: 07 | S182: 13 | T182: 05 | U182: 0207 | V182: 000002548 - MARAS
N183: 159 | O183: 000010758 | P183: CRUZPATA | Q183: 02 | R183: 07 | S183: 13 | T183: 05 | U183: 0207 | V183: 000010758 - CRUZPATA
N184: 160 | O184: 000002549 | P184: OLLANTAYTAMBO | Q184: 02 | R184: 07 | S184: 13 | T184: 06 | U184: 0207 | V184: 000002549 - OLLANTAYTAMBO
N185: 161 | O185: 000002550 | P185: CHILLCA | Q185: 02 | R185: 07 | S185: 13 | T185: 06 | U185: 0207 | V185: 000002550 - CHILLCA
N186: 162 | O186: 000010760 | P186: PATACANCHA | Q186: 02 | R186: 07 | S186: 13 | T186: 06 | U186: 0207 | V186: 000010760 - PATACANCHA
N187: 163 | O187: 000002551 | P187: YUCAY | Q187: 02 | R187: 07 | S187: 13 | T187: 07 | U187: 0207 | V187: 000002551 - YUCAY
N188: 164 | O188: 000000000 | P188: (All) | Q188: 02 | R188: 08 | U188: 0208 | V188: 000000000 - (All)
N189: 165 | O189: 000002355 | P189: LA QUEBRADA | Q189: 02 | R189: 08 | S189: 04 | T189: 08 | U189: 0208 | V189: 000002355 - LA QUEBRADA
N190: 166 | O190: 000002356 | P190: CCORIMAYO | Q190: 02 | R190: 08 | S190: 04 | T190: 08 | U190: 0208 | V190: 000002356 - CCORIMAYO
N191: 167 | O191: 000002357 | P191: COLCCA YANATILE | Q191: 02 | R191: 08 | S191: 04 | T191: 08 | U191: 0208 | V191: 000002357 - COLCCA YANATILE
N192: 168 | O192: 000002358 | P192: MUYUPAY | Q192: 02 | R192: 08 | S192: 04 | T192: 08 | U192: 0208 | V192: 000002358 - MUYUPAY
N193: 169 | O193: 000002359 | P193: PUTUCUSI | Q193: 02 | R193: 08 | S193: 04 | T193: 08 | U193: 0208 | V193: 000002359 - PUTUCUSI
N194: 170 | O194: 000002360 | P194: QUESQUENTO | Q194: 02 | R194: 08 | S194: 04 | T194: 08 | U194: 0208 | V194: 000002360 - QUESQUENTO
N195: 171 | O195: 000002362 | P195: HUACHIBAMBA | Q195: 02 | R195: 08 | S195: 04 | T195: 08 | U195: 0208 | V195: 000002362 - HUACHIBAMBA
N196: 172 | O196: 000006971 | P196: COMBAPATA YANATILE | Q196: 02 | R196: 08 | S196: 04 | T196: 08 | U196: 0208 | V196: 000006971 - COMBAPATA YANATILE
N197: 173 | O197: 000006973 | P197: BELLAVISTA | Q197: 02 | R197: 08 | S197: 04 | T197: 08 | U197: 0208 | V197: 000006973 - BELLAVISTA
N198: 174 | O198: 000007142 | P198: CHANCAMAYO | Q198: 02 | R198: 08 | S198: 04 | T198: 08 | U198: 0208 | V198: 000007142 - CHANCAMAYO
N199: 175 | O199: 000002464 | P199: VERSALLES | Q199: 02 | R199: 08 | S199: 09 | T199: 05 | U199: 0208 | V199: 000002464 - VERSALLES
N200: 176 | O200: 000002467 | P200: PUENTE SANTIAGO | Q200: 02 | R200: 08 | S200: 09 | T200: 06 | U200: 0208 | V200: 000002467 - PUENTE SANTIAGO
N201: 177 | O201: 000000000 | P201: (All) | Q201: 02 | R201: 09 | U201: 0209 | V201: 000000000 - (All)
N202: 178 | O202: 000002290 | P202: SAN PEDRO CUSCO | Q202: 02 | R202: 09 | S202: 01 | T202: 01 | U202: 0209 | V202: 000002290 - SAN PEDRO CUSCO
N203: 179 | O203: 000002291 | P203: SIETE CUARTONES | Q203: 02 | R203: 09 | S203: 01 | T203: 01 | U203: 0209 | V203: 000002291 - SIETE CUARTONES
N204: 180 | O204: 000002293 | P204: MIRAFLORES | Q204: 02 | R204: 09 | S204: 01 | T204: 01 | U204: 0209 | V204: 000002293 - MIRAFLORES
N205: =+N204+1 -> 181 | O205: 000002294 | P205: PICCHU LA RINCONADA | Q205: 02 | R205: 09 | S205: 01 | T205: 01 | U205: 0209 | V205: 000002294 - PICCHU LA RINCONADA
N206: 182 | O206: 000002295 | P206: BUENA VISTA | Q206: 02 | R206: 09 | S206: 01 | T206: 01 | U206: 0209 | V206: 000002295 - BUENA VISTA
N207: 183 | O207: 000002299 | P207: POROY | Q207: 02 | R207: 09 | S207: 01 | T207: 03 | U207: 0209 | V207: 000002299 - POROY
N208: 184 | O208: 999999999 | P208: (All) | Q208: 02 | R208: 99 | U208: 0299 | V208: 999999999 - (All)
... 246 more rows
